Workbook

Sheet Start here
C1: Running Total for Cumulative Budget Amount = | H1: ='Cumulative Budget'!AE65 -> 0
A2: Worksheet for Project Budget
A3: Effective 7/1/2014 Revised 6/30/2014
A4: Principal Investigator:
A6: Sponsor:
A8: Project Title:
A10: Project Period: | D10: Start Date | F10: End Date | H10: Total Years | I10: 1
E11: mm/dd/yyyy | G11: mm/dd/yyyy
A12: Indirect Cost Rate: | E12: On-campus Organized Research | G12: =VLOOKUP(E12,E18:G32,2,FALSE) -> 0.5
I13: Please refer to the Indirect Cost Rate and Policy links on the Links Tab
E14: (specify rate if Other) | F14: << Only enter rate << for "Other-specify"
B16: ** Note: Enter data in white boxes only. Please enter information in all of the boxes on this page. There are helpful hints for most pages. To view them, hover over a cell with a red triangle in the corner. **
E18: On-campus Organized Research | F18: 0.5 | G18: mtdc
E19: On-campus Instruction | F19: 0.51 | G19: mtdc
E20: On-campus Other Sponsored Activities | F20: 0.32 | G20: mtdc
E21: Off-campus All Programs | F21: 0.26 | G21: mtdc
E22: Training | F22: 0.08 | G22: direct
E23: NSF-on-campus | F23: =+F18 -> 0.5 | G23: participant
E24: NSF-off-campus | F24: =+F21 -> 0.26 | G24: participant
E25: NSF - REU | F25: 0.5 | G25: stipend
E26: USDA-22% | F26: 0.28205 | G26: direct
E27: USDA-30% | F27: 0.42857 | G27: direct
E28: Other - 0% | F28: 0 | G28: direct
E29: Other - 8% | F29: 0.08 | G29: direct
E30: Other - 10% | F30: 0.1 | G30: direct
E31: Other - 15% | F31: 0.15 | G31: direct
E32: Other - Specify below | F32: =+E14 -> (specify rate if Other) | G32: other

Sheet Salaries & Wages
H9: Running Total for Cumulative Budget Amount = | N9: ='Cumulative Budget'!AE65 -> 0
A11: Worksheet for Project Budget - Salaries & Wages | P11: Year 1 | R11: Please select an escalation rate for all salaries below
R12: 0.03
B13: Senior Personnel
B14: Prefix | D14: First Name | F14: Middle Init. | H14: Last Name | J14: Classification | L14: Base Salary/ Month | N14: Cal Month | P14: Acad. Month | R14: Summer Month | T14: Requested Salary | V14: Fringe Rate % | X14: Fringe Benefit $ | Z14: Federal Fund Requested $ | AB14: Cost-Shared / Matching Salary | AD14: Fringe Benefit $ | AF14: Cost-Shared / Matching Funds $
A16: 1 | J16: Select one | T16: =ROUND(L16*(+N16+P16+R16),0) -> 0 | V16: =VLOOKUP(J16,$D$356:$H$386,5) -> 0 | X16: =ROUND(V16*T16,0) -> 0 | Z16: =ROUND(X16+T16,0) -> 0 | AD16: =ROUND(AB16*V16,0) -> 0 | AF16: =ROUND(AD16+AB16,0) -> 0
A18: 2 | J18: Select one | T18: =ROUND(L18*(+N18+P18+R18),0) -> 0 | V18: =VLOOKUP(J18,$D$356:$H$386,5) -> 0 | X18: =ROUND(V18*T18,0) -> 0 | Z18: =ROUND(X18+T18,0) -> 0 | AD18: =ROUND(AB18*V18,0) -> 0 | AF18: =ROUND(AD18+AB18,0) -> 0
A20: 3 | J20: Select one | T20: =ROUND(L20*(+N20+P20+R20),0) -> 0 | V20: =VLOOKUP(J20,$D$356:$H$386,5) -> 0 | X20: =ROUND(V20*T20,0) -> 0 | Z20: =ROUND(X20+T20,0) -> 0 | AD20: =ROUND(AB20*V20,0) -> 0 | AF20: =ROUND(AD20+AB20,0) -> 0
A22: 4 | J22: Select one | T22: =ROUND(L22*(+N22+P22+R22),0) -> 0 | V22: =VLOOKUP(J22,$D$356:$H$386,5) -> 0 | X22: =ROUND(V22*T22,0) -> 0 | Z22: =ROUND(X22+T22,0) -> 0 | AD22: =ROUND(AB22*V22,0) -> 0 | AF22: =ROUND(AD22+AB22,0) -> 0
A24: 5 | J24: Select one | T24: =ROUND(L24*(+N24+P24+R24),0) -> 0 | V24: =VLOOKUP(J24,$D$356:$H$386,5) -> 0 | X24: =ROUND(V24*T24,0) -> 0 | Z24: =ROUND(X24+T24,0) -> 0 | AD24: =ROUND(AB24*V24,0) -> 0 | AF24: =ROUND(AD24+AB24,0) -> 0
A26: 6 | J26: Select one | T26: =ROUND(L26*(+N26+P26+R26),0) -> 0 | V26: =VLOOKUP(J26,$D$356:$H$386,5) -> 0 | X26: =ROUND(V26*T26,0) -> 0 | Z26: =ROUND(X26+T26,0) -> 0 | AD26: =ROUND(AB26*V26,0) -> 0 | AF26: =ROUND(AD26+AB26,0) -> 0
A28: 7 | J28: Select one | T28: =ROUND(L28*(+N28+P28+R28),0) -> 0 | V28: =VLOOKUP(J28,$D$356:$H$386,5) -> 0 | X28: =ROUND(V28*T28,0) -> 0 | Z28: =ROUND(X28+T28,0) -> 0 | AD28: =ROUND(AB28*V28,0) -> 0 | AF28: =ROUND(AD28+AB28,0) -> 0
A30: 8 | J30: Select one | T30: =ROUND(L30*(+N30+P30+R30),0) -> 0 | V30: =VLOOKUP(J30,$D$356:$H$386,5) -> 0 | X30: =ROUND(V30*T30,0) -> 0 | Z30: =ROUND(X30+T30,0) -> 0 | AD30: =ROUND(AB30*V30,0) -> 0 | AF30: =ROUND(AD30+AB30,0) -> 0
A32: 9 | J32: Select one | T32: =ROUND(L32*(+N32+P32+R32),0) -> 0 | V32: =VLOOKUP(J32,$D$356:$H$386,5) -> 0 | X32: =ROUND(V32*T32,0) -> 0 | Z32: =ROUND(X32+T32,0) -> 0 | AD32: =ROUND(AB32*V32,0) -> 0 | AF32: =ROUND(AD32+AB32,0) -> 0
A34: 10 | J34: Select one | T34: =ROUND(L34*(+N34+P34+R34),0) -> 0 | V34: =VLOOKUP(J34,$D$356:$H$386,5) -> 0 | X34: =ROUND(V34*T34,0) -> 0 | Z34: =ROUND(X34+T34,0) -> 0 | AD34: =ROUND(AB34*V34,0) -> 0 | AF34: =ROUND(AD34+AB34,0) -> 0
A36: 11 | J36: Select one | T36: =ROUND(L36*(+N36+P36+R36),0) -> 0 | V36: =VLOOKUP(J36,$D$356:$H$386,5) -> 0 | X36: =ROUND(V36*T36,0) -> 0 | Z36: =ROUND(X36+T36,0) -> 0 | AD36: =ROUND(AB36*V36,0) -> 0 | AF36: =ROUND(AD36+AB36,0) -> 0
A38: 12 | J38: Select one | T38: =ROUND(L38*(+N38+P38+R38),0) -> 0 | V38: =VLOOKUP(J38,$D$356:$H$386,5) -> 0 | X38: =ROUND(V38*T38,0) -> 0 | Z38: =ROUND(X38+T38,0) -> 0 | AD38: =ROUND(AB38*V38,0) -> 0 | AF38: =ROUND(AD38+AB38,0) -> 0
X41: Total Senior Personnel | Z41: =SUM(Z16:Z38) -> 0 | AD41: Total Senior Personnel | AF41: =SUM(AF16:AF38) -> 0
B44: Other Personnel
B45: Number of Personnel | L45: Base Salary/ Month | N45: Cal Month | P45: Acad. Month | R45: Summer Month | T45: Requested Salary | V45: Fringe Rate % | X45: Fringe Benefit $ | Z45: Federal Fund Requested $ | AB45: Cost-Shared / Matching Salary | AD45: Fringe Benefit $ | AF45: Cost-Shared / Matching Funds $
D47: Post Doctoral Associate | T47: =ROUND(L47*(+N47+P47+R47)*B47,0) -> 0 | V47: =$H$377 -> 0.33 | X47: =ROUND(V47*T47,0) -> 0 | Z47: =ROUND(X47+T47,0) -> 0 | AD47: =ROUND(AB47*V47,0) -> 0 | AF47: =ROUND(AD47+AB47,0) -> 0
D49: Post Doctoral Associate | T49: =ROUND(L49*(+N49+P49+R49)*B49,0) -> 0 | V49: =$H$377 -> 0.33 | X49: =ROUND(V49*T49,0) -> 0 | Z49: =ROUND(X49+T49,0) -> 0 | AD49: =ROUND(AB49*V49,0) -> 0 | AF49: =ROUND(AD49+AB49,0) -> 0
B51: 0 | D51: Graduate Students | T51: =ROUND(L51*(+N51+P51+R51)*B51,0) -> 0 | V51: =$H$370 -> 0.13 | X51: =ROUND(V51*T51,0) -> 0 | Z51: =ROUND(X51+T51,0) -> 0 | AD51: =ROUND(AB51*V51,0) -> 0 | AF51: =ROUND(AD51+AB51,0) -> 0
B53: 0 | D53: Graduate Students | T53: =ROUND(L53*(+N53+P53+R53)*B53,0) -> 0 | V53: =$H$370 -> 0.13 | X53: =ROUND(V53*T53,0) -> 0 | Z53: =ROUND(X53+T53,0) -> 0 | AD53: =ROUND(AB53*V53,0) -> 0 | AF53: =ROUND(AD53+AB53,0) -> 0
B55: 0 | D55: Undergraduate Students | T55: =ROUND(L55*(+N55+P55+R55)*B55,0) -> 0 | V55: =$H$383 -> 0.046 | X55: =ROUND(V55*T55,0) -> 0 | Z55: =ROUND(X55+T55,0) -> 0 | AD55: =ROUND(AB55*V55,0) -> 0 | AF55: =ROUND(AD55+AB55,0) -> 0
B57: 0 | D57: Undergraduate Students | T57: =ROUND(L57*(+N57+P57+R57)*B57,0) -> 0 | V57: =$H$383 -> 0.046 | X57: =ROUND(V57*T57,0) -> 0 | Z57: =ROUND(X57+T57,0) -> 0 | AD57: =ROUND(AB57*V57,0) -> 0 | AF57: =ROUND(AD57+AB57,0) -> 0
B59: 0 | D59: Secretarial/Clerical | T59: =ROUND(L59*(+N59+P59+R59)*B59,0) -> 0 | V59: =$H$375 -> 0.51 | X59: =ROUND(V59*T59,0) -> 0 | Z59: =ROUND(X59+T59,0) -> 0 | AD59: =ROUND(AB59*V59,0) -> 0 | AF59: =ROUND(AD59+AB59,0) -> 0
B61: 0 | D61: Non-Student Hourly | T61: =ROUND(L61*(+N61+P61+R61)*B61,0) -> 0 | V61: =$H$371 -> 0.12 | X61: =ROUND(V61*T61,0) -> 0 | Z61: =ROUND(X61+T61,0) -> 0 | AD61: =ROUND(AB61*V61,0) -> 0 | AF61: =ROUND(AD61+AB61,0) -> 0
B63: 0 | J63: Select one | T63: =ROUND(L63*(+N63+P63+R63)*B63,0) -> 0 | V63: =VLOOKUP(J63,$D$356:$H$386,5) -> 0 | X63: =ROUND(V63*T63,0) -> 0 | Z63: =ROUND(X63+T63,0) -> 0 | AD63: =ROUND(AB63*V63,0) -> 0 | AF63: =ROUND(AD63+AB63,0) -> 0
B65: 0 | J65: Select one | T65: =ROUND(L65*(+N65+P65+R65)*B65,0) -> 0 | V65: =VLOOKUP(J65,$D$356:$H$386,5) -> 0 | X65: =ROUND(V65*T65,0) -> 0 | Z65: =ROUND(X65+T65,0) -> 0 | AD65: =ROUND(AB65*V65,0) -> 0 | AF65: =ROUND(AD65+AB65,0) -> 0
B67: 0 | J67: Select one | T67: =ROUND(L67*(+N67+P67+R67)*B67,0) -> 0 | V67: =VLOOKUP(J67,$D$356:$H$386,5) -> 0 | X67: =ROUND(V67*T67,0) -> 0 | Z67: =ROUND(X67+T67,0) -> 0 | AD67: =ROUND(AB67*V67,0) -> 0 | AF67: =ROUND(AD67+AB67,0) -> 0
B69: 0 | J69: Select one | T69: =ROUND(L69*(+N69+P69+R69)*B69,0) -> 0 | V69: =VLOOKUP(J69,$D$356:$H$386,5) -> 0 | X69: =ROUND(V69*T69,0) -> 0 | Z69: =ROUND(X69+T69,0) -> 0 | AD69: =ROUND(AB69*V69,0) -> 0 | AF69: =ROUND(AD69+AB69,0) -> 0
B71: 0 | J71: Select one | T71: =ROUND(L71*(+N71+P71+R71)*B71,0) -> 0 | V71: =VLOOKUP(J71,$D$356:$H$386,5) -> 0 | X71: =ROUND(V71*T71,0) -> 0 | Z71: =ROUND(X71+T71,0) -> 0 | AD71: =ROUND(AB71*V71,0) -> 0 | AF71: =ROUND(AD71+AB71,0) -> 0
B73: 0 | J73: Select one | T73: =ROUND(L73*(+N73+P73+R73)*B73,0) -> 0 | V73: =VLOOKUP(J73,$D$356:$H$386,5) -> 0 | X73: =ROUND(V73*T73,0) -> 0 | Z73: =ROUND(X73+T73,0) -> 0 | AD73: =ROUND(AB73*V73,0) -> 0 | AF73: =ROUND(AD73+AB73,0) -> 0
X75: Total Other Personnel | Z75: =SUM(Z47:Z73) -> 0 | AD75: Total Other Personnel | AF75: =SUM(AF47:AF73) -> 0
W77: Year 1 Totals | X77: Fringes | Z77: Salaries
X78: =SUM(X47:X73,X16:X38) -> 0 | Z78: =SUM(T47:T73,T16:T38) -> 0
A79: Worksheet for Project Budget - Salaries & Wages | P79: Year 2
B80: Senior Personnel
B81: Prefix | D81: First Name | F81: Middle Init. | H81: Last Name | J81: Classification | L81: Base Salary/ Month | N81: Cal Month | P81: Acad. Month | R81: Summer Month | T81: Requested Salary | V81: Fringe Rate % | X81: Fringe Benefit $ | Z81: Federal Fund Requested $ | AB81: Cost-Shared / Matching Salary | AD81: Fringe Benefit $ | AF81: Cost-Shared / Matching Funds $
A83: 1 | B83: =+IF(years>1,+B16,0) -> 0 | D83: =+IF(years>1,+D16,0) -> 0 | F83: =+IF(years>1,+F16,0) -> 0 | H83: =+IF(years>1,+H16,0) -> 0 | J83: =+IF(years>1,J16, J16) -> Select one | L83: =+IF(years>1,+L16+(L16*$R$12),0) -> 0 | N83: =+IF(years>1,+N16,0) -> 0 | P83: =+IF(years>1,+P16,0) -> 0 | R83: =+IF(years>1,+R16,0) -> 0 | T83: =ROUND(L83*(+N83+P83+R83),0) -> 0 | V83: =VLOOKUP(J83,$D$356:$H$386,5) -> 0 | X83: =ROUND(V83*T83,0) -> 0 | Z83: =ROUND(X83+T83,0) -> 0 | AB83: =+IF(years>1,+AB16+(AB16*$R$12),0) -> 0 | AD83: =ROUND(AB83*V83,0) -> 0 | AF83: =ROUND(AD83+AB83,0) -> 0
A85: 2 | B85: =+IF(years>1,+B18,0) -> 0 | D85: =+IF(years>1,+D18,0) -> 0 | F85: =+IF(years>1,+F18,0) -> 0 | H85: =+IF(years>1,+H18,0) -> 0 | J85: =+IF(years>1,J18, J18) -> Select one | L85: =+IF(years>1,+L18+(L18*$R$12),0) -> 0 | N85: =+IF(years>1,+N18,0) -> 0 | P85: =+IF(years>1,+P18,0) -> 0 | R85: =+IF(years>1,+R18,0) -> 0 | T85: =ROUND(L85*(+N85+P85+R85),0) -> 0 | V85: =VLOOKUP(J85,$D$356:$H$386,5) -> 0 | X85: =ROUND(V85*T85,0) -> 0 | Z85: =ROUND(X85+T85,0) -> 0 | AB85: =+IF(years>1,+AB18+(AB18*$R$12),0) -> 0 | AD85: =ROUND(AB85*V85,0) -> 0 | AF85: =ROUND(AD85+AB85,0) -> 0
A87: 3 | B87: =+IF(years>1,+B20,0) -> 0 | D87: =+IF(years>1,+D20,0) -> 0 | F87: =+IF(years>1,+F20,0) -> 0 | H87: =+IF(years>1,+H20,0) -> 0 | J87: =+IF(years>1,J20, J20) -> Select one | L87: =+IF(years>1,+L20+(L20*$R$12),0) -> 0 | N87: =+IF(years>1,+N20,0) -> 0 | P87: =+IF(years>1,+P20,0) -> 0 | R87: =+IF(years>1,+R20,0) -> 0 | T87: =ROUND(L87*(+N87+P87+R87),0) -> 0 | V87: =VLOOKUP(J87,$D$356:$H$386,5) -> 0 | X87: =ROUND(V87*T87,0) -> 0 | Z87: =ROUND(X87+T87,0) -> 0 | AB87: =+IF(years>1,+AB20+(AB20*$R$12),0) -> 0 | AD87: =ROUND(AB87*V87,0) -> 0 | AF87: =ROUND(AD87+AB87,0) -> 0
A89: 4 | B89: =+IF(years>1,+B22,0) -> 0 | D89: =+IF(years>1,+D22,0) -> 0 | F89: =+IF(years>1,+F22,0) -> 0 | H89: =+IF(years>1,+H22,0) -> 0 | J89: =+IF(years>1,J22, J22) -> Select one | L89: =+IF(years>1,+L22+(L22*$R$12),0) -> 0 | N89: =+IF(years>1,+N22,0) -> 0 | P89: =+IF(years>1,+P22,0) -> 0 | R89: =+IF(years>1,+R22,0) -> 0 | T89: =ROUND(L89*(+N89+P89+R89),0) -> 0 | V89: =VLOOKUP(J89,$D$356:$H$386,5) -> 0 | X89: =ROUND(V89*T89,0) -> 0 | Z89: =ROUND(X89+T89,0) -> 0 | AB89: =+IF(years>1,+AB22+(AB22*$R$12),0) -> 0 | AD89: =ROUND(AB89*V89,0) -> 0 | AF89: =ROUND(AD89+AB89,0) -> 0
A91: 5 | B91: =+IF(years>1,+B24,0) -> 0 | D91: =+IF(years>1,+D24,0) -> 0 | F91: =+IF(years>1,+F24,0) -> 0 | H91: =+IF(years>1,+H24,0) -> 0 | J91: =+IF(years>1,J24, J24) -> Select one | L91: =+IF(years>1,+L24+(L24*$R$12),0) -> 0 | N91: =+IF(years>1,+N24,0) -> 0 | P91: =+IF(years>1,+P24,0) -> 0 | R91: =+IF(years>1,+R24,0) -> 0 | T91: =ROUND(L91*(+N91+P91+R91),0) -> 0 | V91: =VLOOKUP(J91,$D$356:$H$386,5) -> 0 | X91: =ROUND(V91*T91,0) -> 0 | Z91: =ROUND(X91+T91,0) -> 0 | AB91: =+IF(years>1,+AB24+(AB24*$R$12),0) -> 0 | AD91: =ROUND(AB91*V91,0) -> 0 | AF91: =ROUND(AD91+AB91,0) -> 0
A93: 6 | B93: =+IF(years>1,+B26,0) -> 0 | D93: =+IF(years>1,+D26,0) -> 0 | F93: =+IF(years>1,+F26,0) -> 0 | H93: =+IF(years>1,+H26,0) -> 0 | J93: =+IF(years>1,J26, J26) -> Select one | L93: =+IF(years>1,+L26+(L26*$R$12),0) -> 0 | N93: =+IF(years>1,+N26,0) -> 0 | P93: =+IF(years>1,+P26,0) -> 0 | R93: =+IF(years>1,+R26,0) -> 0 | T93: =ROUND(L93*(+N93+P93+R93),0) -> 0 | V93: =VLOOKUP(J93,$D$356:$H$386,5) -> 0 | X93: =ROUND(V93*T93,0) -> 0 | Z93: =ROUND(X93+T93,0) -> 0 | AB93: =+IF(years>1,+AB26+(AB26*$R$12),0) -> 0 | AD93: =ROUND(AB93*V93,0) -> 0 | AF93: =ROUND(AD93+AB93,0) -> 0
A95: 7 | B95: =+IF(years>1,+B28,0) -> 0 | D95: =+IF(years>1,+D28,0) -> 0 | F95: =+IF(years>1,+F28,0) -> 0 | H95: =+IF(years>1,+H28,0) -> 0 | J95: =+IF(years>1,J28, J28) -> Select one | L95: =+IF(years>1,+L28+(L28*$R$12),0) -> 0 | N95: =+IF(years>1,+N28,0) -> 0 | P95: =+IF(years>1,+P28,0) -> 0 | R95: =+IF(years>1,+R28,0) -> 0 | T95: =ROUND(L95*(+N95+P95+R95),0) -> 0 | V95: =VLOOKUP(J95,$D$356:$H$386,5) -> 0 | X95: =ROUND(V95*T95,0) -> 0 | Z95: =ROUND(X95+T95,0) -> 0 | AB95: =+IF(years>1,+AB28+(AB28*$R$12),0) -> 0 | AD95: =ROUND(AB95*V95,0) -> 0 | AF95: =ROUND(AD95+AB95,0) -> 0
A97: 8 | B97: =+IF(years>1,+B30,0) -> 0 | D97: =+IF(years>1,+D30,0) -> 0 | F97: =+IF(years>1,+F30,0) -> 0 | H97: =+IF(years>1,+H30,0) -> 0 | J97: =+IF(years>1,J30, J30) -> Select one | L97: =+IF(years>1,+L30+(L30*$R$12),0) -> 0 | N97: =+IF(years>1,+N30,0) -> 0 | P97: =+IF(years>1,+P30,0) -> 0 | R97: =+IF(years>1,+R30,0) -> 0 | T97: =ROUND(L97*(+N97+P97+R97),0) -> 0 | V97: =VLOOKUP(J97,$D$356:$H$386,5) -> 0 | X97: =ROUND(V97*T97,0) -> 0 | Z97: =ROUND(X97+T97,0) -> 0 | AB97: =+IF(years>1,+AB30+(AB30*$R$12),0) -> 0 | AD97: =ROUND(AB97*V97,0) -> 0 | AF97: =ROUND(AD97+AB97,0) -> 0
A99: 9 | B99: =+IF(years>1,+B32,0) -> 0 | D99: =+IF(years>1,+D32,0) -> 0 | F99: =+IF(years>1,+F32,0) -> 0 | H99: =+IF(years>1,+H32,0) -> 0 | J99: =+IF(years>1,J32, J32) -> Select one | L99: =+IF(years>1,+L32+(L32*$R$12),0) -> 0 | N99: =+IF(years>1,+N32,0) -> 0 | P99: =+IF(years>1,+P32,0) -> 0 | R99: =+IF(years>1,+R32,0) -> 0 | T99: =ROUND(L99*(+N99+P99+R99),0) -> 0 | V99: =VLOOKUP(J99,$D$356:$H$386,5) -> 0 | X99: =ROUND(V99*T99,0) -> 0 | Z99: =ROUND(X99+T99,0) -> 0 | AB99: =+IF(years>1,+AB32+(AB32*$R$12),0) -> 0 | AD99: =ROUND(AB99*V99,0) -> 0 | AF99: =ROUND(AD99+AB99,0) -> 0
A101: 10 | B101: =+IF(years>1,+B34,0) -> 0 | D101: =+IF(years>1,+D34,0) -> 0 | F101: =+IF(years>1,+F34,0) -> 0 | H101: =+IF(years>1,+H34,0) -> 0 | J101: =+IF(years>1,J34, J34) -> Select one | L101: =+IF(years>1,+L34+(L34*$R$12),0) -> 0 | N101: =+IF(years>1,+N34,0) -> 0 | P101: =+IF(years>1,+P34,0) -> 0 | R101: =+IF(years>1,+R34,0) -> 0 | T101: =ROUND(L101*(+N101+P101+R101),0) -> 0 | V101: =VLOOKUP(J101,$D$356:$H$386,5) -> 0 | X101: =ROUND(V101*T101,0) -> 0 | Z101: =ROUND(X101+T101,0) -> 0 | AB101: =+IF(years>1,+AB34+(AB34*$R$12),0) -> 0 | AD101: =ROUND(AB101*V101,0) -> 0 | AF101: =ROUND(AD101+AB101,0) -> 0
A103: 11 | B103: =+IF(years>1,+B36,0) -> 0 | D103: =+IF(years>1,+D36,0) -> 0 | F103: =+IF(years>1,+F36,0) -> 0 | H103: =+IF(years>1,+H36,0) -> 0 | J103: =+IF(years>1,J36, J36) -> Select one | L103: =+IF(years>1,+L36+(L36*$R$12),0) -> 0 | N103: =+IF(years>1,+N36,0) -> 0 | P103: =+IF(years>1,+P36,0) -> 0 | R103: =+IF(years>1,+R36,0) -> 0 | T103: =ROUND(L103*(+N103+P103+R103),0) -> 0 | V103: =VLOOKUP(J103,$D$356:$H$386,5) -> 0 | X103: =ROUND(V103*T103,0) -> 0 | Z103: =ROUND(X103+T103,0) -> 0 | AB103: =+IF(years>1,+AB36+(AB36*$R$12),0) -> 0 | AD103: =ROUND(AB103*V103,0) -> 0 | AF103: =ROUND(AD103+AB103,0) -> 0
A105: 12 | B105: =+IF(years>1,+B38,0) -> 0 | D105: =+IF(years>1,+D38,0) -> 0 | F105: =+IF(years>1,+F38,0) -> 0 | H105: =+IF(years>1,+H38,0) -> 0 | J105: =+IF(years>1,J38, J38) -> Select one | L105: =+IF(years>1,+L38+(L38*$R$12),0) -> 0 | N105: =+IF(years>1,+N38,0) -> 0 | P105: =+IF(years>1,+P38,0) -> 0 | R105: =+IF(years>1,+R38,0) -> 0 | T105: =ROUND(L105*(+N105+P105+R105),0) -> 0 | V105: =VLOOKUP(J105,$D$356:$H$386,5) -> 0 | X105: =ROUND(V105*T105,0) -> 0 | Z105: =ROUND(X105+T105,0) -> 0 | AB105: =+IF(years>1,+AB38+(AB38*$R$12),0) -> 0 | AD105: =ROUND(AB105*V105,0) -> 0 | AF105: =ROUND(AD105+AB105,0) -> 0
X108: Total Senior Personnel | Z108: =SUM(Z83:Z105) -> 0 | AD108: Total Senior Personnel | AF108: =SUM(AF83:AF105) -> 0
B111: Other Personnel
B112: Number of Personnel | L112: Base Salary/ Month | N112: Cal Month | P112: Acad. Month | R112: Summer Month | T112: Requested Salary | V112: Fringe Rate % | X112: Fringe Benefit $ | Z112: Federal Fund Requested $ | AB112: Cost-Shared / Matching Salary | AD112: Fringe Benefit $ | AF112: Cost-Shared / Matching Funds $
B114: =IF(years>1,+B47,0) -> 0 | D114: Post Doctoral Associate | L114: =+IF(years>1,+L47+(L47*$R$12),0) -> 0 | N114: =+IF(years>1,+N47,0) -> 0 | P114: =+IF(years>1,+P47,0) -> 0 | R114: =+IF(years>1,+R47,0) -> 0 | T114: =ROUND(L114*(+N114+P114+R114)*B114,0) -> 0 | V114: =$H$377 -> 0.33 | X114: =ROUND(V114*T114,0) -> 0 | Z114: =ROUND(X114+T114,0) -> 0 | AB114: =+IF(years>1,+AB47+(AB47*$R$12),0) -> 0 | AD114: =ROUND(AB114*V114,0) -> 0 | AF114: =ROUND(AD114+AB114,0) -> 0
B116: =IF(years>1,+B49,0) -> 0 | D116: Post Doctoral Associate | L116: =+IF(years>1,+L49+(L49*$R$12),0) -> 0 | N116: =+IF(years>1,+N49,0) -> 0 | P116: =+IF(years>1,+P49,0) -> 0 | R116: =+IF(years>1,+R49,0) -> 0 | T116: =ROUND(L116*(+N116+P116+R116)*B116,0) -> 0 | V116: =$H$377 -> 0.33 | X116: =ROUND(V116*T116,0) -> 0 | Z116: =ROUND(X116+T116,0) -> 0 | AB116: =+IF(years>1,+AB49+(AB49*$R$12),0) -> 0 | AD116: =+AB116*V116 -> 0 | AF116: =ROUND(AD116+AB116,0) -> 0
B118: =IF(years>1,+B51,0) -> 0 | D118: Graduate Students | L118: =+IF(years>1,+L51+(L51*$R$12),0) -> 0 | N118: =+IF(years>1,+N51,0) -> 0 | P118: =+IF(years>1,+P51,0) -> 0 | R118: =+IF(years>1,+R51,0) -> 0 | T118: =ROUND(L118*(+N118+P118+R118)*B118,0) -> 0 | V118: =$H$370 -> 0.13 | X118: =ROUND(V118*T118,0) -> 0 | Z118: =ROUND(X118+T118,0) -> 0 | AB118: =+IF(years>1,+AB51+(AB51*$R$12),0) -> 0 | AD118: =+AB118*V118 -> 0 | AF118: =ROUND(AD118+AB118,0) -> 0
B120: =IF(years>1,+B53,0) -> 0 | D120: Graduate Students | L120: =+IF(years>1,+L53+(L53*$R$12),0) -> 0 | N120: =+IF(years>1,+N53,0) -> 0 | P120: =+IF(years>1,+P53,0) -> 0 | R120: =+IF(years>1,+R53,0) -> 0 | T120: =ROUND(L120*(+N120+P120+R120)*B120,0) -> 0 | V120: =$H$370 -> 0.13 | X120: =ROUND(V120*T120,0) -> 0 | Z120: =ROUND(X120+T120,0) -> 0 | AB120: =+IF(years>1,+AB53+(AB53*$R$12),0) -> 0 | AD120: =+AB120*V120 -> 0 | AF120: =ROUND(AD120+AB120,0) -> 0
B122: =IF(years>1,+B55,0) -> 0 | D122: Undergraduate Students | L122: =+IF(years>1,+L55+(L55*$R$12),0) -> 0 | N122: =+IF(years>1,+N55,0) -> 0 | P122: =+IF(years>1,+P55,0) -> 0 | R122: =+IF(years>1,+R55,0) -> 0 | T122: =ROUND(L122*(+N122+P122+R122)*B122,0) -> 0 | V122: =$H$383 -> 0.046 | X122: =ROUND(V122*T122,0) -> 0 | Z122: =ROUND(X122+T122,0) -> 0 | AB122: =+IF(years>1,+AB55+(AB55*$R$12),0) -> 0 | AD122: =+AB122*V122 -> 0 | AF122: =ROUND(AD122+AB122,0) -> 0
B124: =IF(years>1,+B57,0) -> 0 | D124: Undergraduate Students | L124: =+IF(years>1,+L57+(L57*$R$12),0) -> 0 | N124: =+IF(years>1,+N57,0) -> 0 | P124: =+IF(years>1,+P57,0) -> 0 | R124: =+IF(years>1,+R57,0) -> 0 | T124: =ROUND(L124*(+N124+P124+R124)*B124,0) -> 0 | V124: =$H$383 -> 0.046 | X124: =ROUND(V124*T124,0) -> 0 | Z124: =ROUND(X124+T124,0) -> 0 | AB124: =+IF(years>1,+AB57+(AB57*$R$12),0) -> 0 | AD124: =+AB124*V124 -> 0 | AF124: =ROUND(AD124+AB124,0) -> 0
B126: =IF(years>1,+B59,0) -> 0 | D126: Secretarial/Clerical | L126: =+IF(years>1,+L59+(L59*$R$12),0) -> 0 | N126: =+IF(years>1,+N59,0) -> 0 | P126: =+IF(years>1,+P59,0) -> 0 | R126: =+IF(years>1,+R59,0) -> 0 | T126: =ROUND(L126*(+N126+P126+R126)*B126,0) -> 0 | V126: =$H$375 -> 0.51 | X126: =ROUND(V126*T126,0) -> 0 | Z126: =ROUND(X126+T126,0) -> 0 | AB126: =+IF(years>1,+AB59+(AB59*$R$12),0) -> 0 | AD126: =+AB126*V126 -> 0 | AF126: =ROUND(AD126+AB126,0) -> 0
B128: =IF(years>1,+B61,0) -> 0 | D128: Non-Student Hourly | L128: =+IF(years>1,+L61+(L61*$R$12),0) -> 0 | N128: =+IF(years>1,+N61,0) -> 0 | P128: =+IF(years>1,+P61,0) -> 0 | R128: =+IF(years>1,+R61,0) -> 0 | T128: =ROUND(L128*(+N128+P128+R128)*B128,0) -> 0 | V128: =$H$371 -> 0.12 | X128: =ROUND(V128*T128,0) -> 0 | Z128: =ROUND(X128+T128,0) -> 0 | AB128: =+IF(years>1,+AB61+(AB61*$R$12),0) -> 0 | AD128: =+AB128*V128 -> 0 | AF128: =ROUND(AD128+AB128,0) -> 0
B130: =IF(years>1,+B63,0) -> 0 | D130: =+IF(years>1,+D63,0) -> 0 | J130: =+IF(years>1,+J63,J63) -> Select one | L130: =+IF(years>1,+L63+(L63*$R$12),0) -> 0 | N130: =+IF(years>1,+N63,0) -> 0 | P130: =+IF(years>1,+P63,0) -> 0 | R130: =+IF(years>1,+R63,0) -> 0 | T130: =ROUND(L130*(+N130+P130+R130)*B130,0) -> 0 | V130: =VLOOKUP(J130,$D$356:$H$386,5) -> 0 | X130: =ROUND(V130*T130,0) -> 0 | Z130: =ROUND(X130+T130,0) -> 0 | AB130: =+IF(years>1,+AB63+(AB63*$R$12),0) -> 0 | AD130: =+AB130*V130 -> 0 | AF130: =ROUND(AD130+AB130,0) -> 0
B132: =IF(years>1,+B65,0) -> 0 | D132: =+IF(years>1,+D65,0) -> 0 | J132: =+IF(years>1,+J65,J65) -> Select one | L132: =+IF(years>1,+L65+(L65*$R$12),0) -> 0 | N132: =+IF(years>1,+N65,0) -> 0 | P132: =+IF(years>1,+P65,0) -> 0 | R132: =+IF(years>1,+R65,0) -> 0 | T132: =ROUND(L132*(+N132+P132+R132)*B132,0) -> 0 | V132: =VLOOKUP(J132,$D$356:$H$386,5) -> 0 | X132: =ROUND(V132*T132,0) -> 0 | Z132: =ROUND(X132+T132,0) -> 0 | AB132: =+IF(years>1,+AB65+(AB65*$R$12),0) -> 0 | AD132: =+AB132*V132 -> 0 | AF132: =ROUND(AD132+AB132,0) -> 0
B134: =IF(years>1,+B67,0) -> 0 | D134: =+IF(years>1,+D67,0) -> 0 | J134: =+IF(years>1,+J67,J67) -> Select one | L134: =+IF(years>1,+L67+(L67*$R$12),0) -> 0 | N134: =+IF(years>1,+N67,0) -> 0 | P134: =+IF(years>1,+P67,0) -> 0 | R134: =+IF(years>1,+R67,0) -> 0 | T134: =ROUND(L134*(+N134+P134+R134)*B134,0) -> 0 | V134: =VLOOKUP(J134,$D$356:$H$386,5) -> 0 | X134: =ROUND(V134*T134,0) -> 0 | Z134: =ROUND(X134+T134,0) -> 0 | AB134: =+IF(years>1,+AB67+(AB67*$R$12),0) -> 0 | AD134: =+AB134*V134 -> 0 | AF134: =ROUND(AD134+AB134,0) -> 0
B136: =IF(years>1,+B69,0) -> 0 | D136: =+IF(years>1,+D69,0) -> 0 | J136: =+IF(years>1,+J69,J69) -> Select one | L136: =+IF(years>1,+L69+(L69*$R$12),0) -> 0 | N136: =+IF(years>1,+N69,0) -> 0 | P136: =+IF(years>1,+P69,0) -> 0 | R136: =+IF(years>1,+R69,0) -> 0 | T136: =ROUND(L136*(+N136+P136+R136)*B136,0) -> 0 | V136: =VLOOKUP(J136,$D$356:$H$386,5) -> 0 | X136: =ROUND(V136*T136,0) -> 0 | Z136: =ROUND(X136+T136,0) -> 0 | AB136: =+IF(years>1,+AB69+(AB69*$R$12),0) -> 0 | AD136: =+AB136*V136 -> 0 | AF136: =ROUND(AD136+AB136,0) -> 0
B138: =IF(years>1,+B71,0) -> 0 | D138: =+IF(years>1,+D71,0) -> 0 | J138: =+IF(years>1,+J71,J71) -> Select one | L138: =+IF(years>1,+L71+(L71*$R$12),0) -> 0 | N138: =+IF(years>1,+N71,0) -> 0 | P138: =+IF(years>1,+P71,0) -> 0 | R138: =+IF(years>1,+R71,0) -> 0 | T138: =ROUND(L138*(+N138+P138+R138)*B138,0) -> 0 | V138: =VLOOKUP(J138,$D$356:$H$386,5) -> 0 | X138: =ROUND(V138*T138,0) -> 0 | Z138: =ROUND(X138+T138,0) -> 0 | AB138: =+IF(years>1,+AB71+(AB71*$R$12),0) -> 0 | AD138: =+AB138*V138 -> 0 | AF138: =ROUND(AD138+AB138,0) -> 0
B140: =IF(years>1,+B73,0) -> 0 | D140: =+IF(years>1,+D73,0) -> 0 | J140: =+IF(years>1,+J73,J73) -> Select one | L140: =+IF(years>1,+L73+(L73*$R$12),0) -> 0 | N140: =+IF(years>1,+N73,0) -> 0 | P140: =+IF(years>1,+P73,0) -> 0 | R140: =+IF(years>1,+R73,0) -> 0 | T140: =ROUND(L140*(+N140+P140+R140)*B140,0) -> 0 | V140: =VLOOKUP(J140,$D$356:$H$386,5) -> 0 | X140: =ROUND(V140*T140,0) -> 0 | Z140: =ROUND(X140+T140,0) -> 0 | AB140: =+IF(years>1,+AB73+(AB73*$R$12),0) -> 0 | AD140: =+AB140*V140 -> 0 | AF140: =ROUND(AD140+AB140,0) -> 0
X143: Total Other Personnel | Z143: =SUM(Z114:Z140) -> 0 | AD143: Total Other Personnel | AF143: =SUM(AF114:AF140) -> 0
W145: Year 2 Totals | X145: Fringes | Z145: Salaries
X146: =SUM(X114:X140,X83:X105) -> 0 | Z146: =SUM(T114:T140,T83:T107) -> 0
A147: Worksheet for Project Budget - Salaries & Wages | P147: Year 3
B148: Senior Personnel
B149: Prefix | D149: First Name | F149: Middle Init. | H149: Last Name | J149: Classification | L149: Base Salary/ Month | N149: Cal Month | P149: Acad. Month | R149: Summer Month | T149: Requested Salary | V149: Fringe Rate % | X149: Fringe Benefit $ | Z149: Federal Fund Requested $ | AB149: Cost-Shared / Matching Salary | AD149: Fringe Benefit $ | AF149: Cost-Shared / Matching Funds $
A151: 1 | B151: =+IF(years>2,+B83,0) -> 0 | D151: =+IF(years>2,+D83,0) -> 0 | F151: =+IF(years>2,+F83,0) -> 0 | H151: =+IF(years>2,+H83,0) -> 0 | J151: =+IF(years>2,+J83,J83) -> Select one | L151: =+IF(years>2,+L83+(L83*$R$12),0) -> 0 | N151: =+IF(years>2,+N83,0) -> 0 | P151: =+IF(years>2,+P83,0) -> 0 | R151: =+IF(years>2,+R83,0) -> 0 | T151: =ROUND(L151*(+N151+P151+R151),0) -> 0 | V151: =VLOOKUP(J151,$D$356:$H$386,5) -> 0 | X151: =ROUND(V151*T151,0) -> 0 | Z151: =ROUND(X151+T151,0) -> 0 | AB151: =+IF(years>2,+AB83+(AB83*$R$12),0) -> 0 | AD151: =ROUND(AB151*V151,0) -> 0 | AF151: =ROUND(AD151+AB151,0) -> 0
A153: 2 | B153: =+IF(years>2,+B85,0) -> 0 | D153: =+IF(years>2,+D85,0) -> 0 | F153: =+IF(years>2,+F85,0) -> 0 | H153: =+IF(years>2,+H85,0) -> 0 | J153: =+IF(years>2,+J85,J85) -> Select one | L153: =+IF(years>2,+L85+(L85*$R$12),0) -> 0 | N153: =+IF(years>2,+N85,0) -> 0 | P153: =+IF(years>2,+P85,0) -> 0 | R153: =+IF(years>2,+R85,0) -> 0 | T153: =ROUND(L153*(+N153+P153+R153),0) -> 0 | V153: =VLOOKUP(J153,$D$356:$H$386,5) -> 0 | X153: =ROUND(V153*T153,0) -> 0 | Z153: =ROUND(X153+T153,0) -> 0 | AB153: =+IF(years>2,+AB85+(AB85*$R$12),0) -> 0 | AD153: =ROUND(AB153*V153,0) -> 0 | AF153: =ROUND(AD153+AB153,0) -> 0
A155: 3 | B155: =+IF(years>2,+B87,0) -> 0 | D155: =+IF(years>2,+D87,0) -> 0 | F155: =+IF(years>2,+F87,0) -> 0 | H155: =+IF(years>2,+H87,0) -> 0 | J155: =+IF(years>2,+J87,J87) -> Select one | L155: =+IF(years>2,+L87+(L87*$R$12),0) -> 0 | N155: =+IF(years>2,+N87,0) -> 0 | P155: =+IF(years>2,+P87,0) -> 0 | R155: =+IF(years>2,+R87,0) -> 0 | T155: =ROUND(L155*(+N155+P155+R155),0) -> 0 | V155: =VLOOKUP(J155,$D$356:$H$386,5) -> 0 | X155: =ROUND(V155*T155,0) -> 0 | Z155: =ROUND(X155+T155,0) -> 0 | AB155: =+IF(years>2,+AB87+(AB87*$R$12),0) -> 0 | AD155: =ROUND(AB155*V155,0) -> 0 | AF155: =ROUND(AD155+AB155,0) -> 0
A157: 4 | B157: =+IF(years>2,+B89,0) -> 0 | D157: =+IF(years>2,+D89,0) -> 0 | F157: =+IF(years>2,+F89,0) -> 0 | H157: =+IF(years>2,+H89,0) -> 0 | J157: =+IF(years>2,+J89,J89) -> Select one | L157: =+IF(years>2,+L89+(L89*$R$12),0) -> 0 | N157: =+IF(years>2,+N89,0) -> 0 | P157: =+IF(years>2,+P89,0) -> 0 | R157: =+IF(years>2,+R89,0) -> 0 | T157: =ROUND(L157*(+N157+P157+R157),0) -> 0 | V157: =VLOOKUP(J157,$D$356:$H$386,5) -> 0 | X157: =ROUND(V157*T157,0) -> 0 | Z157: =ROUND(X157+T157,0) -> 0 | AB157: =+IF(years>2,+AB89+(AB89*$R$12),0) -> 0 | AD157: =ROUND(AB157*V157,0) -> 0 | AF157: =ROUND(AD157+AB157,0) -> 0
A159: 5 | B159: =+IF(years>2,+B91,0) -> 0 | D159: =+IF(years>2,+D91,0) -> 0 | F159: =+IF(years>2,+F91,0) -> 0 | H159: =+IF(years>2,+H91,0) -> 0 | J159: =+IF(years>2,+J91,J91) -> Select one | L159: =+IF(years>2,+L91+(L91*$R$12),0) -> 0 | N159: =+IF(years>2,+N91,0) -> 0 | P159: =+IF(years>2,+P91,0) -> 0 | R159: =+IF(years>2,+R91,0) -> 0 | T159: =ROUND(L159*(+N159+P159+R159),0) -> 0 | V159: =VLOOKUP(J159,$D$356:$H$386,5) -> 0 | X159: =ROUND(V159*T159,0) -> 0 | Z159: =ROUND(X159+T159,0) -> 0 | AB159: =+IF(years>2,+AB91+(AB91*$R$12),0) -> 0 | AD159: =ROUND(AB159*V159,0) -> 0 | AF159: =ROUND(AD159+AB159,0) -> 0
A161: 6 | B161: =+IF(years>2,+B93,0) -> 0 | D161: =+IF(years>2,+D93,0) -> 0 | F161: =+IF(years>2,+F93,0) -> 0 | H161: =+IF(years>2,+H93,0) -> 0 | J161: =+IF(years>2,+J93,J93) -> Select one | L161: =+IF(years>2,+L93+(L93*$R$12),0) -> 0 | N161: =+IF(years>2,+N93,0) -> 0 | P161: =+IF(years>2,+P93,0) -> 0 | R161: =+IF(years>2,+R93,0) -> 0 | T161: =ROUND(L161*(+N161+P161+R161),0) -> 0 | V161: =VLOOKUP(J161,$D$356:$H$386,5) -> 0 | X161: =ROUND(V161*T161,0) -> 0 | Z161: =ROUND(X161+T161,0) -> 0 | AB161: =+IF(years>2,+AB93+(AB93*$R$12),0) -> 0 | AD161: =ROUND(AB161*V161,0) -> 0 | AF161: =ROUND(AD161+AB161,0) -> 0
A163: 7 | B163: =+IF(years>2,+B95,0) -> 0 | D163: =+IF(years>2,+D95,0) -> 0 | F163: =+IF(years>2,+F95,0) -> 0 | H163: =+IF(years>2,+H95,0) -> 0 | J163: =+IF(years>2,+J95,J95) -> Select one | L163: =+IF(years>2,+L95+(L95*$R$12),0) -> 0 | N163: =+IF(years>2,+N95,0) -> 0 | P163: =+IF(years>2,+P95,0) -> 0 | R163: =+IF(years>2,+R95,0) -> 0 | T163: =ROUND(L163*(+N163+P163+R163),0) -> 0 | V163: =VLOOKUP(J163,$D$356:$H$386,5) -> 0 | X163: =ROUND(V163*T163,0) -> 0 | Z163: =ROUND(X163+T163,0) -> 0 | AB163: =+IF(years>2,+AB95+(AB95*$R$12),0) -> 0 | AD163: =ROUND(AB163*V163,0) -> 0 | AF163: =ROUND(AD163+AB163,0) -> 0
A165: 8 | B165: =+IF(years>2,+B97,0) -> 0 | D165: =+IF(years>2,+D97,0) -> 0 | F165: =+IF(years>2,+F97,0) -> 0 | H165: =+IF(years>2,+H97,0) -> 0 | J165: =+IF(years>2,+J97,J97) -> Select one | L165: =+IF(years>2,+L97+(L97*$R$12),0) -> 0 | N165: =+IF(years>2,+N97,0) -> 0 | P165: =+IF(years>2,+P97,0) -> 0 | R165: =+IF(years>2,+R97,0) -> 0 | T165: =ROUND(L165*(+N165+P165+R165),0) -> 0 | V165: =VLOOKUP(J165,$D$356:$H$386,5) -> 0 | X165: =ROUND(V165*T165,0) -> 0 | Z165: =ROUND(X165+T165,0) -> 0 | AB165: =+IF(years>2,+AB97+(AB97*$R$12),0) -> 0 | AD165: =ROUND(AB165*V165,0) -> 0 | AF165: =ROUND(AD165+AB165,0) -> 0
A167: 9 | B167: =+IF(years>2,+B99,0) -> 0 | D167: =+IF(years>2,+D99,0) -> 0 | F167: =+IF(years>2,+F99,0) -> 0 | H167: =+IF(years>2,+H99,0) -> 0 | J167: =+IF(years>2,+J99,J99) -> Select one | L167: =+IF(years>2,+L99+(L99*$R$12),0) -> 0 | N167: =+IF(years>2,+N99,0) -> 0 | P167: =+IF(years>2,+P99,0) -> 0 | R167: =+IF(years>2,+R99,0) -> 0 | T167: =ROUND(L167*(+N167+P167+R167),0) -> 0 | V167: =VLOOKUP(J167,$D$356:$H$386,5) -> 0 | X167: =ROUND(V167*T167,0) -> 0 | Z167: =ROUND(X167+T167,0) -> 0 | AB167: =+IF(years>2,+AB99+(AB99*$R$12),0) -> 0 | AD167: =ROUND(AB167*V167,0) -> 0 | AF167: =ROUND(AD167+AB167,0) -> 0
A169: 10 | B169: =+IF(years>2,+B101,0) -> 0 | D169: =+IF(years>2,+D101,0) -> 0 | F169: =+IF(years>2,+F101,0) -> 0 | H169: =+IF(years>2,+H101,0) -> 0 | J169: =+IF(years>2,+J101,J101) -> Select one | L169: =+IF(years>2,+L101+(L101*$R$12),0) -> 0 | N169: =+IF(years>2,+N101,0) -> 0 | P169: =+IF(years>2,+P101,0) -> 0 | R169: =+IF(years>2,+R101,0) -> 0 | T169: =ROUND(L169*(+N169+P169+R169),0) -> 0 | V169: =VLOOKUP(J169,$D$356:$H$386,5) -> 0 | X169: =ROUND(V169*T169,0) -> 0 | Z169: =ROUND(X169+T169,0) -> 0 | AB169: =+IF(years>2,+AB101+(AB101*$R$12),0) -> 0 | AD169: =ROUND(AB169*V169,0) -> 0 | AF169: =ROUND(AD169+AB169,0) -> 0
A171: 11 | B171: =+IF(years>2,+B103,0) -> 0 | D171: =+IF(years>2,+D103,0) -> 0 | F171: =+IF(years>2,+F103,0) -> 0 | H171: =+IF(years>2,+H103,0) -> 0 | J171: =+IF(years>2,+J103,J103) -> Select one | L171: =+IF(years>2,+L103+(L103*$R$12),0) -> 0 | N171: =+IF(years>2,+N103,0) -> 0 | P171: =+IF(years>2,+P103,0) -> 0 | R171: =+IF(years>2,+R103,0) -> 0 | T171: =ROUND(L171*(+N171+P171+R171),0) -> 0 | V171: =VLOOKUP(J171,$D$356:$H$386,5) -> 0 | X171: =ROUND(V171*T171,0) -> 0 | Z171: =ROUND(X171+T171,0) -> 0 | AB171: =+IF(years>2,+AB103+(AB103*$R$12),0) -> 0 | AD171: =ROUND(AB171*V171,0) -> 0 | AF171: =ROUND(AD171+AB171,0) -> 0
A173: 12 | B173: =+IF(years>2,+B105,0) -> 0 | D173: =+IF(years>2,+D105,0) -> 0 | F173: =+IF(years>2,+F105,0) -> 0 | H173: =+IF(years>2,+H105,0) -> 0 | J173: =+IF(years>2,+J105,J105) -> Select one | L173: =+IF(years>2,+L105+(L105*$R$12),0) -> 0 | N173: =+IF(years>2,+N105,0) -> 0 | P173: =+IF(years>2,+P105,0) -> 0 | R173: =+IF(years>2,+R105,0) -> 0 | T173: =ROUND(L173*(+N173+P173+R173),0) -> 0 | V173: =VLOOKUP(J173,$D$356:$H$386,5) -> 0 | X173: =ROUND(V173*T173,0) -> 0 | Z173: =ROUND(X173+T173,0) -> 0 | AB173: =+IF(years>2,+AB105+(AB105*$R$12),0) -> 0 | AD173: =ROUND(AB173*V173,0) -> 0 | AF173: =ROUND(AD173+AB173,0) -> 0
X176: Total Senior Personnel | Z176: =SUM(Z151:Z173) -> 0 | AD176: Total Senior Personnel | AF176: =SUM(AF151:AF173) -> 0
B179: Other Personnel
B180: Number of Personnel | L180: Base Salary/ Month | N180: Cal Month | P180: Acad. Month | R180: Summer Month | T180: Requested Salary | V180: Fringe Rate % | X180: Fringe Benefit $ | Z180: Federal Fund Requested $ | AB180: Cost-Shared / Matching Salary | AD180: Fringe Benefit $ | AF180: Cost-Shared / Matching Funds $
B182: =IF(years>2,+B114,0) -> 0 | D182: Post Doctoral Associate | L182: =+IF(years>2,+L114+(L114*$R$12),0) -> 0 | N182: =+IF(years>2,+N114,0) -> 0 | P182: =+IF(years>2,+P114,0) -> 0 | R182: =+IF(years>2,+R114,0) -> 0 | T182: =ROUND(L182*(+N182+P182+R182)*B182,0) -> 0 | V182: =$H$377 -> 0.33 | X182: =ROUND(V182*T182,0) -> 0 | Z182: =ROUND(X182+T182,0) -> 0 | AB182: =+IF(years>2,+AB114+(AB114*$R$12),0) -> 0 | AD182: =ROUND(AB182*V182,0) -> 0 | AF182: =ROUND(AD182+AB182,0) -> 0
B184: =IF(years>2,+B116,0) -> 0 | D184: Post Doctoral Associate | L184: =+IF(years>2,+L116+(L116*$R$12),0) -> 0 | N184: =+IF(years>2,+N116,0) -> 0 | P184: =+IF(years>2,+P116,0) -> 0 | R184: =+IF(years>2,+R116,0) -> 0 | T184: =ROUND(L184*(+N184+P184+R184)*B184,0) -> 0 | V184: =$H$377 -> 0.33 | X184: =ROUND(V184*T184,0) -> 0 | Z184: =ROUND(X184+T184,0) -> 0 | AB184: =+IF(years>2,+AB116+(AB116*$R$12),0) -> 0 | AD184: =ROUND(AB184*V184,0) -> 0 | AF184: =ROUND(AD184+AB184,0) -> 0
B186: =IF(years>2,+B118,0) -> 0 | D186: Graduate Students | L186: =+IF(years>2,+L118+(L118*$R$12),0) -> 0 | N186: =+IF(years>2,+N118,0) -> 0 | P186: =+IF(years>2,+P118,0) -> 0 | R186: =+IF(years>2,+R118,0) -> 0 | T186: =ROUND(L186*(+N186+P186+R186)*B186,0) -> 0 | V186: =$H$370 -> 0.13 | X186: =ROUND(V186*T186,0) -> 0 | Z186: =ROUND(X186+T186,0) -> 0 | AB186: =+IF(years>2,+AB118+(AB118*$R$12),0) -> 0 | AD186: =ROUND(AB186*V186,0) -> 0 | AF186: =ROUND(AD186+AB186,0) -> 0
B188: =IF(years>2,+B120,0) -> 0 | D188: Graduate Students | L188: =+IF(years>2,+L120+(L120*$R$12),0) -> 0 | N188: =+IF(years>2,+N120,0) -> 0 | P188: =+IF(years>2,+P120,0) -> 0 | R188: =+IF(years>2,+R120,0) -> 0 | T188: =ROUND(L188*(+N188+P188+R188)*B188,0) -> 0 | V188: =$H$370 -> 0.13 | X188: =ROUND(V188*T188,0) -> 0 | Z188: =ROUND(X188+T188,0) -> 0 | AB188: =+IF(years>2,+AB120+(AB120*$R$12),0) -> 0 | AD188: =ROUND(AB188*V188,0) -> 0 | AF188: =ROUND(AD188+AB188,0) -> 0
B190: =IF(years>2,+B122,0) -> 0 | D190: Undergraduate Students | L190: =+IF(years>2,+L122+(L122*$R$12),0) -> 0 | N190: =+IF(years>2,+N122,0) -> 0 | P190: =+IF(years>2,+P122,0) -> 0 | R190: =+IF(years>2,+R122,0) -> 0 | T190: =ROUND(L190*(+N190+P190+R190)*B190,0) -> 0 | V190: =$H$383 -> 0.046 | X190: =ROUND(V190*T190,0) -> 0 | Z190: =ROUND(X190+T190,0) -> 0 | AB190: =+IF(years>2,+AB122+(AB122*$R$12),0) -> 0 | AD190: =ROUND(AB190*V190,0) -> 0 | AF190: =ROUND(AD190+AB190,0) -> 0
B192: =IF(years>2,+B124,0) -> 0 | D192: Undergraduate Students | L192: =+IF(years>2,+L124+(L124*$R$12),0) -> 0 | N192: =+IF(years>2,+N124,0) -> 0 | P192: =+IF(years>2,+P124,0) -> 0 | R192: =+IF(years>2,+R124,0) -> 0 | T192: =ROUND(L192*(+N192+P192+R192)*B192,0) -> 0 | V192: =$H$383 -> 0.046 | X192: =ROUND(V192*T192,0) -> 0 | Z192: =ROUND(X192+T192,0) -> 0 | AB192: =+IF(years>2,+AB124+(AB124*$R$12),0) -> 0 | AD192: =ROUND(AB192*V192,0) -> 0 | AF192: =ROUND(AD192+AB192,0) -> 0
B194: =IF(years>2,+B126,0) -> 0 | D194: Secretarial/Clerical | L194: =+IF(years>2,+L126+(L126*$R$12),0) -> 0 | N194: =+IF(years>2,+N126,0) -> 0 | P194: =+IF(years>2,+P126,0) -> 0 | R194: =+IF(years>2,+R126,0) -> 0 | T194: =ROUND(L194*(+N194+P194+R194)*B194,0) -> 0 | V194: =$H$375 -> 0.51 | X194: =ROUND(V194*T194,0) -> 0 | Z194: =ROUND(X194+T194,0) -> 0 | AB194: =+IF(years>2,+AB126+(AB126*$R$12),0) -> 0 | AD194: =ROUND(AB194*V194,0) -> 0 | AF194: =ROUND(AD194+AB194,0) -> 0
B196: =IF(years>2,+B128,0) -> 0 | D196: Non-Student Hourly | L196: =+IF(years>2,+L128+(L128*$R$12),0) -> 0 | N196: =+IF(years>2,+N128,0) -> 0 | P196: =+IF(years>2,+P128,0) -> 0 | R196: =+IF(years>2,+R128,0) -> 0 | T196: =ROUND(L196*(+N196+P196+R196)*B196,0) -> 0 | V196: =$H$371 -> 0.12 | X196: =ROUND(V196*T196,0) -> 0 | Z196: =ROUND(X196+T196,0) -> 0 | AB196: =+IF(years>2,+AB128+(AB128*$R$12),0) -> 0 | AD196: =ROUND(AB196*V196,0) -> 0 | AF196: =ROUND(AD196+AB196,0) -> 0
B198: =IF(years>2,+B130,0) -> 0 | D198: =+IF(years>2,+D130,0) -> 0 | J198: =+IF(years>2,+J130,J130) -> Select one | L198: =+IF(years>2,+L130+(L130*$R$12),0) -> 0 | N198: =+IF(years>2,+N130,0) -> 0 | P198: =+IF(years>2,+P130,0) -> 0 | R198: =+IF(years>2,+R130,0) -> 0 | T198: =ROUND(L198*(+N198+P198+R198)*B198,0) -> 0 | V198: =VLOOKUP(J198,$D$356:$H$386,5) -> 0 | X198: =ROUND(V198*T198,0) -> 0 | Z198: =ROUND(X198+T198,0) -> 0 | AB198: =+IF(years>2,+AB130+(AB130*$R$12),0) -> 0 | AD198: =ROUND(AB198*V198,0) -> 0 | AF198: =ROUND(AD198+AB198,0) -> 0
B200: =IF(years>2,+B132,0) -> 0 | D200: =+IF(years>2,+D132,0) -> 0 | J200: =+IF(years>2,+J132,J132) -> Select one | L200: =+IF(years>2,+L132+(L132*$R$12),0) -> 0 | N200: =+IF(years>2,+N132,0) -> 0 | P200: =+IF(years>2,+P132,0) -> 0 | R200: =+IF(years>2,+R132,0) -> 0 | T200: =ROUND(L200*(+N200+P200+R200)*B200,0) -> 0 | V200: =VLOOKUP(J200,$D$356:$H$386,5) -> 0 | X200: =ROUND(V200*T200,0) -> 0 | Z200: =ROUND(X200+T200,0) -> 0 | AB200: =+IF(years>2,+AB132+(AB132*$R$12),0) -> 0 | AD200: =ROUND(AB200*V200,0) -> 0 | AF200: =ROUND(AD200+AB200,0) -> 0
B202: =IF(years>2,+B134,0) -> 0 | D202: =+IF(years>2,+D134,0) -> 0 | J202: =+IF(years>2,+J134,J134) -> Select one | L202: =+IF(years>2,+L134+(L134*$R$12),0) -> 0 | N202: =+IF(years>2,+N134,0) -> 0 | P202: =+IF(years>2,+P134,0) -> 0 | R202: =+IF(years>2,+R134,0) -> 0 | T202: =ROUND(L202*(+N202+P202+R202)*B202,0) -> 0 | V202: =VLOOKUP(J202,$D$356:$H$386,5) -> 0 | X202: =ROUND(V202*T202,0) -> 0 | Z202: =ROUND(X202+T202,0) -> 0 | AB202: =+IF(years>2,+AB134+(AB134*$R$12),0) -> 0 | AD202: =ROUND(AB202*V202,0) -> 0 | AF202: =ROUND(AD202+AB202,0) -> 0
B204: =IF(years>2,+B136,0) -> 0 | D204: =+IF(years>2,+D136,0) -> 0 | J204: =+IF(years>2,+J136,J136) -> Select one | L204: =+IF(years>2,+L136+(L136*$R$12),0) -> 0 | N204: =+IF(years>2,+N136,0) -> 0 | P204: =+IF(years>2,+P136,0) -> 0 | R204: =+IF(years>2,+R136,0) -> 0 | T204: =ROUND(L204*(+N204+P204+R204)*B204,0) -> 0 | V204: =VLOOKUP(J204,$D$356:$H$386,5) -> 0 | X204: =ROUND(V204*T204,0) -> 0 | Z204: =ROUND(X204+T204,0) -> 0 | AB204: =+IF(years>2,+AB136+(AB136*$R$12),0) -> 0 | AD204: =ROUND(AB204*V204,0) -> 0 | AF204: =ROUND(AD204+AB204,0) -> 0
B206: =IF(years>2,+B138,0) -> 0 | D206: =+IF(years>2,+D138,0) -> 0 | J206: =+IF(years>2,+J138,J138) -> Select one | L206: =+IF(years>2,+L138+(L138*$R$12),0) -> 0 | N206: =+IF(years>2,+N138,0) -> 0 | P206: =+IF(years>2,+P138,0) -> 0 | R206: =+IF(years>2,+R138,0) -> 0 | T206: =ROUND(L206*(+N206+P206+R206)*B206,0) -> 0 | V206: =VLOOKUP(J206,$D$356:$H$386,5) -> 0 | X206: =ROUND(V206*T206,0) -> 0 | Z206: =ROUND(X206+T206,0) -> 0 | AB206: =+IF(years>2,+AB138+(AB138*$R$12),0) -> 0 | AD206: =ROUND(AB206*V206,0) -> 0 | AF206: =ROUND(AD206+AB206,0) -> 0
B208: =IF(years>2,+B140,0) -> 0 | D208: =+IF(years>2,+D140,0) -> 0 | J208: =+IF(years>2,+J140,J140) -> Select one | L208: =+IF(years>2,+L140+(L140*$R$12),0) -> 0 | N208: =+IF(years>2,+N140,0) -> 0 | P208: =+IF(years>2,+P140,0) -> 0 | R208: =+IF(years>2,+R140,0) -> 0 | T208: =ROUND(L208*(+N208+P208+R208)*B208,0) -> 0 | V208: =VLOOKUP(J208,$D$356:$H$386,5) -> 0 | X208: =ROUND(V208*T208,0) -> 0 | Z208: =ROUND(X208+T208,0) -> 0 | AB208: =+IF(years>2,+AB140+(AB140*$R$12),0) -> 0 | AD208: =ROUND(AB208*V208,0) -> 0 | AF208: =ROUND(AD208+AB208,0) -> 0
X211: Total Other Personnel | Z211: =SUM(Z182:Z208) -> 0 | AD211: Total Other Personnel | AF211: =SUM(AF182:AF208) -> 0
W213: Year 3 Totals | X213: Fringes | Z213: Salaries
X214: =SUM(X182:X208,X151:X173) -> 0 | Z214: =SUM(T182:T208,T151:T175) -> 0
A215: Worksheet for Project Budget - Salaries & Wages | P215: Year 4
B216: Senior Personnel
B217: Prefix | D217: First Name | F217: Middle Init. | H217: Last Name | J217: Classification | L217: Base Salary/ Month | N217: Cal Month | P217: Acad. Month | R217: Summer Month | T217: Requested Salary | V217: Fringe Rate % | X217: Fringe Benefit $ | Z217: Federal Fund Requested $ | AB217: Cost-Shared / Matching Salary | AD217: Fringe Benefit $ | AF217: Cost-Shared / Matching Funds $
A219: 1 | B219: =+IF(years>3,+B151,0) -> 0 | D219: =+IF(years>3,+D151,0) -> 0 | F219: =+IF(years>3,+F151,0) -> 0 | H219: =+IF(years>3,+H151,0) -> 0 | J219: =+IF(years>3,+J151,J151) -> Select one | L219: =+IF(years>3,+L151+(L151*$R$12),0) -> 0 | N219: =+IF(years>3,+N151,0) -> 0 | P219: =+IF(years>3,+P151,0) -> 0 | R219: =+IF(years>3,+R151,0) -> 0 | T219: =ROUND(L219*(+N219+P219+R219),0) -> 0 | V219: =VLOOKUP(J219,$D$356:$H$386,5) -> 0 | X219: =ROUND(V219*T219,0) -> 0 | Z219: =ROUND(X219+T219,0) -> 0 | AB219: =+IF(years>3,+AB151+(AB151*$R$12),0) -> 0 | AD219: =ROUND(AB219*V219,0) -> 0 | AF219: =ROUND(AD219+AB219,0) -> 0
A221: 2 | B221: =+IF(years>3,+B153,0) -> 0 | D221: =+IF(years>3,+D153,0) -> 0 | F221: =+IF(years>3,+F153,0) -> 0 | H221: =+IF(years>3,+H153,0) -> 0 | J221: =+IF(years>3,+J153,J153) -> Select one | L221: =+IF(years>3,+L153+(L153*$R$12),0) -> 0 | N221: =+IF(years>3,+N153,0) -> 0 | P221: =+IF(years>3,+P153,0) -> 0 | R221: =+IF(years>3,+R153,0) -> 0 | T221: =ROUND(L221*(+N221+P221+R221),0) -> 0 | V221: =VLOOKUP(J221,$D$356:$H$386,5) -> 0 | X221: =ROUND(V221*T221,0) -> 0 | Z221: =ROUND(X221+T221,0) -> 0 | AB221: =+IF(years>3,+AB153+(AB153*$R$12),0) -> 0 | AD221: =ROUND(AB221*V221,0) -> 0 | AF221: =ROUND(AD221+AB221,0) -> 0
A223: 3 | B223: =+IF(years>3,+B155,0) -> 0 | D223: =+IF(years>3,+D155,0) -> 0 | F223: =+IF(years>3,+F155,0) -> 0 | H223: =+IF(years>3,+H155,0) -> 0 | J223: =+IF(years>3,+J155,J155) -> Select one | L223: =+IF(years>3,+L155+(L155*$R$12),0) -> 0 | N223: =+IF(years>3,+N155,0) -> 0 | P223: =+IF(years>3,+P155,0) -> 0 | R223: =+IF(years>3,+R155,0) -> 0 | T223: =ROUND(L223*(+N223+P223+R223),0) -> 0 | V223: =VLOOKUP(J223,$D$356:$H$386,5) -> 0 | X223: =ROUND(V223*T223,0) -> 0 | Z223: =ROUND(X223+T223,0) -> 0 | AB223: =+IF(years>3,+AB155+(AB155*$R$12),0) -> 0 | AD223: =ROUND(AB223*V223,0) -> 0 | AF223: =ROUND(AD223+AB223,0) -> 0
A225: 4 | B225: =+IF(years>3,+B157,0) -> 0 | D225: =+IF(years>3,+D157,0) -> 0 | F225: =+IF(years>3,+F157,0) -> 0 | H225: =+IF(years>3,+H157,0) -> 0 | J225: =+IF(years>3,+J157,J157) -> Select one | L225: =+IF(years>3,+L157+(L157*$R$12),0) -> 0 | N225: =+IF(years>3,+N157,0) -> 0 | P225: =+IF(years>3,+P157,0) -> 0 | R225: =+IF(years>3,+R157,0) -> 0 | T225: =ROUND(L225*(+N225+P225+R225),0) -> 0 | V225: =VLOOKUP(J225,$D$356:$H$386,5) -> 0 | X225: =ROUND(V225*T225,0) -> 0 | Z225: =ROUND(X225+T225,0) -> 0 | AB225: =+IF(years>3,+AB157+(AB157*$R$12),0) -> 0 | AD225: =ROUND(AB225*V225,0) -> 0 | AF225: =ROUND(AD225+AB225,0) -> 0
A227: 5 | B227: =+IF(years>3,+B159,0) -> 0 | D227: =+IF(years>3,+D159,0) -> 0 | F227: =+IF(years>3,+F159,0) -> 0 | H227: =+IF(years>3,+H159,0) -> 0 | J227: =+IF(years>3,+J159,J159) -> Select one | L227: =+IF(years>3,+L159+(L159*$R$12),0) -> 0 | N227: =+IF(years>3,+N159,0) -> 0 | P227: =+IF(years>3,+P159,0) -> 0 | R227: =+IF(years>3,+R159,0) -> 0 | T227: =ROUND(L227*(+N227+P227+R227),0) -> 0 | V227: =VLOOKUP(J227,$D$356:$H$386,5) -> 0 | X227: =ROUND(V227*T227,0) -> 0 | Z227: =ROUND(X227+T227,0) -> 0 | AB227: =+IF(years>3,+AB159+(AB159*$R$12),0) -> 0 | AD227: =ROUND(AB227*V227,0) -> 0 | AF227: =ROUND(AD227+AB227,0) -> 0
A229: 6 | B229: =+IF(years>3,+B161,0) -> 0 | D229: =+IF(years>3,+D161,0) -> 0 | F229: =+IF(years>3,+F161,0) -> 0 | H229: =+IF(years>3,+H161,0) -> 0 | J229: =+IF(years>3,+J161,J161) -> Select one | L229: =+IF(years>3,+L161+(L161*$R$12),0) -> 0 | N229: =+IF(years>3,+N161,0) -> 0 | P229: =+IF(years>3,+P161,0) -> 0 | R229: =+IF(years>3,+R161,0) -> 0 | T229: =ROUND(L229*(+N229+P229+R229),0) -> 0 | V229: =VLOOKUP(J229,$D$356:$H$386,5) -> 0 | X229: =ROUND(V229*T229,0) -> 0 | Z229: =ROUND(X229+T229,0) -> 0 | AB229: =+IF(years>3,+AB161+(AB161*$R$12),0) -> 0 | AD229: =ROUND(AB229*V229,0) -> 0 | AF229: =ROUND(AD229+AB229,0) -> 0
A231: 7 | B231: =+IF(years>3,+B163,0) -> 0 | D231: =+IF(years>3,+D163,0) -> 0 | F231: =+IF(years>3,+F163,0) -> 0 | H231: =+IF(years>3,+H163,0) -> 0 | J231: =+IF(years>3,+J163,J163) -> Select one | L231: =+IF(years>3,+L163+(L163*$R$12),0) -> 0 | N231: =+IF(years>3,+N163,0) -> 0 | P231: =+IF(years>3,+P163,0) -> 0 | R231: =+IF(years>3,+R163,0) -> 0 | T231: =ROUND(L231*(+N231+P231+R231),0) -> 0 | V231: =VLOOKUP(J231,$D$356:$H$386,5) -> 0 | X231: =ROUND(V231*T231,0) -> 0 | Z231: =ROUND(X231+T231,0) -> 0 | AB231: =+IF(years>3,+AB163+(AB163*$R$12),0) -> 0 | AD231: =ROUND(AB231*V231,0) -> 0 | AF231: =ROUND(AD231+AB231,0) -> 0
A233: 8 | B233: =+IF(years>3,+B165,0) -> 0 | D233: =+IF(years>3,+D165,0) -> 0 | F233: =+IF(years>3,+F165,0) -> 0 | H233: =+IF(years>3,+H165,0) -> 0 | J233: =+IF(years>3,+J165,J165) -> Select one | L233: =+IF(years>3,+L165+(L165*$R$12),0) -> 0 | N233: =+IF(years>3,+N165,0) -> 0 | P233: =+IF(years>3,+P165,0) -> 0 | R233: =+IF(years>3,+R165,0) -> 0 | T233: =ROUND(L233*(+N233+P233+R233),0) -> 0 | V233: =VLOOKUP(J233,$D$356:$H$386,5) -> 0 | X233: =ROUND(V233*T233,0) -> 0 | Z233: =ROUND(X233+T233,0) -> 0 | AB233: =+IF(years>3,+AB165+(AB165*$R$12),0) -> 0 | AD233: =ROUND(AB233*V233,0) -> 0 | AF233: =ROUND(AD233+AB233,0) -> 0
A235: 9 | B235: =+IF(years>3,+B167,0) -> 0 | D235: =+IF(years>3,+D167,0) -> 0 | F235: =+IF(years>3,+F167,0) -> 0 | H235: =+IF(years>3,+H167,0) -> 0 | J235: =+IF(years>3,+J167,J167) -> Select one | L235: =+IF(years>3,+L167+(L167*$R$12),0) -> 0 | N235: =+IF(years>3,+N167,0) -> 0 | P235: =+IF(years>3,+P167,0) -> 0 | R235: =+IF(years>3,+R167,0) -> 0 | T235: =ROUND(L235*(+N235+P235+R235),0) -> 0 | V235: =VLOOKUP(J235,$D$356:$H$386,5) -> 0 | X235: =ROUND(V235*T235,0) -> 0 | Z235: =ROUND(X235+T235,0) -> 0 | AB235: =+IF(years>3,+AB167+(AB167*$R$12),0) -> 0 | AD235: =ROUND(AB235*V235,0) -> 0 | AF235: =ROUND(AD235+AB235,0) -> 0
A237: 10 | B237: =+IF(years>3,+B169,0) -> 0 | D237: =+IF(years>3,+D169,0) -> 0 | F237: =+IF(years>3,+F169,0) -> 0 | H237: =+IF(years>3,+H169,0) -> 0 | J237: =+IF(years>3,+J169,J169) -> Select one | L237: =+IF(years>3,+L169+(L169*$R$12),0) -> 0 | N237: =+IF(years>3,+N169,0) -> 0 | P237: =+IF(years>3,+P169,0) -> 0 | R237: =+IF(years>3,+R169,0) -> 0 | T237: =ROUND(L237*(+N237+P237+R237),0) -> 0 | V237: =VLOOKUP(J237,$D$356:$H$386,5) -> 0 | X237: =ROUND(V237*T237,0) -> 0 | Z237: =ROUND(X237+T237,0) -> 0 | AB237: =+IF(years>3,+AB169+(AB169*$R$12),0) -> 0 | AD237: =ROUND(AB237*V237,0) -> 0 | AF237: =ROUND(AD237+AB237,0) -> 0
A239: 11 | B239: =+IF(years>3,+B171,0) -> 0 | D239: =+IF(years>3,+D171,0) -> 0 | F239: =+IF(years>3,+F171,0) -> 0 | H239: =+IF(years>3,+H171,0) -> 0 | J239: =+IF(years>3,+J171,J171) -> Select one | L239: =+IF(years>3,+L171+(L171*$R$12),0) -> 0 | N239: =+IF(years>3,+N171,0) -> 0 | P239: =+IF(years>3,+P171,0) -> 0 | R239: =+IF(years>3,+R171,0) -> 0 | T239: =ROUND(L239*(+N239+P239+R239),0) -> 0 | V239: =VLOOKUP(J239,$D$356:$H$386,5) -> 0 | X239: =ROUND(V239*T239,0) -> 0 | Z239: =ROUND(X239+T239,0) -> 0 | AB239: =+IF(years>3,+AB171+(AB171*$R$12),0) -> 0 | AD239: =ROUND(AB239*V239,0) -> 0 | AF239: =ROUND(AD239+AB239,0) -> 0
A241: 12 | B241: =+IF(years>3,+B173,0) -> 0 | D241: =+IF(years>3,+D173,0) -> 0 | F241: =+IF(years>3,+F173,0) -> 0 | H241: =+IF(years>3,+H173,0) -> 0 | J241: =+IF(years>3,+J173,J173) -> Select one | L241: =+IF(years>3,+L173+(L173*$R$12),0) -> 0 | N241: =+IF(years>3,+N173,0) -> 0 | P241: =+IF(years>3,+P173,0) -> 0 | R241: =+IF(years>3,+R173,0) -> 0 | T241: =ROUND(L241*(+N241+P241+R241),0) -> 0 | V241: =VLOOKUP(J241,$D$356:$H$386,5) -> 0 | X241: =ROUND(V241*T241,0) -> 0 | Z241: =ROUND(X241+T241,0) -> 0 | AB241: =+IF(years>3,+AB173+(AB173*$R$12),0) -> 0 | AD241: =ROUND(AB241*V241,0) -> 0 | AF241: =ROUND(AD241+AB241,0) -> 0
X244: Total Senior Personnel | Z244: =SUM(Z219:Z241) -> 0 | AD244: Total Senior Personnel | AF244: =SUM(AF219:AF241) -> 0
B247: Other Personnel
B248: Number of Personnel | L248: Base Salary/ Month | N248: Cal Month | P248: Acad. Month | R248: Summer Month | T248: Requested Salary | V248: Fringe Rate % | X248: Fringe Benefit $ | Z248: Federal Fund Requested $ | AB248: Cost-Shared / Matching Salary | AD248: Fringe Benefit $ | AF248: Cost-Shared / Matching Funds $
B250: =IF(years>3,+B182,0) -> 0 | D250: Post Doctoral Associate | L250: =+IF(years>3,+L182+(L182*$R$12),0) -> 0 | N250: =+IF(years>3,+N182,0) -> 0 | P250: =+IF(years>3,+P182,0) -> 0 | R250: =+IF(years>3,+R182,0) -> 0 | T250: =ROUND(L250*(+N250+P250+R250)*B250,0) -> 0 | V250: =$H$377 -> 0.33 | X250: =ROUND(V250*T250,0) -> 0 | Z250: =ROUND(X250+T250,0) -> 0 | AB250: =+IF(years>3,+AB182+(AB182*$R$12),0) -> 0 | AD250: =ROUND(AB250*V250,0) -> 0 | AF250: =ROUND(AD250+AB250,0) -> 0
B252: =IF(years>3,+B184,0) -> 0 | D252: Post Doctoral Associate | L252: =+IF(years>3,+L184+(L184*$R$12),0) -> 0 | N252: =+IF(years>3,+N184,0) -> 0 | P252: =+IF(years>3,+P184,0) -> 0 | R252: =+IF(years>3,+R184,0) -> 0 | T252: =ROUND(L252*(+N252+P252+R252)*B252,0) -> 0 | V252: =$H$377 -> 0.33 | X252: =ROUND(V252*T252,0) -> 0 | Z252: =ROUND(X252+T252,0) -> 0 | AB252: =+IF(years>3,+AB184+(AB184*$R$12),0) -> 0 | AD252: =ROUND(AB252*V252,0) -> 0 | AF252: =ROUND(AD252+AB252,0) -> 0
B254: =IF(years>3,+B186,0) -> 0 | D254: Graduate Students | L254: =+IF(years>3,+L186+(L186*$R$12),0) -> 0 | N254: =+IF(years>3,+N186,0) -> 0 | P254: =+IF(years>3,+P186,0) -> 0 | R254: =+IF(years>3,+R186,0) -> 0 | T254: =ROUND(L254*(+N254+P254+R254)*B254,0) -> 0 | V254: =$H$370 -> 0.13 | X254: =ROUND(V254*T254,0) -> 0 | Z254: =ROUND(X254+T254,0) -> 0 | AB254: =+IF(years>3,+AB186+(AB186*$R$12),0) -> 0 | AD254: =ROUND(AB254*V254,0) -> 0 | AF254: =ROUND(AD254+AB254,0) -> 0
B256: =IF(years>3,+B188,0) -> 0 | D256: Graduate Students | L256: =+IF(years>3,+L188+(L188*$R$12),0) -> 0 | N256: =+IF(years>3,+N188,0) -> 0 | P256: =+IF(years>3,+P188,0) -> 0 | R256: =+IF(years>3,+R188,0) -> 0 | T256: =ROUND(L256*(+N256+P256+R256)*B256,0) -> 0 | V256: =$H$370 -> 0.13 | X256: =ROUND(V256*T256,0) -> 0 | Z256: =ROUND(X256+T256,0) -> 0 | AB256: =+IF(years>3,+AB188+(AB188*$R$12),0) -> 0 | AD256: =ROUND(AB256*V256,0) -> 0 | AF256: =ROUND(AD256+AB256,0) -> 0
B258: =IF(years>3,+B190,0) -> 0 | D258: Undergraduate Students | L258: =+IF(years>3,+L190+(L190*$R$12),0) -> 0 | N258: =+IF(years>3,+N190,0) -> 0 | P258: =+IF(years>3,+P190,0) -> 0 | R258: =+IF(years>3,+R190,0) -> 0 | T258: =ROUND(L258*(+N258+P258+R258)*B258,0) -> 0 | V258: =$H$383 -> 0.046 | X258: =ROUND(V258*T258,0) -> 0 | Z258: =ROUND(X258+T258,0) -> 0 | AB258: =+IF(years>3,+AB190+(AB190*$R$12),0) -> 0 | AD258: =ROUND(AB258*V258,0) -> 0 | AF258: =ROUND(AD258+AB258,0) -> 0
B260: =IF(years>3,+B192,0) -> 0 | D260: Undergraduate Students | L260: =+IF(years>3,+L192+(L192*$R$12),0) -> 0 | N260: =+IF(years>3,+N192,0) -> 0 | P260: =+IF(years>3,+P192,0) -> 0 | R260: =+IF(years>3,+R192,0) -> 0 | T260: =ROUND(L260*(+N260+P260+R260)*B260,0) -> 0 | V260: =$H$383 -> 0.046 | X260: =ROUND(V260*T260,0) -> 0 | Z260: =ROUND(X260+T260,0) -> 0 | AB260: =+IF(years>3,+AB192+(AB192*$R$12),0) -> 0 | AD260: =ROUND(AB260*V260,0) -> 0 | AF260: =ROUND(AD260+AB260,0) -> 0
B262: =IF(years>3,+B194,0) -> 0 | D262: Secretarial/Clerical | L262: =+IF(years>3,+L194+(L194*$R$12),0) -> 0 | N262: =+IF(years>3,+N194,0) -> 0 | P262: =+IF(years>3,+P194,0) -> 0 | R262: =+IF(years>3,+R194,0) -> 0 | T262: =ROUND(L262*(+N262+P262+R262)*B262,0) -> 0 | V262: =$H$375 -> 0.51 | X262: =ROUND(V262*T262,0) -> 0 | Z262: =ROUND(X262+T262,0) -> 0 | AB262: =+IF(years>3,+AB194+(AB194*$R$12),0) -> 0 | AD262: =ROUND(AB262*V262,0) -> 0 | AF262: =ROUND(AD262+AB262,0) -> 0
B264: =IF(years>3,+B196,0) -> 0 | D264: Non-Student Hourly | L264: =+IF(years>3,+L196+(L196*$R$12),0) -> 0 | N264: =+IF(years>3,+N196,0) -> 0 | P264: =+IF(years>3,+P196,0) -> 0 | R264: =+IF(years>3,+R196,0) -> 0 | T264: =ROUND(L264*(+N264+P264+R264)*B264,0) -> 0 | V264: =$H$371 -> 0.12 | X264: =ROUND(V264*T264,0) -> 0 | Z264: =ROUND(X264+T264,0) -> 0 | AB264: =+IF(years>3,+AB196+(AB196*$R$12),0) -> 0 | AD264: =ROUND(AB264*V264,0) -> 0 | AF264: =ROUND(AD264+AB264,0) -> 0
B266: =IF(years>3,+B198,0) -> 0 | D266: =+IF(years>3,+D198,0) -> 0 | J266: =+IF(years>3,+J198,J198) -> Select one | L266: =+IF(years>3,+L198+(L198*$R$12),0) -> 0 | N266: =+IF(years>3,+N198,0) -> 0 | P266: =+IF(years>3,+P198,0) -> 0 | R266: =+IF(years>3,+R198,0) -> 0 | T266: =ROUND(L266*(+N266+P266+R266)*B266,0) -> 0 | V266: =VLOOKUP(J266,$D$356:$H$386,5) -> 0 | X266: =ROUND(V266*T266,0) -> 0 | Z266: =ROUND(X266+T266,0) -> 0 | AB266: =+IF(years>3,+AB198+(AB198*$R$12),0) -> 0 | AD266: =ROUND(AB266*V266,0) -> 0 | AF266: =ROUND(AD266+AB266,0) -> 0
B268: =IF(years>3,+B200,0) -> 0 | D268: =+IF(years>3,+D200,0) -> 0 | J268: =+IF(years>3,+J200,J200) -> Select one | L268: =+IF(years>3,+L200+(L200*$R$12),0) -> 0 | N268: =+IF(years>3,+N200,0) -> 0 | P268: =+IF(years>3,+P200,0) -> 0 | R268: =+IF(years>3,+R200,0) -> 0 | T268: =ROUND(L268*(+N268+P268+R268)*B268,0) -> 0 | V268: =VLOOKUP(J268,$D$356:$H$386,5) -> 0 | X268: =ROUND(V268*T268,0) -> 0 | Z268: =ROUND(X268+T268,0) -> 0 | AB268: =+IF(years>3,+AB200+(AB200*$R$12),0) -> 0 | AD268: =ROUND(AB268*V268,0) -> 0 | AF268: =ROUND(AD268+AB268,0) -> 0
B270: =IF(years>3,+B202,0) -> 0 | D270: =+IF(years>3,+D202,0) -> 0 | J270: =+IF(years>3,+J202,J202) -> Select one | L270: =+IF(years>3,+L202+(L202*$R$12),0) -> 0 | N270: =+IF(years>3,+N202,0) -> 0 | P270: =+IF(years>3,+P202,0) -> 0 | R270: =+IF(years>3,+R202,0) -> 0 | T270: =ROUND(L270*(+N270+P270+R270)*B270,0) -> 0 | V270: =VLOOKUP(J270,$D$356:$H$386,5) -> 0 | X270: =ROUND(V270*T270,0) -> 0 | Z270: =ROUND(X270+T270,0) -> 0 | AB270: =+IF(years>3,+AB202+(AB202*$R$12),0) -> 0 | AD270: =ROUND(AB270*V270,0) -> 0 | AF270: =ROUND(AD270+AB270,0) -> 0
B272: =IF(years>3,+B204,0) -> 0 | D272: =+IF(years>3,+D204,0) -> 0 | J272: =+IF(years>3,+J204,J204) -> Select one | L272: =+IF(years>3,+L204+(L204*$R$12),0) -> 0 | N272: =+IF(years>3,+N204,0) -> 0 | P272: =+IF(years>3,+P204,0) -> 0 | R272: =+IF(years>3,+R204,0) -> 0 | T272: =ROUND(L272*(+N272+P272+R272)*B272,0) -> 0 | V272: =VLOOKUP(J272,$D$356:$H$386,5) -> 0 | X272: =ROUND(V272*T272,0) -> 0 | Z272: =ROUND(X272+T272,0) -> 0 | AB272: =+IF(years>3,+AB204+(AB204*$R$12),0) -> 0 | AD272: =ROUND(AB272*V272,0) -> 0 | AF272: =ROUND(AD272+AB272,0) -> 0
B274: =IF(years>3,+B206,0) -> 0 | D274: =+IF(years>3,+D206,0) -> 0 | J274: =+IF(years>3,+J206,J206) -> Select one | L274: =+IF(years>3,+L206+(L206*$R$12),0) -> 0 | N274: =+IF(years>3,+N206,0) -> 0 | P274: =+IF(years>3,+P206,0) -> 0 | R274: =+IF(years>3,+R206,0) -> 0 | T274: =ROUND(L274*(+N274+P274+R274)*B274,0) -> 0 | V274: =VLOOKUP(J274,$D$356:$H$386,5) -> 0 | X274: =ROUND(V274*T274,0) -> 0 | Z274: =ROUND(X274+T274,0) -> 0 | AB274: =+IF(years>3,+AB206+(AB206*$R$12),0) -> 0 | AD274: =ROUND(AB274*V274,0) -> 0 | AF274: =ROUND(AD274+AB274,0) -> 0
B276: =IF(years>3,+B208,0) -> 0 | D276: =+IF(years>3,+D208,0) -> 0 | J276: =+IF(years>3,+J208,J208) -> Select one | L276: =+IF(years>3,+L208+(L208*$R$12),0) -> 0 | N276: =+IF(years>3,+N208,0) -> 0 | P276: =+IF(years>3,+P208,0) -> 0 | R276: =+IF(years>3,+R208,0) -> 0 | T276: =ROUND(L276*(+N276+P276+R276)*B276,0) -> 0 | V276: =VLOOKUP(J276,$D$356:$H$386,5) -> 0 | X276: =ROUND(V276*T276,0) -> 0 | Z276: =ROUND(X276+T276,0) -> 0 | AB276: =+IF(years>3,+AB208+(AB208*$R$12),0) -> 0 | AD276: =ROUND(AB276*V276,0) -> 0 | AF276: =ROUND(AD276+AB276,0) -> 0
X279: Total Other Personnel | Z279: =SUM(Z250:Z276) -> 0 | AD279: Total Other Personnel | AF279: =SUM(AF250:AF278) -> 0
W281: Year 4 Totals | X281: Fringes | Z281: Salaries
X282: =SUM(X250:X276,X219:X241) -> 0 | Z282: =SUM(T250:T276,T219:T243) -> 0
A283: Worksheet for Project Budget - Salaries & Wages | P283: Year 5
B284: Senior Personnel
B285: Prefix | D285: First Name | F285: Middle Init. | H285: Last Name | J285: Classification | L285: Base Salary/ Month | N285: Cal Month | P285: Acad. Month | R285: Summer Month | T285: Requested Salary | V285: Fringe Rate % | X285: Fringe Benefit $ | Z285: Federal Fund Requested $ | AB285: Cost-Shared / Matching Salary | AD285: Fringe Benefit $ | AF285: Cost-Shared / Matching Funds $
A287: 1 | B287: =+IF(years>4,+B219,0) -> 0 | D287: =+IF(years>4,+D219,0) -> 0 | F287: =+IF(years>4,+F219,0) -> 0 | H287: =+IF(years>4,+H219,0) -> 0 | J287: =+IF(years>4,+J219,J219) -> Select one | L287: =+IF(years>4,+L219+(L219*$R$12),0) -> 0 | N287: =+IF(years>3,+N219,0) -> 0 | P287: =+IF(years>4,+P219,0) -> 0 | R287: =+IF(years>4,+R219,0) -> 0 | T287: =ROUND(L287*(+N287+P287+R287),0) -> 0 | V287: =VLOOKUP(J287,$D$356:$H$386,5) -> 0 | X287: =ROUND(V287*T287,0) -> 0 | Z287: =ROUND(X287+T287,0) -> 0 | AB287: =+IF(years>4,+AB219+(AB219*$R$12),0) -> 0 | AD287: =ROUND(AB287*V287,0) -> 0 | AF287: =ROUND(AD287+AB287,0) -> 0
A289: 2 | B289: =+IF(years>4,+B221,0) -> 0 | D289: =+IF(years>4,+D221,0) -> 0 | F289: =+IF(years>4,+F221,0) -> 0 | H289: =+IF(years>4,+H221,0) -> 0 | J289: =+IF(years>4,+J221,J221) -> Select one | L289: =+IF(years>4,+L221+(L221*$R$12),0) -> 0 | N289: =+IF(years>4,+N221,0) -> 0 | P289: =+IF(years>4,+P221,0) -> 0 | R289: =+IF(years>4,+R221,0) -> 0 | T289: =ROUND(L289*(+N289+P289+R289),0) -> 0 | V289: =VLOOKUP(J289,$D$356:$H$386,5) -> 0 | X289: =ROUND(V289*T289,0) -> 0 | Z289: =ROUND(X289+T289,0) -> 0 | AB289: =+IF(years>4,+AB221+(AB221*$R$12),0) -> 0 | AD289: =ROUND(AB289*V289,0) -> 0 | AF289: =ROUND(AD289+AB289,0) -> 0
A291: 3 | B291: =+IF(years>4,+B223,0) -> 0 | D291: =+IF(years>4,+D223,0) -> 0 | F291: =+IF(years>4,+F223,0) -> 0 | H291: =+IF(years>4,+H223,0) -> 0 | J291: =+IF(years>4,+J223,J223) -> Select one | L291: =+IF(years>4,+L223+(L223*$R$12),0) -> 0 | N291: =+IF(years>4,+N223,0) -> 0 | P291: =+IF(years>4,+P223,0) -> 0 | R291: =+IF(years>4,+R223,0) -> 0 | T291: =ROUND(L291*(+N291+P291+R291),0) -> 0 | V291: =VLOOKUP(J291,$D$356:$H$386,5) -> 0 | X291: =ROUND(V291*T291,0) -> 0 | Z291: =ROUND(X291+T291,0) -> 0 | AB291: =+IF(years>4,+AB223+(AB223*$R$12),0) -> 0 | AD291: =ROUND(AB291*V291,0) -> 0 | AF291: =ROUND(AD291+AB291,0) -> 0
A293: 4 | B293: =+IF(years>4,+B225,0) -> 0 | D293: =+IF(years>4,+D225,0) -> 0 | F293: =+IF(years>4,+F225,0) -> 0 | H293: =+IF(years>4,+H225,0) -> 0 | J293: =+IF(years>4,+J225,J225) -> Select one | L293: =+IF(years>4,+L225+(L225*$R$12),0) -> 0 | N293: =+IF(years>4,+N225,0) -> 0 | P293: =+IF(years>4,+P225,0) -> 0 | R293: =+IF(years>4,+R225,0) -> 0 | T293: =ROUND(L293*(+N293+P293+R293),0) -> 0 | V293: =VLOOKUP(J293,$D$356:$H$386,5) -> 0 | X293: =ROUND(V293*T293,0) -> 0 | Z293: =ROUND(X293+T293,0) -> 0 | AB293: =+IF(years>4,+AB225+(AB225*$R$12),0) -> 0 | AD293: =ROUND(AB293*V293,0) -> 0 | AF293: =ROUND(AD293+AB293,0) -> 0
A295: 5 | B295: =+IF(years>4,+B227,0) -> 0 | D295: =+IF(years>4,+D227,0) -> 0 | F295: =+IF(years>4,+F227,0) -> 0 | H295: =+IF(years>4,+H227,0) -> 0 | J295: =+IF(years>4,+J227,J227) -> Select one | L295: =+IF(years>4,+L227+(L227*$R$12),0) -> 0 | N295: =+IF(years>4,+N227,0) -> 0 | P295: =+IF(years>4,+P227,0) -> 0 | R295: =+IF(years>4,+R227,0) -> 0 | T295: =ROUND(L295*(+N295+P295+R295),0) -> 0 | V295: =VLOOKUP(J295,$D$356:$H$386,5) -> 0 | X295: =ROUND(V295*T295,0) -> 0 | Z295: =ROUND(X295+T295,0) -> 0 | AB295: =+IF(years>4,+AB227+(AB227*$R$12),0) -> 0 | AD295: =ROUND(AB295*V295,0) -> 0 | AF295: =ROUND(AD295+AB295,0) -> 0
A297: 6 | B297: =+IF(years>4,+B229,0) -> 0 | D297: =+IF(years>4,+D229,0) -> 0 | F297: =+IF(years>4,+F229,0) -> 0 | H297: =+IF(years>4,+H229,0) -> 0 | J297: =+IF(years>4,+J229,J229) -> Select one | L297: =+IF(years>4,+L229+(L229*$R$12),0) -> 0 | N297: =+IF(years>4,+N229,0) -> 0 | P297: =+IF(years>4,+P229,0) -> 0 | R297: =+IF(years>4,+R229,0) -> 0 | T297: =ROUND(L297*(+N297+P297+R297),0) -> 0 | V297: =VLOOKUP(J297,$D$356:$H$386,5) -> 0 | X297: =ROUND(V297*T297,0) -> 0 | Z297: =ROUND(X297+T297,0) -> 0 | AB297: =+IF(years>4,+AB229+(AB229*$R$12),0) -> 0 | AD297: =ROUND(AB297*V297,0) -> 0 | AF297: =ROUND(AD297+AB297,0) -> 0
A299: 7 | B299: =+IF(years>4,+B231,0) -> 0 | D299: =+IF(years>4,+D231,0) -> 0 | F299: =+IF(years>4,+F231,0) -> 0 | H299: =+IF(years>4,+H231,0) -> 0 | J299: =+IF(years>4,+J231,J231) -> Select one | L299: =+IF(years>4,+L231+(L231*$R$12),0) -> 0 | N299: =+IF(years>4,+N231,0) -> 0 | P299: =+IF(years>4,+P231,0) -> 0 | R299: =+IF(years>4,+R231,0) -> 0 | T299: =ROUND(L299*(+N299+P299+R299),0) -> 0 | V299: =VLOOKUP(J299,$D$356:$H$386,5) -> 0 | X299: =ROUND(V299*T299,0) -> 0 | Z299: =ROUND(X299+T299,0) -> 0 | AB299: =+IF(years>4,+AB231+(AB231*$R$12),0) -> 0 | AD299: =ROUND(AB299*V299,0) -> 0 | AF299: =ROUND(AD299+AB299,0) -> 0
A301: 8 | B301: =+IF(years>4,+B233,0) -> 0 | D301: =+IF(years>4,+D233,0) -> 0 | F301: =+IF(years>4,+F233,0) -> 0 | H301: =+IF(years>4,+H233,0) -> 0 | J301: =+IF(years>4,+J233,J233) -> Select one | L301: =+IF(years>4,+L233+(L233*$R$12),0) -> 0 | N301: =+IF(years>4,+N233,0) -> 0 | P301: =+IF(years>4,+P233,0) -> 0 | R301: =+IF(years>4,+R233,0) -> 0 | T301: =ROUND(L301*(+N301+P301+R301),0) -> 0 | V301: =VLOOKUP(J301,$D$356:$H$386,5) -> 0 | X301: =ROUND(V301*T301,0) -> 0 | Z301: =ROUND(X301+T301,0) -> 0 | AB301: =+IF(years>4,+AB233+(AB233*$R$12),0) -> 0 | AD301: =ROUND(AB301*V301,0) -> 0 | AF301: =ROUND(AD301+AB301,0) -> 0
A303: 9 | B303: =+IF(years>4,+B235,0) -> 0 | D303: =+IF(years>4,+D235,0) -> 0 | F303: =+IF(years>4,+F235,0) -> 0 | H303: =+IF(years>4,+H235,0) -> 0 | J303: =+IF(years>4,+J235,J235) -> Select one | L303: =+IF(years>4,+L235+(L235*$R$12),0) -> 0 | N303: =+IF(years>4,+N235,0) -> 0 | P303: =+IF(years>4,+P235,0) -> 0 | R303: =+IF(years>4,+R235,0) -> 0 | T303: =ROUND(L303*(+N303+P303+R303),0) -> 0 | V303: =VLOOKUP(J303,$D$356:$H$386,5) -> 0 | X303: =ROUND(V303*T303,0) -> 0 | Z303: =ROUND(X303+T303,0) -> 0 | AB303: =+IF(years>4,+AB235+(AB235*$R$12),0) -> 0 | AD303: =ROUND(AB303*V303,0) -> 0 | AF303: =ROUND(AD303+AB303,0) -> 0
A305: 10 | B305: =+IF(years>4,+B237,0) -> 0 | D305: =+IF(years>4,+D237,0) -> 0 | F305: =+IF(years>4,+F237,0) -> 0 | H305: =+IF(years>4,+H237,0) -> 0 | J305: =+IF(years>4,+J237,J237) -> Select one | L305: =+IF(years>4,+L237+(L237*$R$12),0) -> 0 | N305: =+IF(years>4,+N237,0) -> 0 | P305: =+IF(years>4,+P237,0) -> 0 | R305: =+IF(years>4,+R237,0) -> 0 | T305: =ROUND(L305*(+N305+P305+R305),0) -> 0 | V305: =VLOOKUP(J305,$D$356:$H$386,5) -> 0 | X305: =ROUND(V305*T305,0) -> 0 | Z305: =ROUND(X305+T305,0) -> 0 | AB305: =+IF(years>4,+AB237+(AB237*$R$12),0) -> 0 | AD305: =ROUND(AB305*V305,0) -> 0 | AF305: =ROUND(AD305+AB305,0) -> 0
A307: 11 | B307: =+IF(years>4,+B239,0) -> 0 | D307: =+IF(years>4,+D239,0) -> 0 | F307: =+IF(years>4,+F239,0) -> 0 | H307: =+IF(years>4,+H239,0) -> 0 | J307: =+IF(years>4,+J239,J239) -> Select one | L307: =+IF(years>4,+L239+(L239*$R$12),0) -> 0 | N307: =+IF(years>4,+N239,0) -> 0 | P307: =+IF(years>4,+P239,0) -> 0 | R307: =+IF(years>4,+R239,0) -> 0 | T307: =ROUND(L307*(+N307+P307+R307),0) -> 0 | V307: =VLOOKUP(J307,$D$356:$H$386,5) -> 0 | X307: =ROUND(V307*T307,0) -> 0 | Z307: =ROUND(X307+T307,0) -> 0 | AB307: =+IF(years>4,+AB239+(AB239*$R$12),0) -> 0 | AD307: =ROUND(AB307*V307,0) -> 0 | AF307: =ROUND(AD307+AB307,0) -> 0
A309: 12 | B309: =+IF(years>4,+B241,0) -> 0 | D309: =+IF(years>4,+D241,0) -> 0 | F309: =+IF(years>4,+F241,0) -> 0 | H309: =+IF(years>4,+H241,0) -> 0 | J309: =+IF(years>4,+J241,J241) -> Select one | L309: =+IF(years>4,+L241+(L241*$R$12),0) -> 0 | N309: =+IF(years>4,+N241,0) -> 0 | P309: =+IF(years>4,+P241,0) -> 0 | R309: =+IF(years>4,+R241,0) -> 0 | T309: =ROUND(L309*(+N309+P309+R309),0) -> 0 | V309: =VLOOKUP(J309,$D$356:$H$386,5) -> 0 | X309: =ROUND(V309*T309,0) -> 0 | Z309: =ROUND(X309+T309,0) -> 0 | AB309: =+IF(years>4,+AB241+(AB241*$R$12),0) -> 0 | AD309: =ROUND(AB309*V309,0) -> 0 | AF309: =ROUND(AD309+AB309,0) -> 0
X312: Total Senior Personnel | Z312: =SUM(Z287:Z309) -> 0 | AD312: Total Senior Personnel | AF312: =SUM(AF287:AF309) -> 0
B315: Other Personnel
B316: Number of Personnel | L316: Base Salary/ Month | N316: Cal Month | P316: Acad. Month | R316: Summer Month | T316: Requested Salary | V316: Fringe Rate % | X316: Fringe Benefit $ | Z316: Federal Fund Requested $ | AB316: Cost-Shared / Matching Salary | AD316: Fringe Benefit $ | AF316: Cost-Shared / Matching Funds $
B318: =IF(years>4,+B250,0) -> 0 | D318: Post Doctoral Associate | L318: =+IF(years>4,+L250+(L250*$R$12),0) -> 0 | N318: =+IF(years>4,+N250,0) -> 0 | P318: =+IF(years>4,+P250,0) -> 0 | R318: 0 | T318: =ROUND(L318*(+N318+P318+R318)*B318,0) -> 0 | V318: =$H$377 -> 0.33 | X318: =ROUND(V318*T318,0) -> 0 | Z318: =ROUND(X318+T318,0) -> 0 | AB318: =+IF(years>4,+AB250+(AB250*$R$12),0) -> 0 | AD318: =ROUND(AB318*V318,0) -> 0 | AF318: =ROUND(AD318+AB318,0) -> 0
B320: =IF(years>4,+B252,0) -> 0 | D320: Post Doctoral Associate | L320: =+IF(years>4,+L252+(L252*$R$12),0) -> 0 | N320: =+IF(years>4,+N252,0) -> 0 | P320: =+IF(years>4,+P252,0) -> 0 | R320: =+IF(years>4,+R252,0) -> 0 | T320: =ROUND(L320*(+N320+P320+R320)*B320,0) -> 0 | V320: =$H$377 -> 0.33 | X320: =ROUND(V320*T320,0) -> 0 | Z320: =ROUND(X320+T320,0) -> 0 | AB320: =+IF(years>4,+AB252+(AB252*$R$12),0) -> 0 | AD320: =ROUND(AB320*V320,0) -> 0 | AF320: =ROUND(AD320+AB320,0) -> 0
B322: =IF(years>4,+B254,0) -> 0 | D322: Graduate Students | L322: =+IF(years>4,+L254+(L254*$R$12),0) -> 0 | N322: =+IF(years>4,+N254,0) -> 0 | P322: =+IF(years>4,+P254,0) -> 0 | R322: =+IF(years>4,+R254,0) -> 0 | T322: =ROUND(L322*(+N322+P322+R322)*B322,0) -> 0 | V322: =$H$370 -> 0.13 | X322: =ROUND(V322*T322,0) -> 0 | Z322: =ROUND(X322+T322,0) -> 0 | AB322: =+IF(years>4,+AB254+(AB254*$R$12),0) -> 0 | AD322: =ROUND(AB322*V322,0) -> 0 | AF322: =ROUND(AD322+AB322,0) -> 0
B324: =IF(years>4,+B256,0) -> 0 | D324: Graduate Students | L324: =+IF(years>4,+L256+(L256*$R$12),0) -> 0 | N324: =+IF(years>4,+N256,0) -> 0 | P324: =+IF(years>4,+P256,0) -> 0 | R324: =+IF(years>4,+R256,0) -> 0 | T324: =ROUND(L324*(+N324+P324+R324)*B324,0) -> 0 | V324: =$H$370 -> 0.13 | X324: =ROUND(V324*T324,0) -> 0 | Z324: =ROUND(X324+T324,0) -> 0 | AB324: =+IF(years>4,+AB256+(AB256*$R$12),0) -> 0 | AD324: =ROUND(AB324*V324,0) -> 0 | AF324: =ROUND(AD324+AB324,0) -> 0
B326: =IF(years>4,+B258,0) -> 0 | D326: Undergraduate Students | L326: =+IF(years>4,+L258+(L258*$R$12),0) -> 0 | N326: =+IF(years>4,+N258,0) -> 0 | P326: =+IF(years>4,+P258,0) -> 0 | R326: =+IF(years>4,+R258,0) -> 0 | T326: =ROUND(L326*(+N326+P326+R326)*B326,0) -> 0 | V326: =$H$383 -> 0.046 | X326: =ROUND(V326*T326,0) -> 0 | Z326: =ROUND(X326+T326,0) -> 0 | AB326: =+IF(years>4,+AB258+(AB258*$R$12),0) -> 0 | AD326: =ROUND(AB326*V326,0) -> 0 | AF326: =ROUND(AD326+AB326,0) -> 0
B328: =IF(years>4,+B260,0) -> 0 | D328: Undergraduate Students | L328: =+IF(years>4,+L260+(L260*$R$12),0) -> 0 | N328: =+IF(years>4,+N260,0) -> 0 | P328: =+IF(years>4,+P260,0) -> 0 | R328: =+IF(years>4,+R260,0) -> 0 | T328: =ROUND(L328*(+N328+P328+R328)*B328,0) -> 0 | V328: =$H$383 -> 0.046 | X328: =ROUND(V328*T328,0) -> 0 | Z328: =ROUND(X328+T328,0) -> 0 | AB328: =+IF(years>4,+AB260+(AB260*$R$12),0) -> 0 | AD328: =ROUND(AB328*V328,0) -> 0 | AF328: =ROUND(AD328+AB328,0) -> 0
B330: =IF(years>4,+B262,0) -> 0 | D330: Secretarial/Clerical | L330: =+IF(years>4,+L262+(L262*$R$12),0) -> 0 | N330: =+IF(years>4,+N262,0) -> 0 | P330: =+IF(years>4,+P262,0) -> 0 | R330: =+IF(years>4,+R262,0) -> 0 | T330: =ROUND(L330*(+N330+P330+R330)*B330,0) -> 0 | V330: =$H$375 -> 0.51 | X330: =ROUND(V330*T330,0) -> 0 | Z330: =ROUND(X330+T330,0) -> 0 | AB330: =+IF(years>4,+AB262+(AB262*$R$12),0) -> 0 | AD330: =ROUND(AB330*V330,0) -> 0 | AF330: =ROUND(AD330+AB330,0) -> 0
B332: =IF(years>4,+B264,0) -> 0 | D332: Non-Student Hourly | L332: =+IF(years>4,+L264+(L264*$R$12),0) -> 0 | N332: =+IF(years>4,+N264,0) -> 0 | P332: =+IF(years>4,+P264,0) -> 0 | R332: =+IF(years>4,+R264,0) -> 0 | T332: =ROUND(L332*(+N332+P332+R332)*B332,0) -> 0 | V332: =$H$371 -> 0.12 | X332: =ROUND(V332*T332,0) -> 0 | Z332: =ROUND(X332+T332,0) -> 0 | AB332: =+IF(years>4,+AB264+(AB264*$R$12),0) -> 0 | AD332: =ROUND(AB332*V332,0) -> 0 | AF332: =ROUND(AD332+AB332,0) -> 0
B334: =IF(years>4,+B266,0) -> 0 | D334: =+IF(years>4,+D266,0) -> 0 | J334: =+IF(years>4,+J266,J266) -> Select one | L334: =+IF(years>4,+L266+(L266*$R$12),0) -> 0 | N334: =+IF(years>4,+N266,0) -> 0 | P334: =+IF(years>4,+P266,0) -> 0 | R334: =+IF(years>4,+R266,0) -> 0 | T334: =ROUND(L334*(+N334+P334+R334)*B334,0) -> 0 | V334: =VLOOKUP(J334,$D$356:$H$386,5) -> 0 | X334: =ROUND(V334*T334,0) -> 0 | Z334: =ROUND(X334+T334,0) -> 0 | AB334: =+IF(years>4,+AB266+(AB266*$R$12),0) -> 0 | AD334: =ROUND(AB334*V334,0) -> 0 | AF334: =ROUND(AD334+AB334,0) -> 0
B336: =IF(years>4,+B268,0) -> 0 | D336: =+IF(years>4,+D268,0) -> 0 | J336: =+IF(years>4,+J268,J268) -> Select one | L336: =+IF(years>4,+L268+(L268*$R$12),0) -> 0 | N336: =+IF(years>4,+N268,0) -> 0 | P336: =+IF(years>4,+P268,0) -> 0 | R336: =+IF(years>4,+R268,0) -> 0 | T336: =ROUND(L336*(+N336+P336+R336)*B336,0) -> 0 | V336: =VLOOKUP(J336,$D$356:$H$386,5) -> 0 | X336: =ROUND(V336*T336,0) -> 0 | Z336: =ROUND(X336+T336,0) -> 0 | AB336: =+IF(years>4,+AB268+(AB268*$R$12),0) -> 0 | AD336: =ROUND(AB336*V336,0) -> 0 | AF336: =ROUND(AD336+AB336,0) -> 0
B338: =IF(years>4,+B270,0) -> 0 | D338: =+IF(years>4,+D270,0) -> 0 | J338: =+IF(years>4,+J270,J270) -> Select one | L338: =+IF(years>4,+L270+(L270*$R$12),0) -> 0 | N338: =+IF(years>4,+N270,0) -> 0 | P338: =+IF(years>4,+P270,0) -> 0 | R338: =+IF(years>4,+R270,0) -> 0 | T338: =ROUND(L338*(+N338+P338+R338)*B338,0) -> 0 | V338: =VLOOKUP(J338,$D$356:$H$386,5) -> 0 | X338: =ROUND(V338*T338,0) -> 0 | Z338: =ROUND(X338+T338,0) -> 0 | AB338: =+IF(years>4,+AB270+(AB270*$R$12),0) -> 0 | AD338: =ROUND(AB338*V338,0) -> 0 | AF338: =ROUND(AD338+AB338,0) -> 0
B340: =IF(years>4,+B272,0) -> 0 | D340: =+IF(years>4,+D272,0) -> 0 | J340: =+IF(years>4,+J272,J272) -> Select one | L340: =+IF(years>4,+L272+(L272*$R$12),0) -> 0 | N340: =+IF(years>4,+N272,0) -> 0 | P340: =+IF(years>4,+P272,0) -> 0 | R340: =+IF(years>4,+R272,0) -> 0 | T340: =ROUND(L340*(+N340+P340+R340)*B340,0) -> 0 | V340: =VLOOKUP(J340,$D$356:$H$386,5) -> 0 | X340: =ROUND(V340*T340,0) -> 0 | Z340: =ROUND(X340+T340,0) -> 0 | AB340: =+IF(years>4,+AB272+(AB272*$R$12),0) -> 0 | AD340: =ROUND(AB340*V340,0) -> 0 | AF340: =ROUND(AD340+AB340,0) -> 0
B342: =IF(years>4,+B274,0) -> 0 | D342: =+IF(years>4,+D274,0) -> 0 | J342: =+IF(years>4,+J274,J274) -> Select one | L342: =+IF(years>4,+L274+(L274*$R$12),0) -> 0 | N342: =+IF(years>4,+N274,0) -> 0 | P342: =+IF(years>4,+P274,0) -> 0 | R342: =+IF(years>4,+R274,0) -> 0 | T342: =ROUND(L342*(+N342+P342+R342)*B342,0) -> 0 | V342: =VLOOKUP(J342,$D$356:$H$386,5) -> 0 | X342: =ROUND(V342*T342,0) -> 0 | Z342: =ROUND(X342+T342,0) -> 0 | AB342: =+IF(years>4,+AB274+(AB274*$R$12),0) -> 0 | AD342: =ROUND(AB342*V342,0) -> 0 | AF342: =ROUND(AD342+AB342,0) -> 0
B344: =IF(years>4,+B276,0) -> 0 | D344: =+IF(years>4,+D276,0) -> 0 | J344: =+IF(years>4,+J276,J276) -> Select one | L344: =+IF(years>4,+L276+(L276*$R$12),0) -> 0 | N344: =+IF(years>4,+N276,0) -> 0 | P344: =+IF(years>4,+P276,0) -> 0 | R344: =+IF(years>4,+R276,0) -> 0 | T344: =ROUND(L344*(+N344+P344+R344)*B344,0) -> 0 | V344: =VLOOKUP(J344,$D$356:$H$386,5) -> 0 | X344: =ROUND(V344*T344,0) -> 0 | Z344: =ROUND(X344+T344,0) -> 0 | AB344: =+IF(years>4,+AB276+(AB276*$R$12),0) -> 0 | AD344: =ROUND(AB344*V344,0) -> 0 | AF344: =ROUND(AD344+AB344,0) -> 0
X347: Total Other Personnel | Z347: =SUM(Z318:Z344) -> 0 | AD347: Total Other Personnel | AF347: =SUM(AF318:AF344) -> 0
W349: Year 5 Totals | X349: Fringes | Z349: Salaries
X350: =SUM(X318:X344,X287:X309) -> 0 | Z350: =SUM(T318:T344,T287:T309) -> 0
W352: Cumulative Totals - All Years | X352: Fringes | Z352: Salaries
X353: =+X78+X146+X214+X282+X350 -> 0 | Z353: =+Z78+Z146+Z214+Z282+Z350 -> 0
B354: List of Classifications and Fringe Rates | J354: Escalation
D356: Select one | H356: 0
D357: Admin Spec | H357: 0.378 | J357: 0
D358: Assist/Assoc Dir | H358: 0.378 | J358: 0.005
D359: Assoc/Ass't Prof | H359: 0.315 | J359: 0.01
D360: Clerk | H360: 0.51 | J360: 0.015
D361: Comp Support | H361: 0.378 | J361: 0.02
D362: Comp Tech | H362: 0.378 | J362: 0.025
D363: Data Entry/Tech | H363: 0.51 | J363: 0.03
D364: Director | H364: 0.378 | J364: 0.035
D365: Engineer | H365: 0.378 | J365: 0.04
D366: Ext Prog Asst | H366: 0.378
D367: Ext Specialist | H367: 0.378
D368: Extension Dir | H368: 0.378
D369: Faculty | H369: 0.315
D370: Graduate Student | H370: 0.13
D371: Hourly (Non-student) | H371: 0.12
D372: Instructor | H372: 0.315
D373: Lecturer | H373: 0.315
D374: Manager | H374: 0.378
D375: Merit | H375: 0.51
... 11 more rows

Sheet Equip-Travel-Participants
C1: Running Total for Cumulative Budget Amount = | I1: ='Cumulative Budget'!AE65 -> 0
A2: Worksheet for Project Budget - Equipment, Travel, Participant/Trainee Support Costs
C4: Equipment Description | K4: Year 1 | M4: Year 2 | O4: Year 3 | Q4: Year 4 | S4: Year 5 | U4: Year 1 | W4: Year 2 | Y4: Year 3 | AA4: Year 4 | AC4: Year 5
C5: List items and dollar amount for each item exceeding $5,000
C6: Equipment item | K6: Funds Requested | M6: Funds Requested | O6: Funds Requested | Q6: Funds Requested | S6: Funds Requested | U6: Cost-Sharing / Matching Funds | W6: Cost-Sharing / Matching Funds | Y6: Cost-Sharing / Matching Funds | AA6: Cost-Sharing / Matching Funds | AC6: Cost-Sharing / Matching Funds
A8: 1 | M8: 0 | O8: 0 | Q8: 0 | S8: 0 | U8: 0 | W8: 0
A10: 2 | M10: 0 | W10: 0
A12: 3 | M12: 0 | W12: 0
A14: 4 | M14: 0 | W14: 0
A16: 5 | M16: 0 | W16: 0
A18: 6 | M18: 0 | W18: 0
A20: 7 | M20: 0 | W20: 0
A22: 8 | M22: 0 | U22: 0 | W22: 0 | Y22: 0 | AA22: 0 | AC22: 0
A24: 9 | M24: 0 | W24: 0
A26: 10 | M26: 0 | W26: 0
C28: Total funds requested for all eqiupment listed | K28: =SUM(K8:K26) -> 0 | M28: =SUM(M8:M26) -> 0 | O28: =SUM(O8:O26) -> 0 | Q28: =SUM(Q8:Q26) -> 0 | S28: =SUM(S8:S26) -> 0 | U28: =SUM(U8:U26) -> 0 | W28: =SUM(W8:W26) -> 0 | Y28: =SUM(Y8:Y26) -> 0 | AA28: =SUM(AA8:AA26) -> 0 | AC28: =SUM(AC8:AC26) -> 0
C32: Travel
A34: 1 | C34: Domestic Travel Costs (incl. Canada, Mexico and U.S. Possessions | M34: =IF(years>1,+K34*1.03,0) -> 0 | O34: =IF(years>2,+M34*1.03,0) -> 0 | Q34: =IF(years>3,+O34*1.03,0) -> 0 | S34: =IF(years>4,+Q34*1.03,0) -> 0 | U34: 0 | W34: =IF(years>1,+U34*1.03,0) -> 0 | Y34: =IF(years>2,+W34*1.03,0) -> 0 | AA34: =IF(years>3,+Y34*1.03,0) -> 0 | AC34: =IF(years>4,+AA34*1.03,0) -> 0
A36: 2 | C36: Foreign Travel Costs | M36: =IF(years>1,+K36*1.03,0) -> 0 | O36: =IF(years>2,+M36*1.03,0) -> 0 | Q36: =IF(years>3,+O36*1.03,0) -> 0 | S36: =IF(years>4,+Q36*1.03,0) -> 0 | U36: 0 | W36: =IF(years>1,+U36*1.03,0) -> 0 | Y36: =IF(years>2,+W36*1.03,0) -> 0 | AA36: =IF(years>3,+Y36*1.03,0) -> 0 | AC36: =IF(years>4,+AA36*1.03,0) -> 0
C38: Total Travel Cost | K38: =SUM(K34:K36) -> 0 | M38: =SUM(M34:M36) -> 0 | O38: =SUM(O34:O36) -> 0 | Q38: =SUM(Q34:Q36) -> 0 | S38: =SUM(S34:S36) -> 0 | U38: =SUM(U34:U36) -> 0 | W38: =SUM(W34:W36) -> 0 | Y38: =SUM(Y34:Y36) -> 0 | AA38: =SUM(AA34:AA36) -> 0 | AC38: =SUM(AC34:AC36) -> 0
C40: Participant/Trainee Support Costs (for NSF only)
A42: 2 | C42: Stipend | M42: =IF(years>1,+K42*1.03,0) -> 0 | O42: =IF(years>2,+M42*1.03,0) -> 0 | Q42: =IF(years>3,+O42*1.03,0) -> 0 | S42: =IF(years>4,+Q42*1.03,0) -> 0 | U42: 0 | W42: =IF(years>1,+U42*1.03,0) -> 0 | Y42: =IF(years>2,+W42*1.03,0) -> 0 | AA42: =IF(years>3,+Y42*1.03,0) -> 0 | AC42: =IF(years>4,+AA42*1.03,0) -> 0
A44: 3 | C44: Travel | M44: =IF(years>1,+K44*1.03,0) -> 0 | O44: =IF(years>2,+M44*1.03,0) -> 0 | Q44: =IF(years>3,+O44*1.03,0) -> 0 | S44: =IF(years>4,+Q44*1.03,0) -> 0 | U44: 0 | W44: =IF(years>1,+U44*1.03,0) -> 0 | Y44: =IF(years>2,+W44*1.03,0) -> 0 | AA44: =IF(years>3,+Y44*1.03,0) -> 0 | AC44: =IF(years>4,+AA44*1.03,0) -> 0
A46: 4 | C46: Subsistence | M46: =IF(years>1,+K46*1.03,0) -> 0 | O46: =IF(years>2,+M46*1.03,0) -> 0 | Q46: =IF(years>3,+O46*1.03,0) -> 0 | S46: =IF(years>4,+Q46*1.03,0) -> 0 | U46: 0 | W46: =IF(years>1,+U46*1.03,0) -> 0 | Y46: =IF(years>2,+W46*1.03,0) -> 0 | AA46: =IF(years>3,+Y46*1.03,0) -> 0 | AC46: =IF(years>4,+AA46*1.03,0) -> 0
A48: 5 | C48: Other | M48: =IF(years>1,+K48*1.03,0) -> 0 | O48: =IF(years>2,+M48*1.03,0) -> 0 | Q48: =IF(years>3,+O48*1.03,0) -> 0 | S48: =IF(years>4,+Q48*1.03,0) -> 0 | U48: 0 | W48: =IF(years>1,+U48*1.03,0) -> 0 | Y48: =IF(years>2,+W48*1.03,0) -> 0 | AA48: =IF(years>3,+Y48*1.03,0) -> 0 | AC48: =IF(years>4,+AA48*1.03,0) -> 0
G50: Total Participant/Trainee Support Costs | K50: =SUM(K42:K48) -> 0 | M50: =SUM(M42:M48) -> 0 | O50: =SUM(O42:O48) -> 0 | Q50: =SUM(Q42:Q48) -> 0 | S50: =SUM(S42:S48) -> 0 | U50: =SUM(U42:U48) -> 0 | W50: =SUM(W42:W48) -> 0 | Y50: =SUM(Y42:Y48) -> 0 | AA50: =SUM(AA42:AA48) -> 0 | AC50: =SUM(AC42:AC48) -> 0
H52: # of Participants/Trainees | M52: 0 | O52: 0 | Q52: 0 | S52: 0 | U52: 0 | W52: 0 | Y52: 0 | AA52: 0 | AC52: 0
U55: =+U13 -> 0
U56: 0
U57: 0
U58: 0
U59: 0
U60: 0
U61: 0
U62: 0
U63: 0
U64: 0
U65: 0
U66: 0
U67: 0
U68: 0
U69: 0
U70: 0
U71: 0
U72: 0
U73: 0
U74: 0
U75: 0
U76: 0
U77: 0
U78: 0
U79: 0
U80: 0
U81: 0
U82: 0
U83: 0
U84: =+#REF! -> 
U85: =+#REF! -> 
U86: =+U42 -> 0
U87: 0
U88: 0
U89: 0
U90: 0
U91: 0
U92: 0
U93: 0
U94: 0
U95: 0

Sheet Other Direct
C1: Running Total for Cumulative Budget Amount = | I1: ='Cumulative Budget'!AE65 -> 0
A2: Worksheet for Project Budget - Equipment, Travel, Participant/Trainee Support Costs
C4: Other Direct Costs | K4: Year 1 | M4: Year 2 | O4: Year 3 | Q4: Year 4 | S4: Year 5 | U4: Year 1 | W4: Year 2 | Y4: Year 3 | AA4: Year 4 | AC4: Year 5
K6: Funds Requested | M6: Funds Requested | O6: Funds Requested | Q6: Funds Requested | S6: Funds Requested | U6: Cost-Sharing / Matching Funds | W6: Cost-Sharing / Matching Funds | Y6: Cost-Sharing / Matching Funds | AA6: Cost-Sharing / Matching Funds | AC6: Cost-Sharing / Matching Funds
A8: 1 | C8: Materials and Supplies
A10: 2 | C10: Publication Costs
A12: 3 | C12: Consultant Services
A14: 4 | C14: ADP/Computer Services
A16: 5 | C16: Subawards/Consortium/Contractual Costs | K16: =Subcontracts!K60 -> 0 | M16: =Subcontracts!M60 -> 0 | O16: =Subcontracts!O60 -> 0 | Q16: =Subcontracts!Q60 -> 0 | S16: =Subcontracts!S60 -> 0 | U16: =Subcontracts!U60 -> 0 | W16: =Subcontracts!W60 -> 0 | Y16: =Subcontracts!Y60 -> 0 | AA16: =Subcontracts!AA60 -> 0 | AC16: =Subcontracts!AC60 -> 0
A18: 6 | C18: Equipment or Facility Rental/User Fees
A20: 7 | C20: Alterations and Renovations | K20: 0
A22: 8 | C22: Graduate Student Tuition (most majors) | G22: select 1/4-time/1/2-time > > | I22: 1/2-time | K22: =ROUND(IF($I$22="1/2-time",K23,K24),0) -> 0 | M22: =ROUND(IF($I$22="1/2-time",M23,M24),0) -> 0 | O22: =ROUND(IF($I$22="1/2-time",O23,O24),0) -> 0 | Q22: =ROUND(IF($I$22="1/2-time",Q23,Q24),0) -> 0 | S22: =ROUND(IF($I$22="1/2-time",S23,S24),0) -> 0
A23: 8 | C23: Graduate Student Tuition | I23: Maximum | K23: =+C29*VLOOKUP(K29,$I$101:$Q$126,5,FALSE)+C31*VLOOKUP(K31,$I$101:$Q$126,5,FALSE)+C33*VLOOKUP(K33,$I$101:$Q$126,5,FALSE)+C35*VLOOKUP(K35,$I$101:$Q$126,9,FALSE)+C37*VLOOKUP(K37,$I$101:$Q$126,9,FALSE)+C39*VLOOKUP(K39,$I$101:$Q$126,9,FALSE) -> 0 | M23: =+E29*VLOOKUP(M29,$I$101:$Q$133,5,FALSE)+E31*VLOOKUP(M31,$I$101:$Q$133,5,FALSE)+E33*VLOOKUP(M33,$I$101:$Q$133,5,FALSE)+E35*VLOOKUP(M35,$I$101:$Q$133,9,FALSE)+E37*VLOOKUP(M37,$I$101:$Q$133,9,FALSE)+E39*VLOOKUP(M39,$I$101:$Q$133,9,FALSE) -> 0 | O23: =+F29*VLOOKUP(O29,$I$101:$Q$133,5,FALSE)+F31*VLOOKUP(O31,$I$101:$Q$133,5,FALSE)+F33*VLOOKUP(O33,$I$101:$Q$133,5,FALSE)+F35*VLOOKUP(O35,$I$101:$Q$133,9,FALSE)+F37*VLOOKUP(O37,$I$101:$Q$133,9,FALSE)+F39*VLOOKUP(O39,$I$101:$Q$133,9,FALSE) -> 0 | Q23: =+G29*VLOOKUP(Q29,$I$101:$Q$133,5,FALSE)+G31*VLOOKUP(Q31,$I$101:$Q$133,5,FALSE)+G33*VLOOKUP(Q33,$I$101:$Q$133,5,FALSE)+G35*VLOOKUP(Q35,$I$101:$Q$133,9,FALSE)+G37*VLOOKUP(Q37,$I$101:$Q$133,9,FALSE)+G39*VLOOKUP(Q39,$I$101:$Q$133,9,FALSE) -> 0 | S23: =+H29*VLOOKUP(S29,$I$101:$Q$133,5,FALSE)+H31*VLOOKUP(S31,$I$101:$Q$133,5,FALSE)+H33*VLOOKUP(S33,$I$101:$Q$133,5,FALSE)+H35*VLOOKUP(S35,$I$101:$Q$133,9,FALSE)+H37*VLOOKUP(S37,$I$101:$Q$133,9,FALSE)+H39*VLOOKUP(S39,$I$101:$Q$133,9,FALSE) -> 0
A24: 8 | C24: Graduate Student Tuition | I24: Minimum | K24: =+C29*VLOOKUP(K29,$I$101:$Q$126,3,FALSE)+C31*VLOOKUP(K31,$I$101:$Q$126,3,FALSE)+C33*VLOOKUP(K33,$I$101:$Q$126,3,FALSE)+C35*VLOOKUP(K35,$I$101:$Q$126,7,FALSE)+C37*VLOOKUP(K37,$I$101:$Q$126,7,FALSE)+C39*VLOOKUP(K39,$I$101:$Q$126,7,FALSE) -> 0 | M24: =+E29*VLOOKUP(M29,$I$101:$Q$126,3,FALSE)+E31*VLOOKUP(M31,$I$101:$Q$126,3,FALSE)+E33*VLOOKUP(M33,$I$101:$Q$126,3,FALSE)+E35*VLOOKUP(M35,$I$101:$Q$126,7,FALSE)+E37*VLOOKUP(M37,$I$101:$Q$126,7,FALSE)+E39*VLOOKUP(M39,$I$101:$Q$126,7,FALSE) -> 0 | O24: =+F29*VLOOKUP(O29,$I$101:$Q$126,3,FALSE)+F31*VLOOKUP(O31,$I$101:$Q$126,3,FALSE)+F33*VLOOKUP(O33,$I$101:$Q$126,3,FALSE)+F35*VLOOKUP(O35,$I$101:$Q$126,7,FALSE)+F37*VLOOKUP(O37,$I$101:$Q$126,7,FALSE)+F39*VLOOKUP(O39,$I$101:$Q$126,7,FALSE) -> 0 | Q24: =+G29*VLOOKUP(Q29,$I$101:$Q$126,3,FALSE)+G31*VLOOKUP(Q31,$I$101:$Q$126,3,FALSE)+G33*VLOOKUP(Q33,$I$101:$Q$126,3,FALSE)+G35*VLOOKUP(Q35,$I$101:$Q$126,7,FALSE)+G37*VLOOKUP(Q37,$I$101:$Q$126,7,FALSE)+G39*VLOOKUP(Q39,$I$101:$Q$126,7,FALSE) -> 0 | S24: =+H29*VLOOKUP(S29,$I$101:$Q$126,3,FALSE)+H31*VLOOKUP(S31,$I$101:$Q$126,3,FALSE)+H33*VLOOKUP(S33,$I$101:$Q$126,3,FALSE)+H35*VLOOKUP(S35,$I$101:$Q$126,7,FALSE)+H37*VLOOKUP(S37,$I$101:$Q$126,7,FALSE)+H39*VLOOKUP(S39,$I$101:$Q$126,7,FALSE) -> 0
C27: Graduate Student Tuition (most majors)
C28: Year 1 | E28: Year 2 | F28: Year 3 | G28: Year 4 | H28: Year 5
A29: Masters Students (enter no. of students per term) | I29: Summer | K29: Summer 2014 | M29: Summer 2015 | O29: Summer 2016 | Q29: Summer 2017 | S29: Summer 2018
I31: Fall | K31: Fall 2014 | M31: Fall 2015 | O31: Fall 2016 | Q31: Fall 2017 | S31: Fall 2018
I33: Spring | K33: Spring 2015 | M33: Spring 2016 | O33: Spring 2017 | Q33: Spring 2018 | S33: Spring 2019
C34: Year 1 | E34: Year 2 | F34: Year 3 | G34: Year 4 | H34: Year 5
A35: PhD Students (enter no. of students per term) | I35: Summer | K35: Summer 2014 | M35: Summer 2015 | O35: Summer 2016 | Q35: Summer 2017 | S35: Summer 2018
I37: Fall | K37: Fall 2014 | M37: Fall 2015 | O37: Fall 2016 | Q37: Fall 2017 | S37: Fall 2018
I39: Spring | K39: Spring 2015 | M39: Spring 2016 | O39: Spring 2017 | Q39: Spring 2018 | S39: Spring 2019
A42: 8 | C42: Graduate Student Tuition( Engineering & Architecture) | G42: select 1/4-time/1/2-time > > | I42: 1/2-time | K42: =ROUND(IF($I$42="1/2-time",K43,K44),0) -> 0 | M42: =ROUND(IF($I$42="1/2-time",M43,M44),0) -> 0 | O42: =ROUND(IF($I$42="1/2-time",O43,O44),0) -> 0 | Q42: =ROUND(IF($I$42="1/2-time",Q43,Q44),0) -> 0 | S42: =ROUND(IF($I$42="1/2-time",S43,S44),0) -> 0
A43: 8 | C43: Graduate Student Tuition | I43: Maximum | K43: =+C49*VLOOKUP(K49,$I$131:$Q$156,5,FALSE)+C51*VLOOKUP(K51,$I$131:$Q$156,5,FALSE)+C53*VLOOKUP(K53,$I$131:$Q$156,5,FALSE)+C55*VLOOKUP(K55,$I$131:$Q$156,9,FALSE)+C57*VLOOKUP(K57,$I$131:$Q$156,9,FALSE)+C59*VLOOKUP(K59,$I$131:$Q$156,9,FALSE) -> 0 | M43: =+E49*VLOOKUP(M49,$I$131:$Q$156,5,FALSE)+E51*VLOOKUP(M51,$I$131:$Q$156,5,FALSE)+E53*VLOOKUP(M53,$I$131:$Q$156,5,FALSE)+E55*VLOOKUP(M55,$I$131:$Q$156,9,FALSE)+E57*VLOOKUP(M57,$I$131:$Q$156,9,FALSE)+E59*VLOOKUP(M59,$I$131:$Q$156,9,FALSE) -> 0 | O43: =+F49*VLOOKUP(O49,$I$131:$Q$156,5,FALSE)+F51*VLOOKUP(O51,$I$131:$Q$156,5,FALSE)+F53*VLOOKUP(O53,$I$131:$Q$156,5,FALSE)+F55*VLOOKUP(O55,$I$131:$Q$156,9,FALSE)+F57*VLOOKUP(O57,$I$131:$Q$156,9,FALSE)+F59*VLOOKUP(O59,$I$131:$Q$156,9,FALSE) -> 0 | Q43: =+G49*VLOOKUP(Q49,$I$131:$Q$156,5,FALSE)+G51*VLOOKUP(Q51,$I$131:$Q$156,5,FALSE)+G53*VLOOKUP(Q53,$I$131:$Q$156,5,FALSE)+G55*VLOOKUP(Q55,$I$131:$Q$156,9,FALSE)+G57*VLOOKUP(Q57,$I$131:$Q$156,9,FALSE)+G59*VLOOKUP(Q59,$I$131:$Q$156,9,FALSE) -> 0 | S43: =+H49*VLOOKUP(S49,$I$131:$Q$156,5,FALSE)+H51*VLOOKUP(S51,$I$131:$Q$156,5,FALSE)+H53*VLOOKUP(S53,$I$131:$Q$156,5,FALSE)+H55*VLOOKUP(S55,$I$131:$Q$156,9,FALSE)+H57*VLOOKUP(S57,$I$131:$Q$156,9,FALSE)+H59*VLOOKUP(S59,$I$131:$Q$156,9,FALSE) -> 0
A44: 8 | C44: Graduate Student Tuition | I44: Minimum | K44: =+C49*VLOOKUP(K49,$I$131:$Q$156,3,FALSE)+C51*VLOOKUP(K51,$I$131:$Q$156,3,FALSE)+C53*VLOOKUP(K53,$I$131:$Q$156,3,FALSE)+C55*VLOOKUP(K55,$I$131:$Q$156,7,FALSE)+C57*VLOOKUP(K57,$I$131:$Q$156,7,FALSE)+C59*VLOOKUP(K59,$I$131:$Q$156,7,FALSE) -> 0 | M44: =+E49*VLOOKUP(M49,$I$131:$Q$156,3,FALSE)+E51*VLOOKUP(M51,$I$131:$Q$156,3,FALSE)+E53*VLOOKUP(M53,$I$131:$Q$156,3,FALSE)+E55*VLOOKUP(M55,$I$131:$Q$156,7,FALSE)+E57*VLOOKUP(M57,$I$131:$Q$156,7,FALSE)+E59*VLOOKUP(M59,$I$131:$Q$156,7,FALSE) -> 0 | O44: =+F49*VLOOKUP(O49,$I$131:$Q$156,3,FALSE)+F51*VLOOKUP(O51,$I$131:$Q$156,3,FALSE)+F53*VLOOKUP(O53,$I$131:$Q$156,3,FALSE)+F55*VLOOKUP(O55,$I$131:$Q$156,7,FALSE)+F57*VLOOKUP(O57,$I$131:$Q$156,7,FALSE)+F59*VLOOKUP(O59,$I$131:$Q$156,7,FALSE) -> 0 | Q44: =+G49*VLOOKUP(Q49,$I$131:$Q$156,3,FALSE)+G51*VLOOKUP(Q51,$I$131:$Q$156,3,FALSE)+G53*VLOOKUP(Q53,$I$131:$Q$156,3,FALSE)+G55*VLOOKUP(Q55,$I$131:$Q$156,7,FALSE)+G57*VLOOKUP(Q57,$I$131:$Q$156,7,FALSE)+G59*VLOOKUP(Q59,$I$131:$Q$156,7,FALSE) -> 0 | S44: =+H49*VLOOKUP(S49,$I$131:$Q$156,3,FALSE)+H51*VLOOKUP(S51,$I$131:$Q$156,3,FALSE)+H53*VLOOKUP(S53,$I$131:$Q$156,3,FALSE)+H55*VLOOKUP(S55,$I$131:$Q$156,7,FALSE)+H57*VLOOKUP(S57,$I$131:$Q$156,7,FALSE)+H59*VLOOKUP(S59,$I$131:$Q$156,7,FALSE) -> 0
C47: Engineering & Architecture Students Only
C48: Year 1 | E48: Year 2 | F48: Year 3 | G48: Year 4 | H48: Year 5
A49: Masters Students (enter no. of students per term) | I49: Summer | K49: Summer 2014 | M49: Summer 2015 | O49: Summer 2016 | Q49: Summer 2017 | S49: Summer 2018
C50: 1
I51: Fall | K51: Fall 2014 | M51: Fall 2015 | O51: Fall 2016 | Q51: Fall 2017 | S51: Fall 2018
I53: Spring | K53: Spring 2015 | M53: Spring 2016 | O53: Spring 2017 | Q53: Spring 2018 | S53: Spring 2019
C54: Year 1 | E54: Year 2 | F54: Year 3 | G54: Year 4 | H54: Year 5
A55: PhD Students (enter no. of students per term) | I55: Summer | K55: Summer 2014 | M55: Summer 2015 | O55: Summer 2016 | Q55: Summer 2017 | S55: Summer 2018
I57: Fall | K57: Fall 2014 | M57: Fall 2015 | O57: Fall 2016 | Q57: Fall 2017 | S57: Fall 2018
I59: Spring | K59: Spring 2015 | M59: Spring 2016 | O59: Spring 2017 | Q59: Spring 2018 | S59: Spring 2019
A62: 8 | C62: Graduate Student Tuition(Business & STB) | G62: select 1/4-time/1/2-time > > | I62: 1/2-time | K62: =ROUND(IF($I$62="1/2-time",K63,K64),0) -> 0 | M62: =ROUND(IF($I$62="1/2-time",M63,M64),0) -> 0 | O62: =ROUND(IF($I$62="1/2-time",O63,O64),0) -> 0 | Q62: =ROUND(IF($I$62="1/2-time",Q63,Q64),0) -> 0 | S62: =ROUND(IF($I$62="1/2-time",S63,S64),0) -> 0
A63: 8 | C63: Graduate Student Tuition | I63: Maximum | K63: =+C69*VLOOKUP(K69,$I$161:$Q$186,5,FALSE)+C71*VLOOKUP(K71,$I$161:$Q$186,5,FALSE)+C73*VLOOKUP(K73,$I$161:$Q$186,5,FALSE)+C75*VLOOKUP(K75,$I$161:$Q$186,9,FALSE)+C77*VLOOKUP(K77,$I$161:$Q$186,9,FALSE)+C79*VLOOKUP(K79,$I$161:$Q$186,9,FALSE) -> 0 | M63: =+E69*VLOOKUP(M69,$I$161:$Q$186,5,FALSE)+E71*VLOOKUP(M71,$I$161:$Q$186,5,FALSE)+E73*VLOOKUP(M73,$I$161:$Q$186,5,FALSE)+E75*VLOOKUP(M75,$I$161:$Q$186,9,FALSE)+E77*VLOOKUP(M77,$I$161:$Q$186,9,FALSE)+E79*VLOOKUP(M79,$I$161:$Q$186,9,FALSE) -> 0 | O63: =+F69*VLOOKUP(O69,$I$161:$Q$186,5,FALSE)+F71*VLOOKUP(O71,$I$161:$Q$186,5,FALSE)+F73*VLOOKUP(O73,$I$161:$Q$186,5,FALSE)+F75*VLOOKUP(O75,$I$161:$Q$186,9,FALSE)+F77*VLOOKUP(O77,$I$161:$Q$186,9,FALSE)+F79*VLOOKUP(O79,$I$161:$Q$186,9,FALSE) -> 0 | Q63: =+G69*VLOOKUP(Q69,$I$161:$Q$186,5,FALSE)+G71*VLOOKUP(Q71,$I$161:$Q$186,5,FALSE)+G73*VLOOKUP(Q73,$I$161:$Q$186,5,FALSE)+G75*VLOOKUP(Q75,$I$161:$Q$186,9,FALSE)+G77*VLOOKUP(Q77,$I$161:$Q$186,9,FALSE)+G79*VLOOKUP(Q79,$I$161:$Q$186,9,FALSE) -> 0 | S63: =+H69*VLOOKUP(S69,$I$161:$Q$186,5,FALSE)+H71*VLOOKUP(S71,$I$161:$Q$186,5,FALSE)+H73*VLOOKUP(S73,$I$161:$Q$186,5,FALSE)+H75*VLOOKUP(S75,$I$161:$Q$186,9,FALSE)+H77*VLOOKUP(S77,$I$161:$Q$186,9,FALSE)+H79*VLOOKUP(S79,$I$161:$Q$186,9,FALSE) -> 0
A64: 8 | C64: Graduate Student Tuition | I64: Minimum | K64: =+C69*VLOOKUP(K69,$I$161:$Q$186,3,FALSE)+C71*VLOOKUP(K71,$I$161:$Q$186,3,FALSE)+C73*VLOOKUP(K73,$I$161:$Q$186,3,FALSE)+C75*VLOOKUP(K75,$I$161:$Q$186,7,FALSE)+C77*VLOOKUP(K77,$I$161:$Q$186,7,FALSE)+C79*VLOOKUP(K79,$I$161:$Q$186,7,FALSE) -> 0 | M64: =+E69*VLOOKUP(M69,$I$161:$Q$186,3,FALSE)+E71*VLOOKUP(M71,$I$161:$Q$186,3,FALSE)+E73*VLOOKUP(M73,$I$161:$Q$186,3,FALSE)+E75*VLOOKUP(M75,$I$161:$Q$186,7,FALSE)+E77*VLOOKUP(M77,$I$161:$Q$186,7,FALSE)+E79*VLOOKUP(M79,$I$161:$Q$186,7,FALSE) -> 0 | O64: =+F69*VLOOKUP(O69,$I$161:$Q$186,3,FALSE)+F71*VLOOKUP(O71,$I$161:$Q$186,3,FALSE)+F73*VLOOKUP(O73,$I$161:$Q$186,3,FALSE)+F75*VLOOKUP(O75,$I$161:$Q$186,7,FALSE)+F77*VLOOKUP(O77,$I$161:$Q$186,7,FALSE)+F79*VLOOKUP(O79,$I$161:$Q$186,7,FALSE) -> 0 | Q64: =+G69*VLOOKUP(Q69,$I$161:$Q$186,3,FALSE)+G71*VLOOKUP(Q71,$I$161:$Q$186,3,FALSE)+G73*VLOOKUP(Q73,$I$161:$Q$186,3,FALSE)+G75*VLOOKUP(Q75,$I$161:$Q$186,7,FALSE)+G77*VLOOKUP(Q77,$I$161:$Q$186,7,FALSE)+G79*VLOOKUP(Q79,$I$161:$Q$186,7,FALSE) -> 0 | S64: =+H69*VLOOKUP(S69,$I$161:$Q$186,3,FALSE)+H71*VLOOKUP(S71,$I$161:$Q$186,3,FALSE)+H73*VLOOKUP(S73,$I$161:$Q$186,3,FALSE)+H75*VLOOKUP(S75,$I$161:$Q$186,7,FALSE)+H77*VLOOKUP(S77,$I$161:$Q$186,7,FALSE)+H79*VLOOKUP(S79,$I$161:$Q$186,7,FALSE) -> 0
C67: Business and STB Students Only
C68: Year 1 | E68: Year 2 | F68: Year 3 | G68: Year 4 | H68: Year 5
A69: Masters Students (enter no. of students per term) | I69: Summer | K69: Summer 2014 | M69: Summer 2015 | O69: Summer 2016 | Q69: Summer 2017 | S69: Summer 2018
C70: 1
I71: Fall | K71: Fall 2014 | M71: Fall 2015 | O71: Fall 2016 | Q71: Fall 2017 | S71: Fall 2018
I73: Spring | K73: Spring 2015 | M73: Spring 2016 | O73: Spring 2017 | Q73: Spring 2018 | S73: Spring 2019
C74: Year 1 | E74: Year 2 | F74: Year 3 | G74: Year 4 | H74: Year 5
A75: PhD Students (enter no. of students per term) | I75: Summer | K75: Summer 2014 | M75: Summer 2015 | O75: Summer 2016 | Q75: Summer 2017 | S75: Summer 2018
I77: Fall | K77: Fall 2014 | M77: Fall 2015 | O77: Fall 2016 | Q77: Fall 2017 | S77: Fall 2018
I79: Spring | K79: Spring 2015 | M79: Spring 2016 | O79: Spring 2017 | Q79: Spring 2018 | S79: Spring 2019
A81: 9 | C81: other
A83: 10 | C83: other
A85: 11 | C85: other
A87: 12 | C87: other
C89: Total Other Direct Costs | K89: =SUM(K8:K22)+K42+K62+K81+K83+K85+K87 -> 0 | M89: =SUM(M8:M22)+M42+M62+M81+M83+M85+M87 -> 0 | O89: =SUM(O8:O22)+O42+O62+O81+O83+O85+O87 -> 0 | Q89: =SUM(Q8:Q22)+Q42+Q62+Q81+Q83+Q85+Q87 -> 0 | S89: =SUM(S8:S22)+S42+S62+S81+S83+S85+S87 -> 0 | U89: =SUM(U8:U22)+U42+U62+U81+U83+U85+U87 -> 0 | W89: =SUM(W8:W22)+W42+W62+W81+W83+W85+W87 -> 0 | Y89: =SUM(Y8:Y22)+Y42+Y62+Y81+Y83+Y85+Y87 -> 0 | AA89: =SUM(AA8:AA22)+AA42+AA62+AA81+AA83+AA85+AA87 -> 0 | AC89: =SUM(AC8:AC22)+AC42+AC62+AC81+AC83+AC85+AC87 -> 0
C93: Total All Direct Costs | K93: =K89+'Salaries & Wages'!Z41+'Salaries & Wages'!Z75+'Equip-Travel-Participants'!K28+'Equip-Travel-Participants'!K38+'Equip-Travel-Participants'!K50 -> 0 | M93: =M89+'Salaries & Wages'!Z108+'Salaries & Wages'!Z143+'Equip-Travel-Participants'!M28+'Equip-Travel-Participants'!M38+'Equip-Travel-Participants'!M50 -> 0 | O93: =O89+'Salaries & Wages'!Z176+'Salaries & Wages'!Z211+'Equip-Travel-Participants'!O28+'Equip-Travel-Participants'!O38+'Equip-Travel-Participants'!O50 -> 0 | Q93: =Q89+'Salaries & Wages'!Z244+'Salaries & Wages'!Z279+'Equip-Travel-Participants'!Q28+'Equip-Travel-Participants'!Q38+'Equip-Travel-Participants'!Q50 -> 0 | S93: =S89+'Salaries & Wages'!Z312+'Salaries & Wages'!Z347+'Equip-Travel-Participants'!S28+'Equip-Travel-Participants'!S38+'Equip-Travel-Participants'!S50 -> 0 | U93: =+U89+'Equip-Travel-Participants'!U50+'Equip-Travel-Participants'!U38+'Equip-Travel-Participants'!U28+'Salaries & Wages'!AF41+'Salaries & Wages'!AF75 -> 0 | W93: =+W89+'Equip-Travel-Participants'!W50+'Equip-Travel-Participants'!W38+'Equip-Travel-Participants'!W28+'Salaries & Wages'!AF108+'Salaries & Wages'!AF143 -> 0 | Y93: =+Y89+'Equip-Travel-Participants'!Y50+'Equip-Travel-Participants'!Y38+'Equip-Travel-Participants'!Y28+'Salaries & Wages'!AF176+'Salaries & Wages'!AF211 -> 0 | AA93: =+AA89+'Equip-Travel-Participants'!AA50+'Equip-Travel-Participants'!AA38+'Equip-Travel-Participants'!AA28+'Salaries & Wages'!AF279+'Salaries & Wages'!AF244 -> 0 | AC93: =+AC89+'Equip-Travel-Participants'!AC50+'Equip-Travel-Participants'!AC38+'Equip-Travel-Participants'!AC28+'Salaries & Wages'!AF347+'Salaries & Wages'!AF312 -> 0
K97: Masters - Min | M97: Masters-Max | O97: PhD - Min | Q97: PhD - Max | S97: esc. Rate
S98: 1.042
S99: 1/4-time
S100: 1/2-time
I101: Fall 2014 | K101: 999 | M101: 1998 | O101: 1998 | Q101: 3995
I102: Fall 2015 | K102: =K101*$S$98 -> 1040.958 | M102: =M101*$S$98 -> 2081.916 | O102: =O101*$S$98 -> 2081.916 | Q102: =Q101*$S$98 -> 4162.79
I103: Fall 2016 | K103: 1084.678236 | M103: 2169.356472 | O103: 2169.356472 | Q103: 4337.62718
I104: Fall 2017 | K104: 1130.234722 | M104: 2260.469444 | O104: 2260.469444 | Q104: 4519.807522
I105: Fall 2018 | K105: 1177.70458 | M105: 2355.40916 | O105: 2355.40916 | Q105: 4709.639437
I106: Fall 2019 | K106: 1227.168173 | M106: 2454.336345 | O106: 2454.336345 | Q106: 4907.444294
I107: Fall 2020 | K107: 1278.709236 | M107: 2557.418472 | O107: 2557.418472 | Q107: 5113.556954
I108: Fall 2021 | K108: 1332.415024 | M108: 2664.830048 | O108: 2664.830048 | Q108: 5328.326346
I110: Spring 2015 | K110: 998.75 | M110: 1998 | O110: 1998 | Q110: 3995
I111: Spring 2016 | K111: =K110*$S$98 -> 1040.6975 | M111: =M110*$S$98 -> 2081.916 | O111: =O110*$S$98 -> 2081.916 | Q111: =Q110*$S$98 -> 4162.79
I112: Spring 2017 | K112: 1084.406795 | M112: 2169.356472 | O112: 2169.356472 | Q112: 4337.62718
I113: Spring 2018 | K113: =K112*$S$98 -> 1129.95188 | M113: =M112*$S$98 -> 2260.469444 | O113: =O112*$S$98 -> 2260.469444 | Q113: =Q112*$S$98 -> 4519.807522
I114: Spring 2019 | K114: =K113*$S$98 -> 1177.409859 | M114: =M113*$S$98 -> 2355.40916 | O114: =O113*$S$98 -> 2355.40916 | Q114: =Q113*$S$98 -> 4709.639437
I115: Spring 2020 | K115: 1226.861073 | M115: 2454.336345 | O115: 2454.336345 | Q115: 4907.444294
I116: Spring 2021 | K116: 1278.389239 | M116: 2557.418472 | O116: 2557.418472 | Q116: 5113.556954
I117: Spring 2022 | K117: 1332.081587 | M117: 2664.830048 | O117: 2664.830048 | Q117: 5328.326346
I119: Summer 2014 | K119: 555 | M119: 1110 | O119: 1110 | Q119: 2220
I120: Summer 2015 | K120: =K119*$S$98 -> 578.31 | M120: =M119*$S$98 -> 1156.62 | O120: =O119*$S$98 -> 1156.62 | Q120: =Q119*$S$98 -> 2313.24
I121: Summer 2016 | K121: 602.59902 | M121: 1205.19804 | O121: 1205.19804 | Q121: 2410.39608
I122: Summer 2017 | K122: 627.9081788 | M122: 1255.816358 | O122: 1255.816358 | Q122: 2511.632715
I123: Summer 2018 | K123: 654.2803224 | M123: 1308.560645 | O123: 1308.560645 | Q123: 2617.121289
I124: Summer 2019 | K124: 681.7600959 | M124: 1363.520192 | O124: 1363.520192 | Q124: 2727.040384
I125: Summer 2020 | K125: 710.3940199 | M125: 1420.78804 | O125: 1420.78804 | Q125: 2841.57608
I126: Summer 2021 | K126: 740.2305688 | M126: 1480.461138 | O126: 1480.461138 | Q126: 2960.922275
I128: Engineering & Architecture students
K129: Masters - Min | M129: Masters-Max | O129: PhD - Min | Q129: PhD - Max
I131: Fall 2014 | K131: 1151.25 | M131: 2302.5 | O131: 2302.5 | Q131: 4605
I132: Fall 2015 | K132: =K131*$S$98 -> 1199.6025 | M132: =M131*$S$98 -> 2399.205 | O132: =O131*$S$98 -> 2399.205 | Q132: =Q131*$S$98 -> 4798.41
I133: Fall 2016 | K133: =K132*$S$98 -> 1249.985805 | M133: =M132*$S$98 -> 2499.97161 | O133: =O132*$S$98 -> 2499.97161 | Q133: =Q132*$S$98 -> 4999.94322
I134: Fall 2017 | K134: =K133*$S$98 -> 1302.485209 | M134: =M133*$S$98 -> 2604.970418 | O134: =O133*$S$98 -> 2604.970418 | Q134: =Q133*$S$98 -> 5209.940835
I135: Fall 2018 | K135: 1357.189588 | M135: 2714.379175 | O135: 2714.379175 | Q135: 5428.75835
I136: Fall 2019 | K136: 1414.19155 | M136: 2828.383101 | O136: 2828.383101 | Q136: 5656.766201
I137: Fall 2020 | K137: 1473.587595 | M137: 2947.175191 | O137: 2947.175191 | Q137: 5894.350381
I138: Fall 2021 | K138: 1535.478274 | M138: 3070.956549 | O138: 3070.956549 | Q138: 6141.913097
K139: 0 | O139: 0
I140: Spring 2015 | K140: 1151.25 | M140: 2302.5 | O140: 2302.5 | Q140: 4605
I141: Spring 2016 | K141: =K140*$S$98 -> 1199.6025 | M141: =M140*$S$98 -> 2399.205 | O141: =O140*$S$98 -> 2399.205 | Q141: =Q140*$S$98 -> 4798.41
I142: Spring 2017 | K142: 1249.985805 | M142: 2499.97161 | O142: 2499.97161 | Q142: 4999.94322
I143: Spring 2018 | K143: =K142*$S$98 -> 1302.485209 | M143: =M142*$S$98 -> 2604.970418 | O143: =O142*$S$98 -> 2604.970418 | Q143: =Q142*$S$98 -> 5209.940835
I144: Spring 2019 | K144: =K143*$S$98 -> 1357.189588 | M144: =M143*$S$98 -> 2714.379175 | O144: =O143*$S$98 -> 2714.379175 | Q144: =Q143*$S$98 -> 5428.75835
I145: Spring 2020 | K145: 1414.19155 | M145: 2828.383101 | O145: 2828.383101 | Q145: 5656.766201
I146: Spring 2021 | K146: 1473.587595 | M146: 2947.175191 | O146: 2947.175191 | Q146: 5894.350381
I147: Spring 2022 | K147: 1535.478274 | M147: 3070.956549 | O147: 3070.956549 | Q147: 6141.913097
K148: 0 | O148: 0
I149: Summer 2014 | K149: 640 | M149: 1280 | O149: 1280 | Q149: 2560
I150: Summer 2015 | K150: =K149*$S$98 -> 666.88 | M150: =M149*$S$98 -> 1333.76 | O150: =O149*$S$98 -> 1333.76 | Q150: =Q149*$S$98 -> 2667.52
I151: Summer 2016 | K151: 694.88896 | M151: 1389.77792 | O151: 1389.77792 | Q151: 2779.55584
I152: Summer 2017 | K152: 724.0742963 | M152: 1448.148593 | O152: 1448.148593 | Q152: 2896.297185
I153: Summer 2018 | K153: 754.4854168 | M153: 1508.970834 | O153: 1508.970834 | Q153: 3017.941667
I154: Summer 2019 | K154: 786.1738043 | M154: 1572.347609 | O154: 1572.347609 | Q154: 3144.695217
I155: Summer 2020 | K155: 819.193104 | M155: 1638.386208 | O155: 1638.386208 | Q155: 3276.772416
I156: Summer 2021 | K156: 853.5992144 | M156: 1707.198429 | O156: 1707.198429 | Q156: 3414.396858
I158: Business & STB
K159: Masters - Min | M159: Masters-Max | O159: PhD - Min | Q159: PhD - Max
I161: Fall 2014 | K161: 1213 | M161: 2425 | O161: 2425 | Q161: 4850
I162: Fall 2015 | K162: =K161*$S$98 -> 1263.946 | M162: =M161*$S$98 -> 2526.85 | O162: =O161*$S$98 -> 2526.85 | Q162: =Q161*$S$98 -> 5053.7
I163: Fall 2016 | K163: =K162*$S$98 -> 1317.031732 | M163: =M162*$S$98 -> 2632.9777 | O163: =O162*$S$98 -> 2632.9777 | Q163: =Q162*$S$98 -> 5265.9554
I164: Fall 2017 | K164: =K163*$S$98 -> 1372.347065 | M164: =M163*$S$98 -> 2743.562763 | O164: =O163*$S$98 -> 2743.562763 | Q164: =Q163*$S$98 -> 5487.125527
I165: Fall 2018 | K165: 1429.985641 | M165: 2858.792399 | O165: 2858.792399 | Q165: 5717.584799
I166: Fall 2019 | K166: 1490.045038 | M166: 2978.86168 | O166: 2978.86168 | Q166: 5957.72336
I167: Fall 2020 | K167: 1552.62693 | M167: 3103.973871 | O167: 3103.973871 | Q167: 6207.947742
I168: Fall 2021 | K168: 1617.837261 | M168: 3234.340773 | O168: 3234.340773 | Q168: 6468.681547
K169: 0 | O169: 0
I170: Spring 2015 | K170: 1213 | M170: 2425 | O170: 2425 | Q170: 4850
I171: Spring 2016 | K171: =K170*$S$98 -> 1263.946 | M171: =M170*$S$98 -> 2526.85 | O171: =O170*$S$98 -> 2526.85 | Q171: =Q170*$S$98 -> 5053.7
I172: Spring 2017 | K172: 1317.031732 | M172: 2632.9777 | O172: 2632.9777 | Q172: 5265.9554
I173: Spring 2018 | K173: =K172*$S$98 -> 1372.347065 | M173: =M172*$S$98 -> 2743.562763 | O173: =O172*$S$98 -> 2743.562763 | Q173: =Q172*$S$98 -> 5487.125527
I174: Spring 2019 | K174: =K173*$S$98 -> 1429.985641 | M174: =M173*$S$98 -> 2858.792399 | O174: =O173*$S$98 -> 2858.792399 | Q174: =Q173*$S$98 -> 5717.584799
I175: Spring 2020 | K175: 1490.045038 | M175: 2978.86168 | O175: 2978.86168 | Q175: 5957.72336
I176: Spring 2021 | K176: 1552.62693 | M176: 3103.973871 | O176: 3103.973871 | Q176: 6207.947742
I177: Spring 2022 | K177: 1617.837261 | M177: 3234.340773 | O177: 3234.340773 | Q177: 6468.681547
K178: 0 | O178: 0
I179: Summer 2014 | K179: 674 | M179: 1348 | O179: 1348 | Q179: 2695
I180: Summer 2015 | K180: =K179*$S$98 -> 702.308 | M180: =M179*$S$98 -> 1404.616 | O180: =O179*$S$98 -> 1404.616 | Q180: =Q179*$S$98 -> 2808.19
I181: Summer 2016 | K181: 731.804936 | M181: 1463.609872 | O181: 1463.609872 | Q181: 2926.13398
I182: Summer 2017 | K182: 762.5407433 | M182: 1525.081487 | O182: 1525.081487 | Q182: 3049.031607
I183: Summer 2018 | K183: 794.5674545 | M183: 1589.134909 | O183: 1589.134909 | Q183: 3177.090935
I184: Summer 2019 | K184: 827.9392876 | M184: 1655.878575 | O184: 1655.878575 | Q184: 3310.528754
I185: Summer 2020 | K185: 862.7127377 | M185: 1725.425475 | O185: 1725.425475 | Q185: 3449.570962
I186: Summer 2021 | K186: 898.9466727 | M186: 1797.893345 | O186: 1797.893345 | Q186: 3594.452942

Sheet Subcontracts
K1: Running Total for Cumulative Budget Amount = | Q1: ='Cumulative Budget'!AE65 -> 0
A2: Worksheet for Project Budget - Subcontracts
A4: For each subcontract, you will need to submit the following with the GoldSheet:
A5: 1. Transmittal letter from the Sponsored Research Office
A6: 2. Statement of Work
A7: 3. Separate subcontractor's budget
A8: 4. Budget Justification
A9: If you have questions regarding subcontracts, please contact your Pre-Award Administrator
K11: Year 1 | M11: Year 2 | O11: Year 3 | Q11: Year 4 | S11: Year 5 | U11: Year 1 | W11: Year 2 | Y11: Year 3 | AA11: Year 4 | AC11: Year 5
AI12: NOT SUB
K13: Funds Requested | M13: Funds Requested | O13: Funds Requested | Q13: Funds Requested | S13: Funds Requested | U13: Cost-Sharing / Matching Funds | W13: Cost-Sharing / Matching Funds | Y13: Cost-Sharing / Matching Funds | AA13: Cost-Sharing / Matching Funds | AC13: Cost-Sharing / Matching Funds | AE13: TOTAL | AG13: SUB TO IDC | AI13: TO IDC
C15: Subcontract 1 - Direct Costs | AE15: =SUM(K15:S15)+SUM(K17:S17) -> 0 | AG15: =IF(AE15<25000,AE15,25000) -> 0 | AI15: =AE15-AG15 -> 0
C17: Subcontract 1 - Indirect Costs
C19: Subcontract 2 - Direct Costs | AE19: =SUM(K19:S19)+SUM(K21:S21) -> 0 | AG19: =IF(AE19<25000,AE19,25000) -> 0 | AI19: =AE19-AG19 -> 0
C21: Subcontract 2 - Indirect Costs
C23: Subcontract 3 - Direct Costs | AE23: =SUM(K23:S23)+SUM(K25:S25) -> 0 | AG23: =IF(AE23<25000,AE23,25000) -> 0 | AI23: =AE23-AG23 -> 0
C25: Subcontract 3 - Indirect Costs
C27: Subcontract 4 - Direct Costs | AE27: =SUM(K27:S27)+SUM(K29:S29) -> 0 | AG27: =IF(AE27<25000,AE27,25000) -> 0 | AI27: =AE27-AG27 -> 0
C29: Subcontract 4 - Indirect Costs
C31: Subcontract 5 - Direct Costs | AE31: =SUM(K31:S31)+SUM(K33:S33) -> 0 | AG31: =IF(AE31<25000,AE31,25000) -> 0 | AI31: =AE31-AG31 -> 0
C33: Subcontract 5 - Indirect Costs
C35: Subcontract 6 - Direct Costs | AE35: =SUM(K35:S35)+SUM(K37:S37) -> 0 | AG35: =IF(AE35<25000,AE35,25000) -> 0 | AI35: =AE35-AG35 -> 0
C37: Subcontract 6 - Indirect Costs
C39: Subcontract 7 - Direct Costs | AE39: =SUM(K39:S39)+SUM(K41:S41) -> 0 | AG39: =IF(AE39<25000,AE39,25000) -> 0 | AI39: =AE39-AG39 -> 0
C41: Subcontract 7 - Indirect Costs
C43: Subcontract 8 - Direct Costs | AE43: =SUM(K43:S43)+SUM(K45:S45) -> 0 | AG43: =IF(AE43<25000,AE43,25000) -> 0 | AI43: =AE43-AG43 -> 0
C45: Subcontract 8 - Indirect Costs
C47: Subcontract 9 - Direct Costs | AE47: =SUM(K47:S47)+SUM(K49:S49) -> 0 | AG47: =IF(AE47<25000,AE47,25000) -> 0 | AI47: =AE47-AG47 -> 0
C49: Subcontract 9 - Indirect Costs
C51: Subcontract 10 - Direct Costs | AE51: =SUM(K51:S51)+SUM(K53:S53) -> 0 | AG51: =IF(AE51<25000,AE51,25000) -> 0 | AI51: =AE51-AG51 -> 0
C53: Subcontract 10 - Indirect Costs
C56: Total All Direct Costs | K56: =+K15+K19+K23+K27+K31+K35+K39+K43+K47+K51 -> 0 | M56: =+M15+M19+M23+M27+M31+M35+M39+M43+M47+M51 -> 0 | O56: =+O15+O19+O23+O27+O31+O35+O39+O43+O47+O51 -> 0 | Q56: =+Q15+Q19+Q23+Q27+Q31+Q35+Q39+Q43+Q47+Q51 -> 0 | S56: =+S15+S19+S23+S27+S31+S35+S39+S43+S47+S51 -> 0 | U56: =+U15+U19+U23+U27+U31+U35+U39+U43+U47+U51 -> 0 | W56: =+W15+W19+W23+W27+W31+W35+W39+W43+W47+W51 -> 0 | Y56: =+Y15+Y19+Y23+Y27+Y31+Y35+Y39+Y43+Y47+Y51 -> 0 | AA56: =+AA15+AA19+AA23+AA27+AA31+AA35+AA39+AA43+AA47+AA51 -> 0 | AC56: =+AC15+AC19+AC23+AC27+AC31+AC35+AC39+AC43+AC47+AC51 -> 0 | AE56: =SUM(AE15:AE53) -> 0 | AG56: =SUM(AG15:AG53) -> 0 | AI56: =SUM(AI15:AI54) -> 0
C58: Total All Indirect Costs | K58: =+K17+K21+K25+K29+K33+K37+K41+K45+K49+K53 -> 0 | M58: =+M17+M21+M25+M29+M33+M37+M41+M45+M49+M53 -> 0 | O58: =+O17+O21+O25+O29+O33+O37+O41+O45+O49+O53 -> 0 | Q58: =+Q17+Q21+Q25+Q29+Q33+Q37+Q41+Q45+Q49+Q53 -> 0 | S58: =+S17+S21+S25+S29+S33+S37+S41+S45+S49+S53 -> 0 | U58: =+U17+U21+U25+U29+U33+U37+U41+U45+U49+U53 -> 0 | W58: =+W17+W21+W25+W29+W33+W37+W41+W45+W49+W53 -> 0 | Y58: =+Y17+Y21+Y25+Y29+Y33+Y37+Y41+Y45+Y49+Y53 -> 0 | AA58: =+AA17+AA21+AA25+AA29+AA33+AA37+AA41+AA45+AA49+AA53 -> 0 | AC58: =+AC17+AC21+AC25+AC29+AC33+AC37+AC41+AC45+AC49+AC53 -> 0
C60: Total All Subcontract Costs | K60: =SUM(K56:K58) -> 0 | M60: =SUM(M56:M58) -> 0 | O60: =SUM(O56:O58) -> 0 | Q60: =SUM(Q56:Q58) -> 0 | S60: =SUM(S56:S58) -> 0 | U60: =SUM(U56:U58) -> 0 | W60: =SUM(W56:W58) -> 0 | Y60: =SUM(Y56:Y58) -> 0 | AA60: =SUM(AA56:AA58) -> 0 | AC60: =SUM(AC56:AC58) -> 0
I64: Base amount for MTDC | K64: =SUM(K65:K74) -> 0 | M64: =SUM(M65:M74) -> 0 | O64: =SUM(O65:O74) -> 0 | Q64: =SUM(Q65:Q74) -> 0 | S64: =SUM(S65:S74) -> 0
I65: sub1 | K65: =+IF(K15+K17<25000,+K15+K17,25000) -> 0 | M65: =+IF(M15+M17+SUM(K15:K17)<25000,+SUM(M15:M17),25000-K65) -> 0 | O65: =+IF(O15+O17+SUM(K15:M17)<25000,+SUM(O15:O17),25000-SUM(K65:M65)) -> 0 | Q65: =+IF(Q15+Q17+SUM(K15:O17)<25000,+SUM(Q15:Q17),25000-SUM(K65:O65)) -> 0 | S65: =+IF(S15+S17+SUM(K15:Q17)<25000,+SUM(S15:S17),25000-SUM(K65:Q65)) -> 0
I66: sub2 | K66: =+IF(K19+K21<25000,+K19+K21,25000) -> 0 | M66: =+IF(M19+M21+SUM(K19:K21)<25000,+SUM(M19:M21),25000-K66) -> 0 | O66: =+IF(O19+O21+SUM(K19:M21)<25000,+SUM(O19:O21),25000-SUM(K66:M66)) -> 0 | Q66: =+IF(Q19+Q21+SUM(K19:O21)<25000,+SUM(Q19:Q21),25000-SUM(K66:O66)) -> 0 | S66: =+IF(S19+S21+SUM(K19:Q21)<25000,+SUM(S19:S21),25000-SUM(K66:Q66)) -> 0
I67: sub3 | K67: =+IF(K23+K25<25000,+K23+K25,25000) -> 0 | M67: =+IF(M23+M25+SUM(K23:K25)<25000,+SUM(M23:M25),25000-K67) -> 0 | O67: =+IF(O23+O25+SUM(K23:M25)<25000,+SUM(O23:O25),25000-SUM(K67:M67)) -> 0 | Q67: =+IF(Q23+Q25+SUM(K23:O25)<25000,+SUM(Q23:Q25),25000-SUM(K67:O67)) -> 0 | S67: =+IF(S23+S25+SUM(K23:Q25)<25000,+SUM(S23:S25),25000-SUM(K67:Q67)) -> 0
I68: sub4 | K68: =+IF(K27+K29<25000,+K27+K29,25000) -> 0 | M68: =+IF(M27+M29+SUM(K27:K29)<25000,+SUM(M27:M29),25000-K68) -> 0 | O68: =+IF(O27+O29+SUM(K27:M29)<25000,+SUM(O27:O29),25000-SUM(K68:M68)) -> 0 | Q68: =+IF(Q27+Q29+SUM(K27:O29)<25000,+SUM(Q27:Q29),25000-SUM(K68:O68)) -> 0 | S68: =+IF(S27+S29+SUM(K27:Q29)<25000,+SUM(S27:S29),25000-SUM(K68:Q68)) -> 0
I69: sub5 | K69: =+IF(K31+K33<25000,+K31+K33,25000) -> 0 | M69: =+IF(M31+M33+SUM(K31:K33)<25000,+SUM(M31:M33),25000-K69) -> 0 | O69: =+IF(O31+O33+SUM(K31:M33)<25000,+SUM(O31:O33),25000-SUM(K69:M69)) -> 0 | Q69: =+IF(Q31+Q33+SUM(K31:O33)<25000,+SUM(Q31:Q33),25000-SUM(K69:O69)) -> 0 | S69: =+IF(S31+S33+SUM(K31:Q33)<25000,+SUM(S31:S33),25000-SUM(K69:Q69)) -> 0
I70: sub6 | K70: =+IF(K35+K37<25000,+K35+K37,25000) -> 0 | M70: =+IF(M35+M37+SUM(K35:K37)<25000,+SUM(M35:M37),25000-K70) -> 0 | O70: =+IF(O35+O37+SUM(K35:M37)<25000,+SUM(O35:O37),25000-SUM(K70:M70)) -> 0 | Q70: =+IF(Q35+Q37+SUM(K35:O37)<25000,+SUM(Q35:Q37),25000-SUM(K70:O70)) -> 0 | S70: =+IF(S35+S37+SUM(K35:Q37)<25000,+SUM(S35:S37),25000-SUM(K70:Q70)) -> 0
I71: sub7 | K71: =+IF(K39+K41<25000,+K39+K41,25000) -> 0 | M71: =+IF(M39+M41+SUM(K39:K41)<25000,+SUM(M39:M41),25000-K71) -> 0 | O71: =+IF(O39+O41+SUM(K39:M41)<25000,+SUM(O39:O41),25000-SUM(K71:M71)) -> 0 | Q71: =+IF(Q39+Q41+SUM(K39:O41)<25000,+SUM(Q39:Q41),25000-SUM(K71:O71)) -> 0 | S71: =+IF(S43+S45+SUM(K43:Q45)<25000,+SUM(S43:S45),25000-SUM(K71:Q71)) -> 0
I72: sub8 | K72: =+IF(K43+K45<25000,+K43+K45,25000) -> 0 | M72: =+IF(M43+M45+SUM(K43:K45)<25000,+SUM(M43:M45),25000-K72) -> 0 | O72: =+IF(O43+O45+SUM(K43:M45)<25000,+SUM(O43:O45),25000-SUM(K72:M72)) -> 0 | Q72: =+IF(Q43+Q45+SUM(K43:O45)<25000,+SUM(Q43:Q45),25000-SUM(K72:O72)) -> 0 | S72: =+IF(S43+S45+SUM(K43:Q45)<25000,+SUM(S43:S45),25000-SUM(K72:Q72)) -> 0
I73: sub9 | K73: =+IF(K47+K49<25000,+K47+K49,25000) -> 0 | M73: =+IF(M47+M49+SUM(K47:K49)<25000,+SUM(M47:M49),25000-K73) -> 0 | O73: =+IF(O47+O49+SUM(K47:M49)<25000,+SUM(O47:O49),25000-SUM(K73:M73)) -> 0 | Q73: =+IF(Q47+Q49+SUM(K47:O49)<25000,+SUM(Q47:Q49),25000-SUM(K73:O73)) -> 0 | S73: =+IF(S47+S49+SUM(K47:Q49)<25000,+SUM(S47:S49),25000-SUM(K73:Q73)) -> 0
I74: sub10 | K74: =+IF(K51+K53<25000,+K51+K53,25000) -> 0 | M74: =+IF(M51+M53+SUM(K51:K53)<25000,+SUM(M51:M53),25000-K74) -> 0 | O74: =+IF(O51+O53+SUM(K51:M53)<25000,+SUM(O51:O53),25000-SUM(K74:M74)) -> 0 | Q74: =+IF(Q51+Q53+SUM(K51:O53)<25000,+SUM(Q51:Q53),25000-SUM(K74:O74)) -> 0 | S74: =+IF(S51+S53+SUM(K51:Q53)<25000,+SUM(S51:S53),25000-SUM(K74:Q74)) -> 0

Sheet Cumulative Budget
A1: Worksheet for Project Budget - Cumulative Budget
K3: Year 1 | M3: Year 1 | O3: Year 2 | Q3: Year 2 | S3: Year 3 | U3: Year 3 | W3: Year 4 | Y3: Year 4 | AA3: Year 5 | AC3: Year 5 | AE3: Total | AG3: Total | AI3: Total
K5: Funds Requested | M5: Cost-Sharing / Matching Funds | O5: Funds Requested | Q5: Cost-Sharing / Matching Funds | S5: Funds Requested | U5: Cost-Sharing / Matching Funds | W5: Funds Requested | Y5: Cost-Sharing / Matching Funds | AA5: Funds Requested | AC5: Cost-Sharing / Matching Funds | AE5: Funds Requested | AG5: Cost-Sharing / Matching Funds | AI5: Cost of Project (all sources)
A7: A | C7: Senior/Key Personnel | K7: ='Salaries & Wages'!Z41 -> 0 | M7: ='Salaries & Wages'!AF41 -> 0 | O7: ='Salaries & Wages'!Z108 -> 0 | Q7: ='Salaries & Wages'!AF108 -> 0 | S7: ='Salaries & Wages'!Z176 -> 0 | U7: ='Salaries & Wages'!AF176 -> 0 | W7: ='Salaries & Wages'!Z244 -> 0 | Y7: ='Salaries & Wages'!AF244 -> 0 | AA7: ='Salaries & Wages'!Z312 -> 0 | AC7: ='Salaries & Wages'!AF312 -> 0 | AE7: =+K7+O7+S7+W7+AA7 -> 0 | AG7: =+M7+Q7+U7+Y7+AC7 -> 0 | AI7: =SUM(AE7:AH7) -> 0
A9: B | C9: Other Personnel | K9: ='Salaries & Wages'!Z75 -> 0 | M9: =+'Salaries & Wages'!AF75 -> 0 | O9: =+'Salaries & Wages'!Z143 -> 0 | Q9: =+'Salaries & Wages'!AF143 -> 0 | S9: ='Salaries & Wages'!Z211 -> 0 | U9: ='Salaries & Wages'!AF211 -> 0 | W9: ='Salaries & Wages'!Z279 -> 0 | Y9: ='Salaries & Wages'!AF279 -> 0 | AA9: ='Salaries & Wages'!Z347 -> 0 | AC9: ='Salaries & Wages'!AF347 -> 0 | AE9: =+K9+O9+S9+W9+AA9 -> 0 | AG9: =+M9+Q9+U9+Y9+AC9 -> 0 | AI9: =SUM(AE9:AH9) -> 0
C11: Total Number other Personnel | K11: =+SUM('Salaries & Wages'!B47:B73) -> 0 | O11: =+SUM('Salaries & Wages'!B114:B140) -> 0 | S11: =+SUM('Salaries & Wages'!B182:B208) -> 0 | W11: =+SUM('Salaries & Wages'!B250:B276) -> 0 | AA11: =+SUM('Salaries & Wages'!B318:B344) -> 0
C13: Total Salary, Wages and Fringe Benefits | K13: =+K7+K9 -> 0 | M13: =+M7+M9 -> 0 | O13: =+O7+O9 -> 0 | Q13: =+Q7+Q9 -> 0 | S13: =+S7+S9 -> 0 | U13: =+U7+U9 -> 0 | W13: =+W7+W9 -> 0 | Y13: =+Y7+Y9 -> 0 | AA13: =+AA7+AA9 -> 0 | AC13: =+AC7+AC9 -> 0 | AE13: =+K13+O13+S13+W13+AA13 -> 0 | AG13: =+M13+Q13+U13+Y13+AC13 -> 0 | AI13: =SUM(AE13:AH13) -> 0
A15: C | C15: Equipment | K15: =+'Equip-Travel-Participants'!K28 -> 0 | M15: =+'Equip-Travel-Participants'!U28 -> 0 | O15: =+'Equip-Travel-Participants'!M28 -> 0 | Q15: =+'Equip-Travel-Participants'!W28 -> 0 | S15: =+'Equip-Travel-Participants'!O28 -> 0 | U15: =+'Equip-Travel-Participants'!Y28 -> 0 | W15: =+'Equip-Travel-Participants'!Q28 -> 0 | Y15: =+'Equip-Travel-Participants'!AA28 -> 0 | AA15: =+'Equip-Travel-Participants'!S28 -> 0 | AC15: =+'Equip-Travel-Participants'!AC28 -> 0 | AE15: =+K15+O15+S15+W15+AA15 -> 0 | AG15: =+M15+Q15+U15+Y15+AC15 -> 0 | AI15: =SUM(AE15:AH15) -> 0
A17: D | C17: Travel | K17: =+'Equip-Travel-Participants'!K38 -> 0 | M17: =+'Equip-Travel-Participants'!U38 -> 0 | O17: =+'Equip-Travel-Participants'!M38 -> 0 | Q17: =+'Equip-Travel-Participants'!W38 -> 0 | S17: =+'Equip-Travel-Participants'!O38 -> 0 | U17: =+'Equip-Travel-Participants'!Y38 -> 0 | W17: =+'Equip-Travel-Participants'!Q38 -> 0 | Y17: =+'Equip-Travel-Participants'!AA38 -> 0 | AA17: =+'Equip-Travel-Participants'!S38 -> 0 | AC17: =+'Equip-Travel-Participants'!AC38 -> 0 | AE17: =+K17+O17+S17+W17+AA17 -> 0 | AG17: =+M17+Q17+U17+Y17+AC17 -> 0 | AI17: =SUM(AE17:AH17) -> 0
C19: Domestic | K19: =+'Equip-Travel-Participants'!K34 -> 0 | M19: =+'Equip-Travel-Participants'!U34 -> 0 | O19: =+'Equip-Travel-Participants'!M34 -> 0 | Q19: =+'Equip-Travel-Participants'!W34 -> 0 | S19: =+'Equip-Travel-Participants'!O34 -> 0 | U19: =+'Equip-Travel-Participants'!Y34 -> 0 | W19: =+'Equip-Travel-Participants'!Q34 -> 0 | Y19: =+'Equip-Travel-Participants'!AA34 -> 0 | AA19: =+'Equip-Travel-Participants'!S34 -> 0 | AC19: =+'Equip-Travel-Participants'!AC34 -> 0 | AE19: =+K19+O19+S19+W19+AA19 -> 0 | AG19: =+M19+Q19+U19+Y19+AC19 -> 0 | AI19: =SUM(AE19:AH19) -> 0
C21: Foreign | K21: =+'Equip-Travel-Participants'!K36 -> 0 | M21: =+'Equip-Travel-Participants'!U36 -> 0 | O21: =+'Equip-Travel-Participants'!M36 -> 0 | Q21: =+'Equip-Travel-Participants'!W36 -> 0 | S21: =+'Equip-Travel-Participants'!O36 -> 0 | U21: =+'Equip-Travel-Participants'!Y36 -> 0 | W21: =+'Equip-Travel-Participants'!Q36 -> 0 | Y21: =+'Equip-Travel-Participants'!AA36 -> 0 | AA21: =+'Equip-Travel-Participants'!S36 -> 0 | AC21: =+'Equip-Travel-Participants'!AC36 -> 0 | AE21: =+K21+O21+S21+W21+AA21 -> 0 | AG21: =+M21+Q21+U21+Y21+AC21 -> 0 | AI21: =SUM(AE21:AH21) -> 0
A23: E | C23: Participant/Trainee Support Costs | K23: =+'Equip-Travel-Participants'!K50 -> 0 | M23: =+'Equip-Travel-Participants'!U50 -> 0 | O23: =+'Equip-Travel-Participants'!M50 -> 0 | Q23: =+'Equip-Travel-Participants'!W50 -> 0 | S23: =+'Equip-Travel-Participants'!O50 -> 0 | U23: =+'Equip-Travel-Participants'!Y50 -> 0 | W23: =+'Equip-Travel-Participants'!Q50 -> 0 | Y23: =+'Equip-Travel-Participants'!AA50 -> 0 | AA23: =+'Equip-Travel-Participants'!S50 -> 0 | AC23: =+'Equip-Travel-Participants'!AC50 -> 0 | AE23: =+K23+O23+S23+W23+AA23 -> 0 | AG23: =+M23+Q23+U23+Y23+AC23 -> 0 | AI23: =SUM(AE23:AH23) -> 0
A25: 2 | C25: Stipends | K25: =+'Equip-Travel-Participants'!K42 -> 0 | M25: =+'Equip-Travel-Participants'!U42 -> 0 | O25: =+'Equip-Travel-Participants'!M42 -> 0 | Q25: =+'Equip-Travel-Participants'!W42 -> 0 | S25: =+'Equip-Travel-Participants'!O42 -> 0 | U25: =+'Equip-Travel-Participants'!Y42 -> 0 | W25: =+'Equip-Travel-Participants'!Q42 -> 0 | Y25: =+'Equip-Travel-Participants'!AA42 -> 0 | AA25: =+'Equip-Travel-Participants'!S42 -> 0 | AC25: =+'Equip-Travel-Participants'!AC42 -> 0 | AE25: =+K25+O25+S25+W25+AA25 -> 0 | AG25: =+M25+Q25+U25+Y25+AC25 -> 0 | AI25: =SUM(AE25:AH25) -> 0
A27: 3 | C27: Travel | K27: =+'Equip-Travel-Participants'!K44 -> 0 | M27: =+'Equip-Travel-Participants'!U44 -> 0 | O27: =+'Equip-Travel-Participants'!M44 -> 0 | Q27: =+'Equip-Travel-Participants'!W44 -> 0 | S27: =+'Equip-Travel-Participants'!O44 -> 0 | U27: =+'Equip-Travel-Participants'!Y44 -> 0 | W27: =+'Equip-Travel-Participants'!Q44 -> 0 | Y27: =+'Equip-Travel-Participants'!AA44 -> 0 | AA27: =+'Equip-Travel-Participants'!S44 -> 0 | AC27: =+'Equip-Travel-Participants'!AC44 -> 0 | AE27: =+K27+O27+S27+W27+AA27 -> 0 | AG27: =+M27+Q27+U27+Y27+AC27 -> 0 | AI27: =SUM(AE27:AH27) -> 0
A29: 4 | C29: Subsistence | K29: =+'Equip-Travel-Participants'!K46 -> 0 | M29: =+'Equip-Travel-Participants'!U46 -> 0 | O29: =+'Equip-Travel-Participants'!M46 -> 0 | Q29: =+'Equip-Travel-Participants'!W46 -> 0 | S29: =+'Equip-Travel-Participants'!O46 -> 0 | U29: =+'Equip-Travel-Participants'!Y46 -> 0 | W29: =+'Equip-Travel-Participants'!Q46 -> 0 | Y29: =+'Equip-Travel-Participants'!AA46 -> 0 | AA29: =+'Equip-Travel-Participants'!S46 -> 0 | AC29: =+'Equip-Travel-Participants'!AC46 -> 0 | AE29: =+K29+O29+S29+W29+AA29 -> 0 | AG29: =+M29+Q29+U29+Y29+AC29 -> 0 | AI29: =SUM(AE29:AH29) -> 0
A31: 5 | C31: Other | K31: =+'Equip-Travel-Participants'!K48 -> 0 | M31: =+'Equip-Travel-Participants'!U48 -> 0 | O31: =+'Equip-Travel-Participants'!M48 -> 0 | Q31: =+'Equip-Travel-Participants'!W48 -> 0 | S31: =+'Equip-Travel-Participants'!O48 -> 0 | U31: =+'Equip-Travel-Participants'!Y48 -> 0 | W31: =+'Equip-Travel-Participants'!Q48 -> 0 | Y31: =+'Equip-Travel-Participants'!AA48 -> 0 | AA31: =+'Equip-Travel-Participants'!S48 -> 0 | AC31: =+'Equip-Travel-Participants'!AC48 -> 0 | AE31: =+K31+O31+S31+W31+AA31 -> 0 | AG31: =+M31+Q31+U31+Y31+AC31 -> 0 | AI31: =SUM(AE31:AH31) -> 0
A33: 6 | C33: Number of Participants/Trainees | K33: =+'Equip-Travel-Participants'!K52 -> 0 | M33: =+'Equip-Travel-Participants'!U52 -> 0 | O33: =+'Equip-Travel-Participants'!M52 -> 0 | Q33: =+'Equip-Travel-Participants'!W52 -> 0 | S33: =+'Equip-Travel-Participants'!O52 -> 0 | U33: =+'Equip-Travel-Participants'!Y52 -> 0 | W33: =+'Equip-Travel-Participants'!Q52 -> 0 | Y33: =+'Equip-Travel-Participants'!AA52 -> 0 | AA33: =+'Equip-Travel-Participants'!S52 -> 0 | AC33: =+'Equip-Travel-Participants'!AC52 -> 0
A35: F | C35: Other Direct Costs | K35: =SUM(K37:K59) -> 0 | M35: =SUM(M37:M59) -> 0 | O35: =SUM(O37:O59) -> 0 | Q35: =SUM(Q37:Q59) -> 0 | S35: =SUM(S37:S59) -> 0 | U35: =SUM(U37:U59) -> 0 | W35: =SUM(W37:W59) -> 0 | Y35: =SUM(Y37:Y59) -> 0 | AA35: =SUM(AA37:AA59) -> 0 | AC35: =SUM(AC37:AC59) -> 0 | AE35: =+K35+O35+S35+W35+AA35 -> 0 | AG35: =+M35+Q35+U35+Y35+AC35 -> 0 | AI35: =SUM(AE35:AH35) -> 0
A37: 1 | C37: Materials and Supplies | K37: =+'Other Direct'!K8 -> 0 | M37: =+'Other Direct'!U8 -> 0 | O37: =+'Other Direct'!M8 -> 0 | Q37: =+'Other Direct'!W8 -> 0 | S37: =+'Other Direct'!O8 -> 0 | U37: =+'Other Direct'!Y8 -> 0 | W37: =+'Other Direct'!Q8 -> 0 | Y37: =+'Other Direct'!AA8 -> 0 | AA37: =+'Other Direct'!S8 -> 0 | AC37: =+'Other Direct'!AC8 -> 0 | AE37: =+K37+O37+S37+W37+AA37 -> 0 | AG37: =+M37+Q37+U37+Y37+AC37 -> 0 | AI37: =SUM(AE37:AH37) -> 0
A39: 2 | C39: Publication Costs | K39: =+'Other Direct'!K10 -> 0 | M39: =+'Other Direct'!U10 -> 0 | O39: =+'Other Direct'!M10 -> 0 | Q39: =+'Other Direct'!W10 -> 0 | S39: =+'Other Direct'!O10 -> 0 | U39: =+'Other Direct'!Y10 -> 0 | W39: =+'Other Direct'!Q10 -> 0 | Y39: =+'Other Direct'!AA10 -> 0 | AA39: =+'Other Direct'!S10 -> 0 | AC39: =+'Other Direct'!AC10 -> 0 | AE39: =+K39+O39+S39+W39+AA39 -> 0 | AG39: =+M39+Q39+U39+Y39+AC39 -> 0 | AI39: =SUM(AE39:AH39) -> 0
A41: 3 | C41: Consultant Services | K41: =+'Other Direct'!K12 -> 0 | M41: =+'Other Direct'!U12 -> 0 | O41: =+'Other Direct'!M12 -> 0 | Q41: =+'Other Direct'!W12 -> 0 | S41: =+'Other Direct'!O12 -> 0 | U41: =+'Other Direct'!Y12 -> 0 | W41: =+'Other Direct'!Q12 -> 0 | Y41: =+'Other Direct'!AA12 -> 0 | AA41: =+'Other Direct'!S12 -> 0 | AC41: =+'Other Direct'!AC12 -> 0 | AE41: =+K41+O41+S41+W41+AA41 -> 0 | AG41: =+M41+Q41+U41+Y41+AC41 -> 0 | AI41: =SUM(AE41:AH41) -> 0
A43: 4 | C43: ADP/Computer Services | K43: =+'Other Direct'!K14 -> 0 | M43: =+'Other Direct'!U14 -> 0 | O43: =+'Other Direct'!M14 -> 0 | Q43: =+'Other Direct'!W14 -> 0 | S43: =+'Other Direct'!O14 -> 0 | U43: =+'Other Direct'!Y14 -> 0 | W43: =+'Other Direct'!Q14 -> 0 | Y43: =+'Other Direct'!AA14 -> 0 | AA43: =+'Other Direct'!S14 -> 0 | AC43: =+'Other Direct'!AC14 -> 0 | AE43: =+K43+O43+S43+W43+AA43 -> 0 | AG43: =+M43+Q43+U43+Y43+AC43 -> 0 | AI43: =SUM(AE43:AH43) -> 0
A45: 5 | C45: Subawards/Consortium/Contractual Costs | K45: =+'Other Direct'!K16 -> 0 | M45: =+'Other Direct'!U16 -> 0 | O45: =+'Other Direct'!M16 -> 0 | Q45: =+'Other Direct'!W16 -> 0 | S45: =+'Other Direct'!O16 -> 0 | U45: =+'Other Direct'!Y16 -> 0 | W45: =+'Other Direct'!Q16 -> 0 | Y45: =+'Other Direct'!AA16 -> 0 | AA45: =+'Other Direct'!S16 -> 0 | AC45: =+'Other Direct'!AC16 -> 0 | AE45: =+K45+O45+S45+W45+AA45 -> 0 | AG45: =+M45+Q45+U45+Y45+AC45 -> 0 | AI45: =SUM(AE45:AH45) -> 0
A47: 6 | C47: Equipment or Facility Rental/User Fees | K47: =+'Other Direct'!K18 -> 0 | M47: =+'Other Direct'!U18 -> 0 | O47: =+'Other Direct'!M18 -> 0 | Q47: =+'Other Direct'!W18 -> 0 | S47: =+'Other Direct'!O18 -> 0 | U47: =+'Other Direct'!Y18 -> 0 | W47: =+'Other Direct'!Q18 -> 0 | Y47: =+'Other Direct'!AA18 -> 0 | AA47: =+'Other Direct'!S18 -> 0 | AC47: =+'Other Direct'!AC18 -> 0 | AE47: =+K47+O47+S47+W47+AA47 -> 0 | AG47: =+M47+Q47+U47+Y47+AC47 -> 0 | AI47: =SUM(AE47:AH47) -> 0
A49: 7 | C49: Alterations and Renovations | K49: =+'Other Direct'!K20 -> 0 | M49: =+'Other Direct'!U20 -> 0 | O49: =+'Other Direct'!M20 -> 0 | Q49: =+'Other Direct'!W20 -> 0 | S49: =+'Other Direct'!O20 -> 0 | U49: =+'Other Direct'!Y20 -> 0 | W49: =+'Other Direct'!Q20 -> 0 | Y49: =+'Other Direct'!AA20 -> 0 | AA49: =+'Other Direct'!S20 -> 0 | AC49: =+'Other Direct'!AC20 -> 0 | AE49: =+K49+O49+S49+W49+AA49 -> 0 | AG49: =+M49+Q49+U49+Y49+AC49 -> 0 | AI49: =SUM(AE49:AH49) -> 0
A51: 8 | C51: Graduate Student Tuition | K51: =+'Other Direct'!K22+'Other Direct'!K42+'Other Direct'!K62 -> 0 | M51: =+'Other Direct'!U22+'Other Direct'!U42+'Other Direct'!U62 -> 0 | O51: =+'Other Direct'!M22+'Other Direct'!M42+'Other Direct'!M62 -> 0 | Q51: =+'Other Direct'!W22+'Other Direct'!W42+ +'Other Direct'!W62 -> 0 | S51: =+'Other Direct'!O22+'Other Direct'!O42+'Other Direct'!O62 -> 0 | U51: =+'Other Direct'!Y22+'Other Direct'!Y42+'Other Direct'!Y62 -> 0 | W51: =+'Other Direct'!Q22+'Other Direct'!Q42+'Other Direct'!Q62 -> 0 | Y51: =+'Other Direct'!AA22+'Other Direct'!AA42+'Other Direct'!AA62 -> 0 | AA51: =+'Other Direct'!S22+'Other Direct'!S42+'Other Direct'!S62 -> 0 | AC51: =+'Other Direct'!AC22+'Other Direct'!AC42+'Other Direct'!AC62 -> 0 | AE51: =+K51+O51+S51+W51+AA51 -> 0 | AG51: =+M51+Q51+U51+Y51+AC51 -> 0 | AI51: =SUM(AE51:AH51) -> 0
A53: 9 | C53: =+'Other Direct'!C81:I81 -> other | K53: =+'Other Direct'!K81 -> 0 | M53: =+'Other Direct'!U81 -> 0 | O53: =+'Other Direct'!M81 -> 0 | Q53: =+'Other Direct'!W81 -> 0 | S53: =+'Other Direct'!O81 -> 0 | U53: =+'Other Direct'!Y81 -> 0 | W53: =+'Other Direct'!Q81 -> 0 | Y53: =+'Other Direct'!AA81 -> 0 | AA53: =+'Other Direct'!S81 -> 0 | AC53: =+'Other Direct'!AC81 -> 0 | AE53: =+K53+O53+S53+W53+AA53 -> 0 | AG53: =+M53+Q53+U53+Y53+AC53 -> 0 | AI53: =SUM(AE53:AH53) -> 0
A55: 10 | C55: other | K55: =+'Other Direct'!K83 -> 0 | M55: =+'Other Direct'!U83 -> 0 | O55: =+'Other Direct'!M83 -> 0 | Q55: =+'Other Direct'!W83 -> 0 | S55: =+'Other Direct'!O83 -> 0 | U55: =+'Other Direct'!Y83 -> 0 | W55: =+'Other Direct'!Q83 -> 0 | Y55: =+'Other Direct'!AA83 -> 0 | AA55: =+'Other Direct'!S83 -> 0 | AC55: =+'Other Direct'!AC83 -> 0 | AE55: =+K55+O55+S55+W55+AA55 -> 0 | AG55: =+M55+Q55+U55+Y55+AC55 -> 0 | AI55: =SUM(AE55:AH55) -> 0
A57: 11 | C57: other | K57: =+'Other Direct'!K85 -> 0 | M57: =+'Other Direct'!U85 -> 0 | O57: =+'Other Direct'!M85 -> 0 | Q57: =+'Other Direct'!W85 -> 0 | S57: =+'Other Direct'!O85 -> 0 | U57: =+'Other Direct'!Y85 -> 0 | W57: =+'Other Direct'!Q85 -> 0 | Y57: =+'Other Direct'!AA85 -> 0 | AA57: =+'Other Direct'!S85 -> 0 | AC57: =+'Other Direct'!AC85 -> 0 | AE57: =+K57+O57+S57+W57+AA57 -> 0 | AG57: =+M57+Q57+U57+Y57+AC57 -> 0 | AI57: =SUM(AE57:AH57) -> 0
A59: 12 | C59: =+'Other Direct'!C87:I87 -> other | K59: =+'Other Direct'!K87 -> 0 | M59: =+'Other Direct'!U87 -> 0 | O59: =+'Other Direct'!M87 -> 0 | Q59: =+'Other Direct'!W87 -> 0 | S59: =+'Other Direct'!O87 -> 0 | U59: =+'Other Direct'!Y87 -> 0 | W59: =+'Other Direct'!Q87 -> 0 | Y59: =+'Other Direct'!AA87 -> 0 | AA59: =+'Other Direct'!S87 -> 0 | AC59: =+'Other Direct'!AC87 -> 0 | AE59: =+K59+O59+S59+W59+AA59 -> 0 | AG59: =+M59+Q59+U59+Y59+AC59 -> 0 | AI59: =SUM(AE59:AH59) -> 0
A61: G | C61: Direct Costs | K61: =+K13+K15+K17+K23+K35 -> 0 | M61: =+M13+M15+M17+M23+M35 -> 0 | O61: =+O13+O15+O17+O23+O35 -> 0 | Q61: =+Q13+Q15+Q17+Q23+Q35 -> 0 | S61: =+S13+S15+S17+S23+S35 -> 0 | U61: =+U13+U15+U17+U23+U35 -> 0 | W61: =+W13+W15+W17+W23+W35 -> 0 | Y61: =+Y13+Y15+Y17+Y23+Y35 -> 0 | AA61: =+AA13+AA15+AA17+AA23+AA35 -> 0 | AC61: =+AC13+AC15+AC17+AC23+AC35 -> 0 | AE61: =+K61+O61+S61+W61+AA61 -> 0 | AG61: =+M61+Q61+U61+Y61+AC61 -> 0 | AI61: =SUM(AE61:AH61) -> 0
A63: H | C63: Indirect Costs | H63: Rate | I63: =+K79 -> 0.5 | K63: =ROUND($K$79*SUM(K80:K84),0) -> 0 | M63: =ROUND($K$79*SUM(M80:M84),0) -> 0 | O63: =ROUND($O$79*SUM(O80:O84),0) -> 0 | Q63: =ROUND($O$79*SUM(Q80:Q84),0) -> 0 | S63: =ROUND($S$79*SUM(S80:S84),0) -> 0 | U63: =ROUND($S$79*SUM(U80:U84),0) -> 0 | W63: =ROUND($W$79*SUM(W80:W84),0) -> 0 | Y63: =ROUND($W$79*SUM(Y80:Y84),0) -> 0 | AA63: =ROUND($AA$79*SUM(AA80:AA84),0) -> 0 | AC63: =ROUND($AA$79*SUM(AC80:AC84),0) -> 0 | AE63: =ROUND(K63+O63+S63+W63+AA63,0) -> 0 | AG63: =ROUND(M63+Q63+U63+Y63+AC63,0) -> 0 | AI63: =SUM(AE63:AH63) -> 0
A65: I | C65: Total Direct and Indirect Costs | K65: =+K61+K63 -> 0 | M65: =+M61+M63 -> 0 | O65: =+O61+O63 -> 0 | Q65: =+Q61+Q63 -> 0 | S65: =+S61+S63 -> 0 | U65: =+U61+U63 -> 0 | W65: =+W61+W63 -> 0 | Y65: =+Y61+Y63 -> 0 | AA65: =+AA61+AA63 -> 0 | AC65: =+AC61+AC63 -> 0 | AE65: =+K65+O65+S65+W65+AA65 -> 0 | AG65: =+M65+Q65+U65+Y65+AC65 -> 0 | AI65: =SUM(AE65:AH65) -> 0
A67: J | C67: Fee | AE67: Percent Requested | AG67: Percent Cost-Shared
AE69: =+AE65/AI65 ->  | AG69: =+AG65/AI65 ->  | AI69: =SUM(AE69:AH69) -> 
H70: Base Amount > > | K70: =SUM(K80:K84) -> 0 | M70: =SUM(M80:M84) -> 0 | O70: =SUM(O80:O84) -> 0 | Q70: =SUM(Q80:Q84) -> 0 | S70: =SUM(S80:S84) -> 0 | U70: =SUM(U80:U84) -> 0 | W70: =SUM(W80:W84) -> 0 | Y70: =SUM(Y80:Y84) -> 0 | AA70: =SUM(AA80:AA84) -> 0 | AC70: =SUM(AC80:AC84) -> 0
C72: If this is an NIH Modular application, this is your modular amount each year (must be in multiple of $25,000) >>
K73: =+K61-Subcontracts!K58 -> 0 | O73: =+O61-Subcontracts!M58 -> 0 | S73: =+S61-Subcontracts!O58 -> 0 | W73: =+W61-Subcontracts!Q58 -> 0 | AA73: =+AA61-Subcontracts!S58 -> 0 | AE73: =+AE61-Subcontracts!W58 -> 0
I75: Salary | K75: ='Salaries & Wages'!Z78 -> 0 | O75: ='Salaries & Wages'!Z146 -> 0 | S75: ='Salaries & Wages'!Z214 -> 0 | W75: ='Salaries & Wages'!Z282 -> 0 | AA75: ='Salaries & Wages'!Z350 -> 0 | AE75: ='Salaries & Wages'!Z353 -> 0
I76: Fringe | K76: ='Salaries & Wages'!X78 -> 0 | O76: ='Salaries & Wages'!X146 -> 0 | S76: ='Salaries & Wages'!X214 -> 0 | W76: ='Salaries & Wages'!X282 -> 0 | AA76: ='Salaries & Wages'!X350 -> 0 | AE76: ='Salaries & Wages'!X353 -> 0
I79: Rate | K79: =+'Start here'!$G$12 -> 0.5 | O79: =+'Start here'!$G$12 -> 0.5 | S79: =+'Start here'!$G$12 -> 0.5 | W79: =+'Start here'!$G$12 -> 0.5 | AA79: =+'Start here'!$G$12 -> 0.5
I80: mtdc | K80: =IF(VLOOKUP('Start here'!$E$12,'Start here'!$E$18:$G$32,3,FALSE)="mtdc", +K61-K51-K15-K49-K45+Subcontracts!K64,"false") -> 0 | M80: =IF(VLOOKUP('Start here'!$E$12,'Start here'!$E$18:$G$32,3,FALSE)="mtdc", +M61-M51-M15-M49-M45,"false") -> 0 | O80: =IF(VLOOKUP('Start here'!$E$12,'Start here'!$E$18:$G$32,3,FALSE)="mtdc", +O61-O51-O15-O49-O45+Subcontracts!M64,"false") -> 0 | Q80: =IF(VLOOKUP('Start here'!$E$12,'Start here'!$E$18:$G$32,3,FALSE)="mtdc", +Q61-Q51-Q15-Q49-Q45,"false") -> 0 | S80: =IF(VLOOKUP('Start here'!$E$12,'Start here'!$E$18:$G$32,3,FALSE)="mtdc", +S61-S51-S15-S49-S45+Subcontracts!O64,"false") -> 0 | U80: =IF(VLOOKUP('Start here'!$E$12,'Start here'!$E$18:$G$32,3,FALSE)="mtdc", +U61-U51-U15-U49-U45,"false") -> 0 | W80: =IF(VLOOKUP('Start here'!$E$12,'Start here'!$E$18:$G$32,3,FALSE)="mtdc", +W61-W51-W15-W49-W45+Subcontracts!Q64,"false") -> 0 | Y80: =IF(VLOOKUP('Start here'!$E$12,'Start here'!$E$18:$G$32,3,FALSE)="mtdc", +Y61-Y51-Y15-Y49-Y45,"false") -> 0 | AA80: =IF(VLOOKUP('Start here'!$E$12,'Start here'!$E$18:$G$32,3,FALSE)="mtdc", +AA61-AA51-AA15-AA49-AA45+Subcontracts!S64,"false") -> 0 | AC80: =IF(VLOOKUP('Start here'!$E$12,'Start here'!$E$18:$G$32,3,FALSE)="mtdc", +AC61-AC51-AC15-AC49-AC45,"false") -> 0
I81: direct | K81: =IF(VLOOKUP('Start here'!$E$12,'Start here'!$E$18:$G$32,3,FALSE)="direct", +K61,"false") -> false | M81: =IF(VLOOKUP('Start here'!$E$12,'Start here'!$E$18:$G$32,3,FALSE)="direct", +M61-M45,"false") -> false | O81: =IF(VLOOKUP('Start here'!$E$12,'Start here'!$E$18:$G$32,3,FALSE)="direct", +O61,"false") -> false | Q81: =IF(VLOOKUP('Start here'!$E$12,'Start here'!$E$18:$G$32,3,FALSE)="direct", +Q61-Q45,"false") -> false | S81: =IF(VLOOKUP('Start here'!$E$12,'Start here'!$E$18:$G$32,3,FALSE)="direct", +S61,"false") -> false | U81: =IF(VLOOKUP('Start here'!$E$12,'Start here'!$E$18:$G$32,3,FALSE)="direct", +U61-U45,"false") -> false | W81: =IF(VLOOKUP('Start here'!$E$12,'Start here'!$E$18:$G$32,3,FALSE)="direct", +W61,"false") -> false | Y81: =IF(VLOOKUP('Start here'!$E$12,'Start here'!$E$18:$G$32,3,FALSE)="direct", +Y61-Y45,"false") -> false | AA81: =IF(VLOOKUP('Start here'!$E$12,'Start here'!$E$18:$G$32,3,FALSE)="direct", +AA61,"false") -> false | AC81: =IF(VLOOKUP('Start here'!$E$12,'Start here'!$E$18:$G$32,3,FALSE)="direct", +AC61-AC45,"false") -> false
I82: stipend-REU | K82: =IF(VLOOKUP('Start here'!$E$12,'Start here'!$E$18:$G$32,3,FALSE)="stipend", +K27,"false") -> false | M82: =IF(VLOOKUP('Start here'!$E$12,'Start here'!$E$18:$G$32,3,FALSE)="stipend", +M27,"false") -> false | O82: =IF(VLOOKUP('Start here'!$E$12,'Start here'!$E$18:$G$32,3,FALSE)="stipend", +O27,"false") -> false | Q82: =IF(VLOOKUP('Start here'!$E$12,'Start here'!$E$18:$G$32,3,FALSE)="stipend", +Q27,"false") -> false | S82: =IF(VLOOKUP('Start here'!$E$12,'Start here'!$E$18:$G$32,3,FALSE)="stipend", +S27,"false") -> false | U82: =IF(VLOOKUP('Start here'!$E$12,'Start here'!$E$18:$G$32,3,FALSE)="stipend", +U27,"false") -> false | W82: =IF(VLOOKUP('Start here'!$E$12,'Start here'!$E$18:$G$32,3,FALSE)="stipend", +W27,"false") -> false | Y82: =IF(VLOOKUP('Start here'!$E$12,'Start here'!$E$18:$G$32,3,FALSE)="stipend", +Y27,"false") -> false | AA82: =IF(VLOOKUP('Start here'!$E$12,'Start here'!$E$18:$G$32,3,FALSE)="stipend", +AA27,"false") -> false | AC82: =IF(VLOOKUP('Start here'!$E$12,'Start here'!$E$18:$G$32,3,FALSE)="stipend", +AC27,"false") -> false
I83: participant | K83: =IF(VLOOKUP('Start here'!$E$12,'Start here'!$E$18:$G$32,3,FALSE)="participant", +K61-K51-K15-K23-K49-K45+Subcontracts!K64,"false") -> false | M83: =IF(VLOOKUP('Start here'!$E$12,'Start here'!$E$18:$G$32,3,FALSE)="participant", +M61-M51-M15-M23-M49-M45,"false") -> false | O83: =IF(VLOOKUP('Start here'!$E$12,'Start here'!$E$18:$G$32,3,FALSE)="participant", +O61-O51-O15-O23-O49-O45+Subcontracts!M64,"false") -> false | Q83: =IF(VLOOKUP('Start here'!$E$12,'Start here'!$E$18:$G$32,3,FALSE)="participant", +Q61-Q51-Q15-Q23-Q49-Q45,"false") -> false | S83: =IF(VLOOKUP('Start here'!$E$12,'Start here'!$E$18:$G$32,3,FALSE)="participant", +S61-S51-S15-S23-S49-S45+Subcontracts!O64,"false") -> false | U83: =IF(VLOOKUP('Start here'!$E$12,'Start here'!$E$18:$G$32,3,FALSE)="participant", +U61-U51-U15-U23-U49-U45,"false") -> false | W83: =IF(VLOOKUP('Start here'!$E$12,'Start here'!$E$18:$G$32,3,FALSE)="participant", +W61-W51-W15-W23-W49-W45+Subcontracts!Q64,"false") -> false | Y83: =IF(VLOOKUP('Start here'!$E$12,'Start here'!$E$18:$G$32,3,FALSE)="participant", +Y61-Y51-Y15-Y23-Y49-Y45,"false") -> false | AA83: =IF(VLOOKUP('Start here'!$E$12,'Start here'!$E$18:$G$32,3,FALSE)="participant", +AA61-AA51-AA15-AA23-AA49-AA45+Subcontracts!S64,"false") -> false | AC83: =IF(VLOOKUP('Start here'!$E$12,'Start here'!$E$18:$G$32,3,FALSE)="participant", +AC61-AC51-AC15-AC23-AC49-AC45,"false") -> false
I84: other | K84: =IF(VLOOKUP('Start here'!$E$12,'Start here'!$E$18:$G$32,3,FALSE)="other", +K61,"false") -> false | M84: =IF(VLOOKUP('Start here'!$E$12,'Start here'!$E$18:$G$32,3,FALSE)="other", +M61-M45,"false") -> false | O84: =IF(VLOOKUP('Start here'!$E$12,'Start here'!$E$18:$G$32,3,FALSE)="other", +O61,"false") -> false | Q84: =IF(VLOOKUP('Start here'!$E$12,'Start here'!$E$18:$G$32,3,FALSE)="other", +Q61-Q45,"false") -> false | S84: =IF(VLOOKUP('Start here'!$E$12,'Start here'!$E$18:$G$32,3,FALSE)="other", +S61,"false") -> false | U84: =IF(VLOOKUP('Start here'!$E$12,'Start here'!$E$18:$G$32,3,FALSE)="other", +U61-U45,"false") -> false | W84: =IF(VLOOKUP('Start here'!$E$12,'Start here'!$E$18:$G$32,3,FALSE)="other", +W61,"false") -> false | Y84: =IF(VLOOKUP('Start here'!$E$12,'Start here'!$E$18:$G$32,3,FALSE)="other", +Y61-Y45,"false") -> false | AA84: =IF(VLOOKUP('Start here'!$E$12,'Start here'!$E$18:$G$32,3,FALSE)="other", +AA61,"false") -> false | AC84: =IF(VLOOKUP('Start here'!$E$12,'Start here'!$E$18:$G$32,3,FALSE)="other", +AC61-AC45,"false") -> false

Sheet BA Upload
A1: Sponsor: | B1: ='Start here'!D6 -> 0
A2: Title: | B2: ='Start here'!D8 -> 0
A3: PI Name: | B3: ='Start here'!D4 -> 0
A4: Period of Performance: | B4: ='Start here'!E10 -> 00:00:00 | C4: ='Start here'!G10 -> 00:00:00
A5: GoldSheet Number:
A6: Account Number:
A8: Budget Categories | B8: Budget Code | C8: Amount
A9: Salary/Hourly | B9: 0108 | C9: =ROUND('Salaries & Wages'!Z353,0) -> 0
A10: Payroll Benefits | B10: 0130 | C10: =ROUND('Salaries & Wages'!X353,0) -> 0
A11: Equipment | B11: 0710 | C11: =ROUND('Cumulative Budget'!AE15,0) -> 0
A12: Travel Domestic | B12: 0215 | C12: =ROUND('Cumulative Budget'!AE19+'Cumulative Budget'!AE27+'Cumulative Budget'!AE29,0) -> 0
A13: Travel Foreign | B13: 0216 | C13: =ROUND('Cumulative Budget'!AE21,0) -> 0
A14: Student Tuition | B14: 0610 | C14: =ROUND('Cumulative Budget'!AE51,0) -> 0
A15: Supplies | B15: 0410 | C15: =ROUND('Cumulative Budget'!AE37,0) -> 0
A16: Subcontracts
A17: Subject to IDC | B17: 0396 | C17: =ROUND(Subcontracts!AG56,0) -> 0
A18: Not Subejct to IDC | B18: 0376 | C18: =ROUND(Subcontracts!AI56,0) -> 0
A19: Other Direct Costs
A20: Telecom Charges | B20: 0340 | C20: 0
A21: Computer Usage | B21: 0353 | C21: =ROUND('Cumulative Budget'!AE43,0) -> 0
A22: Printing/Copying | B22: 0373 | C22: =ROUND('Cumulative Budget'!AE39,0) -> 0
A23: Services/Honoraria | B23: 0302 | C23: =ROUND('Cumulative Budget'!AE41+'Cumulative Budget'!AE25,0) -> 0
A24: Postage | B24: 0379 | C24: 0
A25: Other | B25: 0630 | C25: =ROUND('Cumulative Budget'!AE31+'Cumulative Budget'!AE47+'Cumulative Budget'!AE53+'Cumulative Budget'!AE55+'Cumulative Budget'!AE57+'Cumulative Budget'!AE59,0) -> 0
A26: Total Direct Costs | C26: =SUM(C9:C25) -> 0
A27: Indirect Costs | B27: 0642 | C27: =ROUND('Cumulative Budget'!AE63,0) -> 0
A28: Total Costs | C28: =SUM(C26:C27) -> 0

Sheet Sheet1
